﻿Department Family,Entity,Date,Expense Type,Expense Area,Supplier,Transaction Number,Amount,Item Description
BEIS,UKRI - AHRC,01/06/2020,Non-staff travel and subsistance,Operations,Unspecified,98754165,130.07,Non-staff travel and subsistance
BEIS,UKRI - AHRC,02/06/2020,Other Programme Costs,Funds for International Collaboration (FIC 20 US),UKRI - Engineering & Physical Sciences Research Council,98682662,53005.12,Other Programme Costs
BEIS,UKRI - AHRC,02/06/2020,Research Grant Expenditure,New Dynamics of Aging,UKRI - Engineering & Physical Sciences Research Council,98747505,-411.65,Research Grant Expenditure
BEIS,UKRI - AHRC,02/06/2020,Unspecified,Balance Sheet,Unspecified,98751136,5.13,Ers Pension Deductions - JSS
BEIS,UKRI - AHRC,02/06/2020,Fees (Including College Members),GCRF - Programme Delivery,Unspecified,98755458,340.00,Fees (Including College Members)
BEIS,UKRI - AHRC,03/06/2020,T&S Overseas - Accommodation,"History, Heritage, Languages and Literature",Corporate Travel Management (North) Ltd,98755876,0.80,T&S Overseas - Accommodation
BEIS,UKRI - AHRC,03/06/2020,T&S Overseas - Accommodation,"History, Heritage, Languages and Literature",Corporate Travel Management (North) Ltd,98755876,356.79,T&S Overseas - Accommodation
BEIS,UKRI - AHRC,03/06/2020,T&S Overseas - Accommodation,"History, Heritage, Languages and Literature",Corporate Travel Management (North) Ltd,98755876,0.16,T&S Overseas - Accommodation
BEIS,UKRI - AHRC,03/06/2020,T&S Overseas - Accommodation,International,Corporate Travel Management (North) Ltd,98755876,0.80,T&S Overseas - Accommodation
BEIS,UKRI - AHRC,03/06/2020,T&S Overseas - Accommodation,International,Corporate Travel Management (North) Ltd,98755876,461.06,T&S Overseas - Accommodation
BEIS,UKRI - AHRC,03/06/2020,T&S Overseas - Accommodation,International,Corporate Travel Management (North) Ltd,98755876,0.16,T&S Overseas - Accommodation
BEIS,UKRI - AHRC,03/06/2020,T&S Overseas - Accommodation,International Partnership and Engagement,Corporate Travel Management (North) Ltd,98755876,0.80,T&S Overseas - Accommodation
BEIS,UKRI - AHRC,03/06/2020,T&S Overseas - Accommodation,International Partnership and Engagement,Corporate Travel Management (North) Ltd,98755876,117.68,T&S Overseas - Accommodation
BEIS,UKRI - AHRC,03/06/2020,T&S Overseas - Accommodation,International Partnership and Engagement,Corporate Travel Management (North) Ltd,98755876,0.16,T&S Overseas - Accommodation
BEIS,UKRI - AHRC,03/06/2020,T&S Overseas - Accommodation,JPI Cultural Heritage Project,Corporate Travel Management (North) Ltd,98755876,0.80,T&S Overseas - Accommodation
BEIS,UKRI - AHRC,03/06/2020,T&S Overseas - Accommodation,JPI Cultural Heritage Project,Corporate Travel Management (North) Ltd,98755876,169.78,T&S Overseas - Accommodation
BEIS,UKRI - AHRC,03/06/2020,T&S Overseas - Accommodation,JPI Cultural Heritage Project,Corporate Travel Management (North) Ltd,98755876,0.16,T&S Overseas - Accommodation
BEIS,UKRI - AHRC,03/06/2020,T&S Overseas - Flights,International,Corporate Travel Management (North) Ltd,98755876,2.00,T&S Overseas - Flights
BEIS,UKRI - AHRC,03/06/2020,T&S Overseas - Flights,International,Corporate Travel Management (North) Ltd,98755876,151.00,T&S Overseas - Flights
BEIS,UKRI - AHRC,03/06/2020,Health & Safety (inc. Medicals & Opticians),HR,Swindon Occupational Medical Services Ltd,98756462,175.00,Health & Safety (inc. Medicals & Opticians)
BEIS,UKRI - AHRC,05/06/2020,Research Grant Expenditure,11546,Imperial War Museum Trading Company Ltd,98757319,35000.00,Research Grant Expenditure
BEIS,UKRI - AHRC,05/06/2020,T&S UK - Other Charges,Digital Arts and Humanities and Creative Industries,Unspecified,98759396,76.52,T&S UK - Other Charges
BEIS,UKRI - AHRC,05/06/2020,T&S UK - Other Charges,Public and Stakeholder Engagement,Unspecified,98759397,59.95,T&S UK - Other Charges
BEIS,UKRI - AHRC,05/06/2020,T&S UK - Other Charges,Operations,Unspecified,98759398,497.61,T&S UK - Other Charges
BEIS,UKRI - AHRC,08/06/2020,Recruitment Costs,Corporate Services,Onefix Recruitment Ltd,98757260,150.00,Recruitment Costs
BEIS,UKRI - AHRC,08/06/2020,Non-staff travel and subsistance,Digital Arts and Humanities and Creative Industries,Unspecified,98759710,67.70,Non-staff travel and subsistance
BEIS,UKRI - AHRC,08/06/2020,T&S UK - Other Charges,Infrastruture Roadmap,Unspecified,98759737,188.99,T&S UK - Other Charges
BEIS,UKRI - AHRC,09/06/2020,T&S UK - Subsistence,Operations,Unspecified,98686831,26.99,T&S UK - Subsistence
BEIS,UKRI - AHRC,09/06/2020,T&S UK - Subsistence,Operations,Unspecified,98686831,6.74,T&S UK - Subsistence
BEIS,UKRI - AHRC,09/06/2020,T&S UK - Public Transport,Operations,Unspecified,98696869,2.40,T&S UK - Public Transport
BEIS,UKRI - AHRC,09/06/2020,Conferences & Seminars,Public and Stakeholder Engagement,University of London,98730392,35000.00,Conferences & Seminars
BEIS,UKRI - AHRC,09/06/2020,T&S UK - Other Charges,Operations,Unspecified,98731605,26.76,T&S UK - Other Charges
BEIS,UKRI - AHRC,09/06/2020,T&S UK - Other Charges,Operations,Unspecified,98741254,169.97,T&S UK - Other Charges
BEIS,UKRI - AHRC,09/06/2020,T&S UK - Other Charges,Operations,Unspecified,98750360,8.98,T&S UK - Other Charges
BEIS,UKRI - AHRC,09/06/2020,T&S UK - Other Charges,Skills Strategy,Unspecified,98762240,80.00,T&S UK - Other Charges
BEIS,UKRI - AHRC,10/06/2020,Research Consumables,Public and Stakeholder Engagement,BRITISH BROADCASTING CORPORATION,98753884,32000.00,Research Consumables
BEIS,UKRI - AHRC,10/06/2020,T&S UK - Other Charges,Strategy and Evidence,Unspecified,98762239,90.00,T&S UK - Other Charges
BEIS,UKRI - AHRC,10/06/2020,Fees (Including College Members),FIC- US,Unspecified,98765388,170.00,Fees (Including College Members)
BEIS,UKRI - AHRC,10/06/2020,Non-staff travel and subsistance,New Programme Development,Unspecified,98765389,130.10,Non-staff travel and subsistance
BEIS,UKRI - AHRC,10/06/2020,Fees (Including College Members),New Programme Development,Unspecified,98765390,170.00,Fees (Including College Members)
BEIS,UKRI - AHRC,10/06/2020,Non-staff travel and subsistance,Operations,Unspecified,98765391,16.60,Non-staff travel and subsistance
BEIS,UKRI - AHRC,10/06/2020,Fees (Including College Members),Operations,Unspecified,98765392,230.00,Fees (Including College Members)
BEIS,UKRI - AHRC,10/06/2020,Fees (Including College Members),Health and Environmental Humanities,Unspecified,98765393,170.00,Fees (Including College Members)
BEIS,UKRI - AHRC,10/06/2020,Fees (Including College Members),New Programme Development,Unspecified,98765394,230.00,Fees (Including College Members)
BEIS,UKRI - AHRC,11/06/2020,Unspecified,PSU Project Office,Alexander Mann Solutions Ltd,98751451,1677.35,Contract Staff
BEIS,UKRI - AHRC,11/06/2020,Unspecified,PSU Project Office,Alexander Mann Solutions Ltd,98754031,1677.35,Contract Staff
BEIS,UKRI - AHRC,11/06/2020,Unspecified,PSU Project Office,Alexander Mann Solutions Ltd,98757520,1677.35,Contract Staff
BEIS,UKRI - AHRC,11/06/2020,T&S UK - Other Charges,International Development and Area Studies,Unspecified,98766088,296.88,T&S UK - Other Charges
BEIS,UKRI - AHRC,12/06/2020,Fees (Including College Members),FIC- US,Unspecified,98762754,169.93,Fees (Including College Members)
BEIS,UKRI - AHRC,12/06/2020,Fees (Including College Members),FIC- US,Unspecified,98762755,170.24,Fees (Including College Members)
BEIS,UKRI - AHRC,12/06/2020,Fees (Including College Members),FIC- US,Unspecified,98762756,693.05,Fees (Including College Members)
BEIS,UKRI - AHRC,12/06/2020,Advertising & Promotion,Public and Stakeholder Engagement,Unspecified,98765703,600.00,Advertising & Promotion
BEIS,UKRI - AHRC,12/06/2020,Nursery Deductions,Balance Sheet,EDENRED (UK GROUP) LTD,98765757,1085.00,Nursery Deductions
BEIS,UKRI - AHRC,12/06/2020,Nursery Deductions,Balance Sheet,EDENRED (UK GROUP) LTD,98765759,-243.00,Nursery Deductions
BEIS,UKRI - AHRC,12/06/2020,Nursery Deductions,Balance Sheet,EDENRED (UK GROUP) LTD,98765760,20.00,Nursery Deductions
BEIS,UKRI - AHRC,12/06/2020,T&S UK - Other Charges,Public and Stakeholder Engagement,Unspecified,98766358,29.00,T&S UK - Other Charges
BEIS,UKRI - AHRC,12/06/2020,Unspecified,Balance Sheet,HM Revenue & Customs,98767090,55789.55,NI Payable Salaries
BEIS,UKRI - AHRC,12/06/2020,Unspecified,Balance Sheet,HM Revenue & Customs,98767091,43444.47,PAYE Payable Salaries
BEIS,UKRI - AHRC,12/06/2020,Unspecified,Balance Sheet,HM Revenue & Customs,98767092,5127.00,Student Loans
BEIS,UKRI - AHRC,12/06/2020,Unspecified,Corporate Services,HM Revenue & Customs,98767093,1492.00,Apprenticeship Levy
BEIS,UKRI - AHRC,15/06/2020,Fellowships,Research Fellowships,University College London,98754794,12989.74,Fellowships
BEIS,UKRI - AHRC,15/06/2020,Fellowships,Research Fellowships,Kingston University,98754795,14470.49,Fellowships
BEIS,UKRI - AHRC,15/06/2020,Fellowships,Research Fellowships,"Royal Holloway, University of London",98754796,25756.50,Fellowships
BEIS,UKRI - AHRC,15/06/2020,Fellowships,Research Fellowships,University of Sheffield,98754798,20385.82,Fellowships
BEIS,UKRI - AHRC,15/06/2020,Fellowships,Research Fellowships,University of Plymouth,98754799,20669.74,Fellowships
BEIS,UKRI - AHRC,15/06/2020,Fellowships,Research Fellowships,University of Kent,98754800,29042.73,Fellowships
BEIS,UKRI - AHRC,15/06/2020,Fellowships,Research Fellowships,Historic Royal Palaces,98754801,20134.79,Fellowships
BEIS,UKRI - AHRC,15/06/2020,Fellowships,Research Fellowships,University of Edinburgh,98754802,31555.33,Fellowships
BEIS,UKRI - AHRC,15/06/2020,Fellowships,Research Fellowships,University of Birmingham GRANT,98754803,25955.38,Fellowships
BEIS,UKRI - AHRC,15/06/2020,Fellowships,Research Fellowships,University of Glasgow,98754804,14028.91,Fellowships
BEIS,UKRI - AHRC,15/06/2020,Research Grant Expenditure,Research Grants,University of Newcastle Upon Tyne,98756609,36951.90,Research Grant Expenditure
BEIS,UKRI - AHRC,15/06/2020,Research Grant Expenditure,Research Grants,University of Leeds,98756610,36360.72,Research Grant Expenditure
BEIS,UKRI - AHRC,15/06/2020,Research Grant Expenditure,Research Grants,University of Oxford,98756611,40502.38,Research Grant Expenditure
BEIS,UKRI - AHRC,15/06/2020,Research Grant Expenditure,Research Grants,University of Oxford,98756612,46025.25,Research Grant Expenditure
BEIS,UKRI - AHRC,15/06/2020,Research Grant Expenditure,Open World Research Initiative (OWRI).,The University of Manchester,98756613,187629.18,Research Grant Expenditure
BEIS,UKRI - AHRC,15/06/2020,Research Grant Expenditure,Research Grants,University of Birmingham GRANT,98756614,52633.81,Research Grant Expenditure
BEIS,UKRI - AHRC,15/06/2020,Research Grant Expenditure,Research Grants,Birkbeck College,98756615,34812.68,Research Grant Expenditure
BEIS,UKRI - AHRC,15/06/2020,Research Grant Expenditure,Research Grants,Historic Environment Scotland (GRANT),98756616,36152.45,Research Grant Expenditure
BEIS,UKRI - AHRC,15/06/2020,Research Grant Expenditure,Research Grants,University of Southampton GRANT,98756617,44484.45,Research Grant Expenditure
BEIS,UKRI - AHRC,15/06/2020,Research Grant Expenditure,Global Uncertainties Programme,University of Oxford,98756618,34873.46,Research Grant Expenditure
BEIS,UKRI - AHRC,15/06/2020,Research Grant Expenditure,Global Uncertainties Programme,Queen's University Belfast GRANT,98756619,41279.26,Research Grant Expenditure
BEIS,UKRI - AHRC,15/06/2020,Research Grant Expenditure,Global Challenges Research Fund (GCRF),University College London,98756620,41309.80,Research Grant Expenditure
BEIS,UKRI - AHRC,15/06/2020,Research Grant Expenditure,Research Grants,University of East Anglia,98756621,47164.44,Research Grant Expenditure
BEIS,UKRI - AHRC,15/06/2020,Research Grant Expenditure,Research Grants,University of Liverpool,98756622,40449.77,Research Grant Expenditure
BEIS,UKRI - AHRC,15/06/2020,Research Grant Expenditure,Research Grants,University of Glasgow,98756623,41074.17,Research Grant Expenditure
BEIS,UKRI - AHRC,15/06/2020,Research Grant Expenditure,Research Grants,University of Kent,98756624,67995.51,Research Grant Expenditure
BEIS,UKRI - AHRC,15/06/2020,Research Grant Expenditure,Research Grants,Queen's University Belfast GRANT,98756625,55040.94,Research Grant Expenditure
BEIS,UKRI - AHRC,15/06/2020,Research Grant Expenditure,Research Grants,University of Leicester,98756626,51183.64,Research Grant Expenditure
BEIS,UKRI - AHRC,15/06/2020,Research Grant Expenditure,Research Grants,University of Wolverhampton,98756627,55086.13,Research Grant Expenditure
BEIS,UKRI - AHRC,15/06/2020,Research Grant Expenditure,Research Grants,University of Sussex,98756628,43858.85,Research Grant Expenditure
BEIS,UKRI - AHRC,15/06/2020,Research Grant Expenditure,Open World Research Initiative (OWRI).,Queen's University Belfast GRANT,98756629,22284.32,Research Grant Expenditure
BEIS,UKRI - AHRC,15/06/2020,Research Grant Expenditure,Research Grants,Royal College of Music,98756630,82870.29,Research Grant Expenditure
BEIS,UKRI - AHRC,15/06/2020,Research Grant Expenditure,Research Grants,Queen's University Belfast GRANT,98756631,46756.41,Research Grant Expenditure
BEIS,UKRI - AHRC,15/06/2020,Research Grant Expenditure,Research Grants,Aberystwyth University,98756632,49215.76,Research Grant Expenditure
BEIS,UKRI - AHRC,15/06/2020,Research Grant Expenditure,Research Grants,University of Southampton GRANT,98756633,55263.68,Research Grant Expenditure
BEIS,UKRI - AHRC,15/06/2020,Research Grant Expenditure,Research Grants,Lancaster University,98756634,62827.98,Research Grant Expenditure
BEIS,UKRI - AHRC,15/06/2020,Research Grant Expenditure,Research Grants,University of Nottingham,98756635,48612.51,Research Grant Expenditure
BEIS,UKRI - AHRC,15/06/2020,Research Grant Expenditure,Research Grants,Queen Mary University of London,98756636,17074.49,Research Grant Expenditure
BEIS,UKRI - AHRC,15/06/2020,Research Grant Expenditure,Research Grants,University of Leeds,98756637,63826.22,Research Grant Expenditure
BEIS,UKRI - AHRC,15/06/2020,Research Grant Expenditure,Research Grants,King's College London,98756638,68293.84,Research Grant Expenditure
BEIS,UKRI - AHRC,15/06/2020,Research Grant Expenditure,Research Grants,"SOAS, University of London",98756639,73103.68,Research Grant Expenditure
BEIS,UKRI - AHRC,15/06/2020,Research Grant Expenditure,Research Grants,University of Hull,98756640,31112.62,Research Grant Expenditure
BEIS,UKRI - AHRC,15/06/2020,Research Grant Expenditure,Research Grants,University of the West of England,98756641,16573.27,Research Grant Expenditure
BEIS,UKRI - AHRC,15/06/2020,Research Grant Expenditure,Research Grants,University of York,98756642,58672.38,Research Grant Expenditure
BEIS,UKRI - AHRC,15/06/2020,Research Grant Expenditure,Research Grants,University of Edinburgh,98756643,8747.93,Research Grant Expenditure
BEIS,UKRI - AHRC,15/06/2020,Research Grant Expenditure,Research Grants,University of Bradford,98756644,10239.27,Research Grant Expenditure
BEIS,UKRI - AHRC,15/06/2020,Research Grant Expenditure,Anti-microbial Resistance (AMR),Glasgow School of Art,98756645,15068.00,Research Grant Expenditure
BEIS,UKRI - AHRC,15/06/2020,Research Grant Expenditure,Research Grants,Birmingham City University,98756646,42903.00,Research Grant Expenditure
BEIS,UKRI - AHRC,15/06/2020,Research Grant Expenditure,Research Grants,University of Liverpool,98756647,47974.13,Research Grant Expenditure
BEIS,UKRI - AHRC,15/06/2020,Research Grant Expenditure,Research Grants,The Open University,98756648,28514.90,Research Grant Expenditure
BEIS,UKRI - AHRC,15/06/2020,Research Grant Expenditure,Research Grants,University of Nottingham,98756649,54009.44,Research Grant Expenditure
BEIS,UKRI - AHRC,15/06/2020,Research Grant Expenditure,Research Grants,Keele University,98756650,62180.95,Research Grant Expenditure
BEIS,UKRI - AHRC,15/06/2020,Research Grant Expenditure,Research Grants,Cardiff University,98756651,24260.66,Research Grant Expenditure
BEIS,UKRI - AHRC,15/06/2020,Research Grant Expenditure,Research Grants,University of Glasgow,98756652,48050.85,Research Grant Expenditure
BEIS,UKRI - AHRC,15/06/2020,Research Grant Expenditure,Global Challenges Research Fund (GCRF),University of Leeds,98756653,211425.85,Research Grant Expenditure
BEIS,UKRI - AHRC,15/06/2020,Research Grant Expenditure,Global Challenges Research Fund (GCRF),University of Nottingham,98756654,121160.61,Research Grant Expenditure
BEIS,UKRI - AHRC,15/06/2020,Research Grant Expenditure,Global Challenges Research Fund (GCRF),University College London,98756655,116270.84,Research Grant Expenditure
BEIS,UKRI - AHRC,15/06/2020,Research Grant Expenditure,Global Challenges Research Fund (GCRF),University of Liverpool,98756656,115289.03,Research Grant Expenditure
BEIS,UKRI - AHRC,15/06/2020,Research Grant Expenditure,Global Challenges Research Fund (GCRF),"SOAS, University of London",98756657,154824.33,Research Grant Expenditure
BEIS,UKRI - AHRC,15/06/2020,Research Grant Expenditure,RCUK Global Challenges Research Fund (RCUK GCRF),Goldsmiths College University of London,98756658,205502.00,Research Grant Expenditure
BEIS,UKRI - AHRC,15/06/2020,Research Grant Expenditure,RCUK Global Challenges Research Fund (RCUK GCRF),University of Huddersfield,98756659,267789.00,Research Grant Expenditure
BEIS,UKRI - AHRC,15/06/2020,Research Grant Expenditure,Research Grants,University of Durham,98756660,35083.91,Research Grant Expenditure
BEIS,UKRI - AHRC,15/06/2020,Research Grant Expenditure,Research Grants,University of Leicester,98756661,68939.02,Research Grant Expenditure
BEIS,UKRI - AHRC,15/06/2020,Research Grant Expenditure,Research Grants,University College London,98756662,63207.69,Research Grant Expenditure
BEIS,UKRI - AHRC,15/06/2020,Research Grant Expenditure,Research Grants,Goldsmiths College University of London,98756663,63128.10,Research Grant Expenditure
BEIS,UKRI - AHRC,15/06/2020,Research Grant Expenditure,Research Grants,University College London,98756664,34099.53,Research Grant Expenditure
BEIS,UKRI - AHRC,15/06/2020,Research Grant Expenditure,Research Grants,University of Durham,98756665,63399.22,Research Grant Expenditure
BEIS,UKRI - AHRC,15/06/2020,Research Grant Expenditure,Research Grants,University of East Anglia,98756666,33109.83,Research Grant Expenditure
BEIS,UKRI - AHRC,15/06/2020,Research Grant Expenditure,Research Grants,London School of Economics and Political Science,98756667,51876.59,Research Grant Expenditure
BEIS,UKRI - AHRC,15/06/2020,Research Grant Expenditure,Research Grants,Oxford Brookes University,98756668,53665.17,Research Grant Expenditure
BEIS,UKRI - AHRC,15/06/2020,Research Grant Expenditure,Research Grants,University of Surrey,98756669,34608.12,Research Grant Expenditure
BEIS,UKRI - AHRC,15/06/2020,Research Grant Expenditure,Research Grants,University of Glasgow,98756670,56519.63,Research Grant Expenditure
BEIS,UKRI - AHRC,15/06/2020,Research Grant Expenditure,Research Grants,University of Newcastle Upon Tyne,98756671,54430.39,Research Grant Expenditure
BEIS,UKRI - AHRC,15/06/2020,Research Grant Expenditure,Research Grants,Manchester Metropolitan University,98756672,22020.37,Research Grant Expenditure
BEIS,UKRI - AHRC,15/06/2020,Research Grant Expenditure,Care for the Future,University of Exeter,98756673,23676.32,Research Grant Expenditure
BEIS,UKRI - AHRC,15/06/2020,Research Grant Expenditure,Networks & Workshops,Northumbria University,98756674,4255.34,Research Grant Expenditure
BEIS,UKRI - AHRC,15/06/2020,Research Grant Expenditure,Networks & Workshops,The Open University,98756675,4984.62,Research Grant Expenditure
BEIS,UKRI - AHRC,15/06/2020,Research Grant Expenditure,JPI Cultural Heritage,University College London,98756676,8129.83,Research Grant Expenditure
BEIS,UKRI - AHRC,15/06/2020,Research Grant Expenditure,JPI Cultural Heritage,University of Oxford,98756677,11092.96,Research Grant Expenditure
BEIS,UKRI - AHRC,15/06/2020,Research Grant Expenditure,JPI Cultural Heritage,De Montfort University,98756678,13329.15,Research Grant Expenditure
BEIS,UKRI - AHRC,15/06/2020,Research Grant Expenditure,JPI Cultural Heritage,De Montfort University,98756678,13329.15,Research Grant Expenditure
BEIS,UKRI - AHRC,15/06/2020,Research Grant Expenditure,Research Grants,University of Strathclyde,98756679,54983.50,Research Grant Expenditure
BEIS,UKRI - AHRC,15/06/2020,Research Grant Expenditure,Research Grants,"Royal Holloway, University of London",98756680,33048.33,Research Grant Expenditure
BEIS,UKRI - AHRC,15/06/2020,Research Grant Expenditure,Research Grants,University of Westminster,98756681,40335.40,Research Grant Expenditure
BEIS,UKRI - AHRC,15/06/2020,Research Grant Expenditure,Research Grants,University of the Arts London,98756682,45240.68,Research Grant Expenditure
BEIS,UKRI - AHRC,15/06/2020,Research Grant Expenditure,Research Grants,The University of Manchester,98756683,58389.51,Research Grant Expenditure
BEIS,UKRI - AHRC,15/06/2020,Research Grant Expenditure,JPI Cultural Heritage,The Open University,98756684,13257.20,Research Grant Expenditure
BEIS,UKRI - AHRC,15/06/2020,Research Grant Expenditure,Research Grants,University of Reading,98756685,67688.88,Research Grant Expenditure
BEIS,UKRI - AHRC,15/06/2020,Research Grant Expenditure,JPI Cultural Heritage,University of Warwick,98756686,20391.48,Research Grant Expenditure
BEIS,UKRI - AHRC,15/06/2020,Research Grant Expenditure,Networks & Workshops,Arts University Bournemouth,98756687,3029.80,Research Grant Expenditure
BEIS,UKRI - AHRC,15/06/2020,Research Grant Expenditure,Networks & Workshops,Queen's University Belfast GRANT,98756688,5989.19,Research Grant Expenditure
BEIS,UKRI - AHRC,15/06/2020,Research Grant Expenditure,Networks & Workshops,University of Birmingham GRANT,98756689,3862.79,Research Grant Expenditure
BEIS,UKRI - AHRC,15/06/2020,Research Grant Expenditure,Networks & Workshops,Birmingham City University,98756690,4123.86,Research Grant Expenditure
BEIS,UKRI - AHRC,15/06/2020,Research Grant Expenditure,Research Grants,The University of Manchester,98756691,67401.19,Research Grant Expenditure
BEIS,UKRI - AHRC,15/06/2020,Research Grant Expenditure,Research Grants,University of Warwick,98756692,57524.58,Research Grant Expenditure
BEIS,UKRI - AHRC,15/06/2020,Research Grant Expenditure,Research Grants,The Royal Central School of Speech and Drama,98756693,47959.80,Research Grant Expenditure
BEIS,UKRI - AHRC,15/06/2020,Research Grant Expenditure,Research Grants,Queen's University Belfast GRANT,98756694,12011.95,Research Grant Expenditure
BEIS,UKRI - AHRC,15/06/2020,Research Grant Expenditure,Networks & Workshops,University of Leeds,98756695,4332.62,Research Grant Expenditure
BEIS,UKRI - AHRC,15/06/2020,Research Grant Expenditure,Research Grants,University of Liverpool,98756696,48561.55,Research Grant Expenditure
BEIS,UKRI - AHRC,15/06/2020,Research Grant Expenditure,Research Grants,University of Newcastle Upon Tyne,98756697,71150.77,Research Grant Expenditure
BEIS,UKRI - AHRC,15/06/2020,Research Grant Expenditure,RCUK Newton Programme,University of Bristol GRANT,98756698,40624.29,Research Grant Expenditure
BEIS,UKRI - AHRC,15/06/2020,Research Grant Expenditure,Research Grants,Queen Mary University of London,98756699,33542.11,Research Grant Expenditure
BEIS,UKRI - AHRC,15/06/2020,Research Grant Expenditure,Research Grants,University of Liverpool,98756700,22013.63,Research Grant Expenditure
BEIS,UKRI - AHRC,15/06/2020,Research Grant Expenditure,Research Grants,King's College London,98756701,65802.91,Research Grant Expenditure
BEIS,UKRI - AHRC,15/06/2020,Research Grant Expenditure,RCUK Newton Programme,"Royal Holloway, University of London",98756702,34585.27,Research Grant Expenditure
BEIS,UKRI - AHRC,15/06/2020,Research Grant Expenditure,Research Grants,University of Sussex,98756703,49996.12,Research Grant Expenditure
BEIS,UKRI - AHRC,15/06/2020,Research Grant Expenditure,Research Grants,University of Southampton GRANT,98756704,66811.50,Research Grant Expenditure
BEIS,UKRI - AHRC,15/06/2020,Research Grant Expenditure,Research Grants,University of Reading,98756705,56174.01,Research Grant Expenditure
BEIS,UKRI - AHRC,15/06/2020,Research Grant Expenditure,Research Grants,University of Exeter,98756706,20051.55,Research Grant Expenditure
BEIS,UKRI - AHRC,15/06/2020,Research Grant Expenditure,Networks & Workshops,Kingston University,98756707,4543.36,Research Grant Expenditure
BEIS,UKRI - AHRC,15/06/2020,Research Grant Expenditure,RCUK Newton Programme,Aberystwyth University,98756708,31207.20,Research Grant Expenditure
BEIS,UKRI - AHRC,15/06/2020,Research Grant Expenditure,RCUK Newton Programme,University of Nottingham,98756709,39434.40,Research Grant Expenditure
BEIS,UKRI - AHRC,15/06/2020,Research Grant Expenditure,Research Grants,The University of Manchester,98756710,27564.08,Research Grant Expenditure
BEIS,UKRI - AHRC,15/06/2020,Research Grant Expenditure,Research Grants,Birkbeck College,98756711,66891.95,Research Grant Expenditure
BEIS,UKRI - AHRC,15/06/2020,Research Grant Expenditure,Research Grants,University of East Anglia,98756712,34726.75,Research Grant Expenditure
BEIS,UKRI - AHRC,15/06/2020,Research Grant Expenditure,Research Grants,University of Chester,98756713,37921.09,Research Grant Expenditure
BEIS,UKRI - AHRC,15/06/2020,Research Grant Expenditure,Newton Programme,Loughborough University,98756714,18472.54,Research Grant Expenditure
BEIS,UKRI - AHRC,15/06/2020,Research Grant Expenditure,Newton Programme,Queen Mary University of London,98756715,32348.31,Research Grant Expenditure
BEIS,UKRI - AHRC,15/06/2020,Research Grant Expenditure,Newton Programme,Lancaster University,98756716,16577.38,Research Grant Expenditure
BEIS,UKRI - AHRC,15/06/2020,Research Grant Expenditure,Newton Programme,Brunel University London,98756717,18629.61,Research Grant Expenditure
BEIS,UKRI - AHRC,15/06/2020,Research Grant Expenditure,Newton Programme,University College London,98756718,25394.55,Research Grant Expenditure
BEIS,UKRI - AHRC,15/06/2020,Research Grant Expenditure,Newton Programme,Liverpool John Moores University,98756719,16618.94,Research Grant Expenditure
BEIS,UKRI - AHRC,15/06/2020,Research Grant Expenditure,Research Grants,University of Leeds,98756720,26013.89,Research Grant Expenditure
BEIS,UKRI - AHRC,15/06/2020,Research Grant Expenditure,Research Grants,The University of Manchester,98756721,45614.39,Research Grant Expenditure
BEIS,UKRI - AHRC,15/06/2020,Research Grant Expenditure,Research Grants,University of Kent,98756722,54263.05,Research Grant Expenditure
BEIS,UKRI - AHRC,15/06/2020,Research Grant Expenditure,Research Grants,University of Wales Trinity St David,98756723,63328.35,Research Grant Expenditure
BEIS,UKRI - AHRC,15/06/2020,Research Grant Expenditure,Research Grants,University of Bristol GRANT,98756724,43291.28,Research Grant Expenditure
BEIS,UKRI - AHRC,15/06/2020,Research Grant Expenditure,Research Grants,UNIVERSITY OF ULSTER,98756725,27261.85,Research Grant Expenditure
BEIS,UKRI - AHRC,15/06/2020,Research Grant Expenditure,Research Grants,University of Oxford,98756726,80794.02,Research Grant Expenditure
BEIS,UKRI - AHRC,15/06/2020,Research Grant Expenditure,Industrial Strategy Challenge Fund (ISCF) - Creative Clusters,NESTA,98756727,346346.80,Research Grant Expenditure
BEIS,UKRI - AHRC,15/06/2020,Research Grant Expenditure,Research Grants,The University of Manchester,98756728,67869.47,Research Grant Expenditure
BEIS,UKRI - AHRC,15/06/2020,Research Grant Expenditure,Research Grants,University of Oxford,98756729,40747.86,Research Grant Expenditure
BEIS,UKRI - AHRC,15/06/2020,Research Grant Expenditure,Research Grants,University of the Arts London,98756730,32186.54,Research Grant Expenditure
BEIS,UKRI - AHRC,15/06/2020,Research Grant Expenditure,Research Grants,University of Sussex,98756731,55093.00,Research Grant Expenditure
BEIS,UKRI - AHRC,15/06/2020,Research Grant Expenditure,Research Grants,Birkbeck College,98756732,20394.13,Research Grant Expenditure
BEIS,UKRI - AHRC,15/06/2020,Research Grant Expenditure,Networks & Workshops,Birmingham City University,98756733,3405.08,Research Grant Expenditure
BEIS,UKRI - AHRC,15/06/2020,Research Grant Expenditure,Research Grants,University of Oxford,98756734,57288.97,Research Grant Expenditure
BEIS,UKRI - AHRC,15/06/2020,Research Grant Expenditure,Research Grants,University of Newcastle Upon Tyne,98756735,65097.00,Research Grant Expenditure
BEIS,UKRI - AHRC,15/06/2020,Research Grant Expenditure,Research Grants,University of Exeter,98756736,61745.67,Research Grant Expenditure
BEIS,UKRI - AHRC,15/06/2020,Research Grant Expenditure,Newton Programme,University of Leeds,98756737,16680.08,Research Grant Expenditure
BEIS,UKRI - AHRC,15/06/2020,Research Grant Expenditure,JPI Cultural Heritage,University of Hull,98756738,11282.57,Research Grant Expenditure
BEIS,UKRI - AHRC,15/06/2020,Research Grant Expenditure,JPI Cultural Heritage,University of Lincoln,98756739,9822.08,Research Grant Expenditure
BEIS,UKRI - AHRC,15/06/2020,Research Grant Expenditure,Newton Programme,University of Salford,98756740,21060.60,Research Grant Expenditure
BEIS,UKRI - AHRC,15/06/2020,Research Grant Expenditure,JPI Cultural Heritage,University of Bradford,98756741,20367.91,Research Grant Expenditure
BEIS,UKRI - AHRC,15/06/2020,Research Grant Expenditure,Audience of the Future (ISCF 2),The National Film & Television School,98756742,482614.98,Research Grant Expenditure
BEIS,UKRI - AHRC,15/06/2020,Research Grant Expenditure,Industrial Strategy Challenge Fund (ISCF) - Creative Clusters,University of Edinburgh,98756743,417941.55,Research Grant Expenditure
BEIS,UKRI - AHRC,15/06/2020,Research Grant Expenditure,Industrial Strategy Challenge Fund (ISCF) - Creative Clusters,University of Leeds,98756744,410045.28,Research Grant Expenditure
BEIS,UKRI - AHRC,15/06/2020,Research Grant Expenditure,Industrial Strategy Challenge Fund (ISCF) - Creative Clusters,University of the Arts London,98756745,414470.35,Research Grant Expenditure
BEIS,UKRI - AHRC,15/06/2020,Research Grant Expenditure,Industrial Strategy Challenge Fund (ISCF) - Creative Clusters,UNIVERSITY OF ULSTER,98756746,417409.39,Research Grant Expenditure
BEIS,UKRI - AHRC,15/06/2020,Research Grant Expenditure,Industrial Strategy Challenge Fund (ISCF) - Creative Clusters,Abertay University,98756747,389722.54,Research Grant Expenditure
BEIS,UKRI - AHRC,15/06/2020,Research Grant Expenditure,Industrial Strategy Challenge Fund (ISCF) - Creative Clusters,University of the West of England,98756748,418733.20,Research Grant Expenditure
BEIS,UKRI - AHRC,15/06/2020,Research Grant Expenditure,Industrial Strategy Challenge Fund (ISCF) - Creative Clusters,University of York,98756749,411455.33,Research Grant Expenditure
BEIS,UKRI - AHRC,15/06/2020,Research Grant Expenditure,Industrial Strategy Challenge Fund (ISCF) - Creative Clusters,Cardiff University,98756750,400272.58,Research Grant Expenditure
BEIS,UKRI - AHRC,15/06/2020,Research Grant Expenditure,Industrial Strategy Challenge Fund (ISCF) - Creative Clusters,"Royal Holloway, University of London",98756751,417435.83,Research Grant Expenditure
BEIS,UKRI - AHRC,15/06/2020,Research Grant Expenditure,Newton Programme,Nottingham Trent University,98756752,21282.74,Research Grant Expenditure
BEIS,UKRI - AHRC,15/06/2020,Research Grant Expenditure,Global Challenges Research Fund (GCRF),Goldsmiths College University of London,98756753,107.71,Research Grant Expenditure
BEIS,UKRI - AHRC,15/06/2020,Research Grant Expenditure,Networks & Workshops,University of Stirling,98756754,7820.27,Research Grant Expenditure
BEIS,UKRI - AHRC,15/06/2020,Research Grant Expenditure,Global Challenges Research Fund (GCRF),University of Cambridge,98756755,16102.68,Research Grant Expenditure
BEIS,UKRI - AHRC,15/06/2020,Research Grant Expenditure,Global Challenges Research Fund (GCRF),University of Leeds,98756756,16670.06,Research Grant Expenditure
BEIS,UKRI - AHRC,15/06/2020,Research Grant Expenditure,Networks & Workshops,University of Birmingham GRANT,98756757,3134.33,Research Grant Expenditure
BEIS,UKRI - AHRC,15/06/2020,Research Grant Expenditure,Networks & Workshops,Coventry University,98756758,3882.09,Research Grant Expenditure
BEIS,UKRI - AHRC,15/06/2020,Research Grant Expenditure,Networks & Workshops,University of the Arts London,98756759,5961.15,Research Grant Expenditure
BEIS,UKRI - AHRC,15/06/2020,Research Grant Expenditure,Newton Programme,University of Durham,98756760,27129.01,Research Grant Expenditure
BEIS,UKRI - AHRC,15/06/2020,Research Grant Expenditure,Newton Programme,University of Durham,98756761,24214.19,Research Grant Expenditure
BEIS,UKRI - AHRC,15/06/2020,Research Grant Expenditure,Research Grants,University of Leicester,98756762,28524.26,Research Grant Expenditure
BEIS,UKRI - AHRC,15/06/2020,Research Grant Expenditure,Research Grants,University of Stirling,98756763,35232.77,Research Grant Expenditure
BEIS,UKRI - AHRC,15/06/2020,Research Grant Expenditure,Research Grants,University of Oxford,98756764,25198.89,Research Grant Expenditure
BEIS,UKRI - AHRC,15/06/2020,Research Grant Expenditure,Research Grants,University of the Arts London,98756765,63810.77,Research Grant Expenditure
BEIS,UKRI - AHRC,15/06/2020,Research Grant Expenditure,Research Grants,University of Exeter,98756766,39876.73,Research Grant Expenditure
BEIS,UKRI - AHRC,15/06/2020,Research Grant Expenditure,Global Challenges Research Fund (GCRF),Institute of Development Studies,98756767,16698.81,Research Grant Expenditure
BEIS,UKRI - AHRC,15/06/2020,Research Grant Expenditure,Newton Programme,Oxford Brookes University,98756768,16864.38,Research Grant Expenditure
BEIS,UKRI - AHRC,15/06/2020,Research Grant Expenditure,Research Grants,University of Newcastle Upon Tyne,98756769,50562.45,Research Grant Expenditure
BEIS,UKRI - AHRC,15/06/2020,Research Grant Expenditure,Research Grants,University of Kent,98756770,60496.60,Research Grant Expenditure
BEIS,UKRI - AHRC,15/06/2020,Research Grant Expenditure,Research Grants,University of York,98756771,72239.78,Research Grant Expenditure
BEIS,UKRI - AHRC,15/06/2020,Research Grant Expenditure,Research Grants,Northumbria University,98756772,25406.14,Research Grant Expenditure
BEIS,UKRI - AHRC,15/06/2020,Research Grant Expenditure,Newton Programme,University of Liverpool,98756773,26141.51,Research Grant Expenditure
BEIS,UKRI - AHRC,15/06/2020,Research Grant Expenditure,Research Grants,Bournemouth University GRANT,98756774,19130.73,Research Grant Expenditure
BEIS,UKRI - AHRC,15/06/2020,Research Grant Expenditure,Living with Machines (SPF),The Alan Turing Institute,98756775,503754.62,Research Grant Expenditure
BEIS,UKRI - AHRC,15/06/2020,Research Grant Expenditure,Newton Programme,Imperial College London,98756776,16882.13,Research Grant Expenditure
BEIS,UKRI - AHRC,15/06/2020,Research Grant Expenditure,Networks & Workshops,Loughborough University,98756777,4768.84,Research Grant Expenditure
BEIS,UKRI - AHRC,15/06/2020,Research Grant Expenditure,Networks & Workshops,University of Southampton GRANT,98756778,4489.45,Research Grant Expenditure
BEIS,UKRI - AHRC,15/06/2020,Research Grant Expenditure,Networks & Workshops,University of Kent,98756779,4569.88,Research Grant Expenditure
BEIS,UKRI - AHRC,15/06/2020,Research Grant Expenditure,Networks & Workshops,Liverpool John Moores University,98756780,5775.46,Research Grant Expenditure
BEIS,UKRI - AHRC,15/06/2020,Research Grant Expenditure,RCUK Global Challenges Research Fund (RCUK GCRF),London School of Economics and Political Science,98756781,755339.10,Research Grant Expenditure
BEIS,UKRI - AHRC,15/06/2020,Research Grant Expenditure,Research Grants,Lancaster University,98756782,57172.93,Research Grant Expenditure
BEIS,UKRI - AHRC,15/06/2020,Research Grant Expenditure,Networks & Workshops,University of East Anglia,98756783,4957.21,Research Grant Expenditure
BEIS,UKRI - AHRC,15/06/2020,Research Grant Expenditure,Newton Programme,King's College London,98756784,27896.44,Research Grant Expenditure
BEIS,UKRI - AHRC,15/06/2020,Research Grant Expenditure,Newton Programme,University of Leeds,98756785,26739.58,Research Grant Expenditure
BEIS,UKRI - AHRC,15/06/2020,Research Grant Expenditure,Newton Programme,University of Reading,98756786,25866.57,Research Grant Expenditure
BEIS,UKRI - AHRC,15/06/2020,Research Grant Expenditure,JPI Cultural Heritage,University of Leeds,98756787,13833.53,Research Grant Expenditure
BEIS,UKRI - AHRC,15/06/2020,Research Grant Expenditure,Audience of the Future (ISCF 2),Digital Catapult Services Ltd,98756788,89044.63,Research Grant Expenditure
BEIS,UKRI - AHRC,15/06/2020,Research Grant Expenditure,Follow-on Fund,Roehampton University (University of Roehampton),98756789,0.18,Research Grant Expenditure
BEIS,UKRI - AHRC,15/06/2020,Research Grant Expenditure,Research Grants,Lancaster University,98756790,51246.91,Research Grant Expenditure
BEIS,UKRI - AHRC,15/06/2020,Research Grant Expenditure,Research Grants,University College London,98756791,60900.28,Research Grant Expenditure
BEIS,UKRI - AHRC,15/06/2020,Research Grant Expenditure,Research Grants,Museum of London Archaeology,98756792,18627.24,Research Grant Expenditure
BEIS,UKRI - AHRC,15/06/2020,Research Grant Expenditure,RCUK Global Challenges Research Fund (RCUK GCRF),University of Sussex,98756793,62981.94,Research Grant Expenditure
BEIS,UKRI - AHRC,15/06/2020,Research Grant Expenditure,Research Grants,Manchester Metropolitan University,98756794,51982.25,Research Grant Expenditure
BEIS,UKRI - AHRC,15/06/2020,Research Grant Expenditure,Research Grants,University of Oxford,98756795,60640.03,Research Grant Expenditure
BEIS,UKRI - AHRC,15/06/2020,Research Grant Expenditure,Research Grants,University of Leeds,98756796,68132.30,Research Grant Expenditure
BEIS,UKRI - AHRC,15/06/2020,Research Grant Expenditure,Research Grants,Birmingham City University,98756797,16657.75,Research Grant Expenditure
BEIS,UKRI - AHRC,15/06/2020,Research Grant Expenditure,Research Grants,Cardiff University,98756798,56605.19,Research Grant Expenditure
BEIS,UKRI - AHRC,15/06/2020,Research Grant Expenditure,Research Grants,University of Exeter,98756799,30680.41,Research Grant Expenditure
BEIS,UKRI - AHRC,15/06/2020,Research Grant Expenditure,Research Grants,King's College London,98756800,66532.72,Research Grant Expenditure
BEIS,UKRI - AHRC,15/06/2020,Research Grant Expenditure,Research Grants,University of Oxford,98756801,45778.75,Research Grant Expenditure
BEIS,UKRI - AHRC,15/06/2020,Research Grant Expenditure,Networks & Workshops,University of Northampton,98756802,4018.33,Research Grant Expenditure
BEIS,UKRI - AHRC,15/06/2020,Research Grant Expenditure,Research Grants,University of Sheffield,98756803,22241.13,Research Grant Expenditure
BEIS,UKRI - AHRC,15/06/2020,Research Grant Expenditure,Research Grants,University of Oxford,98756804,71990.78,Research Grant Expenditure
BEIS,UKRI - AHRC,15/06/2020,Research Grant Expenditure,Research Grants,University of Bristol GRANT,98756805,64544.86,Research Grant Expenditure
BEIS,UKRI - AHRC,15/06/2020,Research Grant Expenditure,Research Grants,University of Reading,98756806,57592.32,Research Grant Expenditure
BEIS,UKRI - AHRC,15/06/2020,Research Grant Expenditure,Networks & Workshops,University of Exeter,98756807,3775.77,Research Grant Expenditure
BEIS,UKRI - AHRC,15/06/2020,Research Grant Expenditure,Newton Programme,"City, University of London",98756808,28979.90,Research Grant Expenditure
BEIS,UKRI - AHRC,15/06/2020,Research Grant Expenditure,Networks & Workshops,University of Edinburgh,98756809,4501.94,Research Grant Expenditure
BEIS,UKRI - AHRC,15/06/2020,Research Grant Expenditure,Networks & Workshops,University of Warwick,98756810,4521.93,Research Grant Expenditure
BEIS,UKRI - AHRC,15/06/2020,Research Grant Expenditure,Networks & Workshops,The University of Manchester,98756811,4748.63,Research Grant Expenditure
BEIS,UKRI - AHRC,15/06/2020,Research Grant Expenditure,Networks & Workshops,University of Reading,98756812,6037.93,Research Grant Expenditure
BEIS,UKRI - AHRC,15/06/2020,Research Grant Expenditure,Networks & Workshops,University of Exeter,98756813,5548.88,Research Grant Expenditure
BEIS,UKRI - AHRC,15/06/2020,Research Grant Expenditure,Networks & Workshops,University of Hull,98756814,5793.35,Research Grant Expenditure
BEIS,UKRI - AHRC,15/06/2020,Research Grant Expenditure,Networks & Workshops,Nottingham Trent University,98756815,4533.87,Research Grant Expenditure
BEIS,UKRI - AHRC,15/06/2020,Research Grant Expenditure,Networks & Workshops,University of Liverpool,98756816,5847.01,Research Grant Expenditure
BEIS,UKRI - AHRC,15/06/2020,Research Grant Expenditure,Networks & Workshops,Loughborough University,98756817,4453.73,Research Grant Expenditure
BEIS,UKRI - AHRC,15/06/2020,Research Grant Expenditure,Networks & Workshops,University College London,98756818,4859.13,Research Grant Expenditure
BEIS,UKRI - AHRC,15/06/2020,Research Grant Expenditure,Networks & Workshops,University of Warwick,98756819,4895.55,Research Grant Expenditure
BEIS,UKRI - AHRC,15/06/2020,Research Grant Expenditure,Networks & Workshops,Courtauld Institute of Art,98756820,7401.23,Research Grant Expenditure
BEIS,UKRI - AHRC,15/06/2020,Research Grant Expenditure,Networks & Workshops,University of Warwick,98756821,4535.23,Research Grant Expenditure
BEIS,UKRI - AHRC,15/06/2020,Research Grant Expenditure,Networks & Workshops,University of Hull,98756822,4918.18,Research Grant Expenditure
BEIS,UKRI - AHRC,15/06/2020,Research Grant Expenditure,Research Grants,Anglia Ruskin University,98756823,29020.59,Research Grant Expenditure
BEIS,UKRI - AHRC,15/06/2020,Research Grant Expenditure,Research Grants,Guildhall School of Music & Drama,98756824,69428.54,Research Grant Expenditure
BEIS,UKRI - AHRC,15/06/2020,Research Grant Expenditure,Research Grants,The University of Manchester,98756825,75616.77,Research Grant Expenditure
BEIS,UKRI - AHRC,15/06/2020,Research Grant Expenditure,Cultural Values Project,University of Leeds,98756826,100809.87,Research Grant Expenditure
BEIS,UKRI - AHRC,15/06/2020,Research Grant Expenditure,Research Grants,University of York,98756827,72454.92,Research Grant Expenditure
BEIS,UKRI - AHRC,15/06/2020,Research Grant Expenditure,Research Grants,University of Oxford,98756828,31321.20,Research Grant Expenditure
BEIS,UKRI - AHRC,15/06/2020,Research Grant Expenditure,Research Grants,The University of Manchester,98756829,17086.75,Research Grant Expenditure
BEIS,UKRI - AHRC,15/06/2020,Research Grant Expenditure,Research Grants,University of Liverpool,98756830,43857.01,Research Grant Expenditure
BEIS,UKRI - AHRC,15/06/2020,Research Grant Expenditure,Research Grants,The University of Manchester,98756831,77522.72,Research Grant Expenditure
BEIS,UKRI - AHRC,15/06/2020,Research Grant Expenditure,Research Grants,University of Southampton GRANT,98756832,55136.32,Research Grant Expenditure
BEIS,UKRI - AHRC,15/06/2020,Research Grant Expenditure,Research Grants,University of Liverpool,98756833,69659.94,Research Grant Expenditure
BEIS,UKRI - AHRC,15/06/2020,Research Grant Expenditure,Newton Programme,University of Bedfordshire,98756834,17318.53,Research Grant Expenditure
BEIS,UKRI - AHRC,15/06/2020,Research Grant Expenditure,Newton Programme,University of Exeter,98756835,9212.61,Research Grant Expenditure
BEIS,UKRI - AHRC,15/06/2020,Research Grant Expenditure,Newton Programme,University of Nottingham,98756836,12096.94,Research Grant Expenditure
BEIS,UKRI - AHRC,15/06/2020,Research Grant Expenditure,Research Grants,University of Durham,98756837,28214.80,Research Grant Expenditure
BEIS,UKRI - AHRC,15/06/2020,Research Grant Expenditure,Newton Programme,University of Durham,98756838,12075.60,Research Grant Expenditure
BEIS,UKRI - AHRC,15/06/2020,Research Grant Expenditure,Newton Programme,University of Sussex,98756839,11947.19,Research Grant Expenditure
BEIS,UKRI - AHRC,15/06/2020,Research Grant Expenditure,Global Challenges Research Fund (GCRF),Aberystwyth University,98756840,0.02,Research Grant Expenditure
BEIS,UKRI - AHRC,15/06/2020,Research Grant Expenditure,Global Challenges Research Fund (GCRF),University of Cambridge,98756841,0.07,Research Grant Expenditure
BEIS,UKRI - AHRC,15/06/2020,Research Grant Expenditure,Global Challenges Research Fund (GCRF),University of Derby,98756842,0.07,Research Grant Expenditure
BEIS,UKRI - AHRC,15/06/2020,Research Grant Expenditure,Global Challenges Research Fund (GCRF),University of Lincoln,98756843,0.02,Research Grant Expenditure
BEIS,UKRI - AHRC,15/06/2020,Research Grant Expenditure,Global Challenges Research Fund (GCRF),University of East Anglia,98756844,0.06,Research Grant Expenditure
BEIS,UKRI - AHRC,15/06/2020,Research Grant Expenditure,Networks & Workshops,University of Leeds,98756845,8089.98,Research Grant Expenditure
BEIS,UKRI - AHRC,15/06/2020,Research Grant Expenditure,Research Grants,University of Reading,98756846,64239.04,Research Grant Expenditure
BEIS,UKRI - AHRC,15/06/2020,Research Grant Expenditure,Research Grants,The University of Manchester,98756847,30311.54,Research Grant Expenditure
BEIS,UKRI - AHRC,15/06/2020,Research Grant Expenditure,Research Grants,Queen Mary University of London,98756848,37842.36,Research Grant Expenditure
BEIS,UKRI - AHRC,15/06/2020,Research Grant Expenditure,Follow-on Fund,Nottingham Trent University,98756849,80350.36,Research Grant Expenditure
BEIS,UKRI - AHRC,15/06/2020,Research Grant Expenditure,Follow-on Fund,University of Leeds,98756850,6048.16,Research Grant Expenditure
BEIS,UKRI - AHRC,15/06/2020,Research Grant Expenditure,Networks & Workshops,Oxford Brookes University,98756851,5353.44,Research Grant Expenditure
BEIS,UKRI - AHRC,15/06/2020,Research Grant Expenditure,Research Grants,University of York,98756852,45446.91,Research Grant Expenditure
BEIS,UKRI - AHRC,15/06/2020,Research Grant Expenditure,Research Grants,University of Newcastle Upon Tyne,98756853,61780.75,Research Grant Expenditure
BEIS,UKRI - AHRC,15/06/2020,Research Grant Expenditure,Research Grants,Cardiff University,98756854,25195.40,Research Grant Expenditure
BEIS,UKRI - AHRC,15/06/2020,Research Grant Expenditure,Research Grants,Cardiff University,98756855,58387.45,Research Grant Expenditure
BEIS,UKRI - AHRC,15/06/2020,Research Grant Expenditure,Research Grants,University of Lincoln,98756856,12477.64,Research Grant Expenditure
BEIS,UKRI - AHRC,15/06/2020,Research Grant Expenditure,Networks & Workshops,Birmingham City University,98756857,8900.81,Research Grant Expenditure
BEIS,UKRI - AHRC,15/06/2020,Research Grant Expenditure,Networks & Workshops,University of Nottingham,98756858,4079.57,Research Grant Expenditure
BEIS,UKRI - AHRC,15/06/2020,Research Grant Expenditure,Networks & Workshops,"Royal Holloway, University of London",98756859,3049.19,Research Grant Expenditure
BEIS,UKRI - AHRC,15/06/2020,Research Grant Expenditure,Research Grants,University of Newcastle Upon Tyne,98756860,61754.43,Research Grant Expenditure
BEIS,UKRI - AHRC,15/06/2020,Research Grant Expenditure,Research Grants,University of Cambridge,98756861,55703.88,Research Grant Expenditure
BEIS,UKRI - AHRC,15/06/2020,Research Grant Expenditure,Research Grants,University of Oxford,98756862,45087.91,Research Grant Expenditure
BEIS,UKRI - AHRC,15/06/2020,Research Grant Expenditure,Research Grants,University of Glasgow,98756863,57249.20,Research Grant Expenditure
BEIS,UKRI - AHRC,15/06/2020,Research Grant Expenditure,Global Challenges Research Fund (GCRF),University of Bath,98756864,0.01,Research Grant Expenditure
BEIS,UKRI - AHRC,15/06/2020,Research Grant Expenditure,Research Grants,University of South Wales,98756865,31917.96,Research Grant Expenditure
BEIS,UKRI - AHRC,15/06/2020,Research Grant Expenditure,Research Grants,University of Leicester,98756866,76017.70,Research Grant Expenditure
BEIS,UKRI - AHRC,15/06/2020,Research Grant Expenditure,Research Grants,University of Oxford,98756867,52425.59,Research Grant Expenditure
BEIS,UKRI - AHRC,15/06/2020,Research Grant Expenditure,RCUK Global Challenges Research Fund (RCUK GCRF),University of Bristol GRANT,98756868,44008.19,Research Grant Expenditure
BEIS,UKRI - AHRC,15/06/2020,Research Grant Expenditure,RCUK Global Challenges Research Fund (RCUK GCRF),The Open University,98756869,45294.42,Research Grant Expenditure
BEIS,UKRI - AHRC,15/06/2020,Research Grant Expenditure,RCUK Global Challenges Research Fund (RCUK GCRF),University of Sheffield,98756870,41136.58,Research Grant Expenditure
BEIS,UKRI - AHRC,15/06/2020,Research Grant Expenditure,RCUK Global Challenges Research Fund (RCUK GCRF),University of Leeds,98756871,39729.78,Research Grant Expenditure
BEIS,UKRI - AHRC,15/06/2020,Research Grant Expenditure,RCUK Global Challenges Research Fund (RCUK GCRF),University of Nottingham,98756872,43549.11,Research Grant Expenditure
BEIS,UKRI - AHRC,15/06/2020,Research Grant Expenditure,RCUK Global Challenges Research Fund (RCUK GCRF),University College London,98756873,346.63,Research Grant Expenditure
BEIS,UKRI - AHRC,15/06/2020,Research Grant Expenditure,RCUK Global Challenges Research Fund (RCUK GCRF),University of Exeter,98756874,42892.78,Research Grant Expenditure
BEIS,UKRI - AHRC,15/06/2020,Research Grant Expenditure,Networks & Workshops,University of Aberdeen,98756875,6828.84,Research Grant Expenditure
BEIS,UKRI - AHRC,15/06/2020,Research Grant Expenditure,RCUK Global Challenges Research Fund (RCUK GCRF),University of St Andrews,98756876,43041.80,Research Grant Expenditure
BEIS,UKRI - AHRC,15/06/2020,Research Grant Expenditure,Commissioned Research,University of Nottingham,98756877,83042.11,Research Grant Expenditure
BEIS,UKRI - AHRC,15/06/2020,Research Grant Expenditure,Global Challenges Research Fund (GCRF),Manchester Metropolitan University,98756878,32252.81,Research Grant Expenditure
BEIS,UKRI - AHRC,15/06/2020,Research Grant Expenditure,RCUK Global Challenges Research Fund (RCUK GCRF),University of Birmingham GRANT,98756879,107351.82,Research Grant Expenditure
BEIS,UKRI - AHRC,15/06/2020,Research Grant Expenditure,RCUK Global Challenges Research Fund (RCUK GCRF),Aberystwyth University,98756880,115602.02,Research Grant Expenditure
BEIS,UKRI - AHRC,15/06/2020,Research Grant Expenditure,Global Challenges Research Fund (GCRF),Lancaster University,98756881,12059.46,Research Grant Expenditure
BEIS,UKRI - AHRC,15/06/2020,Research Grant Expenditure,Global Challenges Research Fund (GCRF),Coventry University,98756882,13187.15,Research Grant Expenditure
BEIS,UKRI - AHRC,15/06/2020,Research Grant Expenditure,RCUK Global Challenges Research Fund (RCUK GCRF),Keele University,98756883,115567.96,Research Grant Expenditure
BEIS,UKRI - AHRC,15/06/2020,Research Grant Expenditure,RCUK Global Challenges Research Fund (RCUK GCRF),UNIVERSITY OF ULSTER,98756884,130423.69,Research Grant Expenditure
BEIS,UKRI - AHRC,15/06/2020,Research Grant Expenditure,RCUK Global Challenges Research Fund (RCUK GCRF),University of Birmingham GRANT,98756885,115318.03,Research Grant Expenditure
BEIS,UKRI - AHRC,15/06/2020,Research Grant Expenditure,Global Challenges Research Fund (GCRF),University of Newcastle Upon Tyne,98756886,11316.43,Research Grant Expenditure
BEIS,UKRI - AHRC,15/06/2020,Research Grant Expenditure,Global Challenges Research Fund (GCRF),University of Durham,98756887,12990.52,Research Grant Expenditure
BEIS,UKRI - AHRC,15/06/2020,Research Grant Expenditure,Global Challenges Research Fund (GCRF),University of Leeds,98756888,13813.90,Research Grant Expenditure
BEIS,UKRI - AHRC,15/06/2020,Research Grant Expenditure,Global Challenges Research Fund (GCRF),University of Surrey,98756889,13539.43,Research Grant Expenditure
BEIS,UKRI - AHRC,15/06/2020,Research Grant Expenditure,Landscape Decisions (SPF),University of Aberdeen,98756890,2221.71,Research Grant Expenditure
BEIS,UKRI - AHRC,15/06/2020,Research Grant Expenditure,Landscape Decisions (SPF),Keele University,98756891,8481.97,Research Grant Expenditure
BEIS,UKRI - AHRC,15/06/2020,Research Grant Expenditure,Landscape Decisions (SPF),University of Newcastle Upon Tyne,98756892,1546.04,Research Grant Expenditure
BEIS,UKRI - AHRC,15/06/2020,Research Grant Expenditure,Landscape Decisions (SPF),Sheffield Hallam University,98756893,2075.35,Research Grant Expenditure
BEIS,UKRI - AHRC,15/06/2020,Research Grant Expenditure,Landscape Decisions (SPF),University of Reading,98756894,1923.00,Research Grant Expenditure
BEIS,UKRI - AHRC,15/06/2020,Research Grant Expenditure,Landscape Decisions (SPF),Edge Hill University College,98756895,2071.70,Research Grant Expenditure
BEIS,UKRI - AHRC,15/06/2020,Research Grant Expenditure,Landscape Decisions (SPF),Middlesex University,98756896,1745.00,Research Grant Expenditure
BEIS,UKRI - AHRC,15/06/2020,Research Grant Expenditure,Landscape Decisions (SPF),Lancaster University,98756897,1344.98,Research Grant Expenditure
BEIS,UKRI - AHRC,15/06/2020,Research Grant Expenditure,RCUK Global Challenges Research Fund (RCUK GCRF),Queen Mary University of London,98756898,44607.03,Research Grant Expenditure
BEIS,UKRI - AHRC,15/06/2020,Research Grant Expenditure,RCUK Global Challenges Research Fund (RCUK GCRF),University of Newcastle Upon Tyne,98756899,46630.21,Research Grant Expenditure
BEIS,UKRI - AHRC,15/06/2020,Research Grant Expenditure,RCUK Global Challenges Research Fund (RCUK GCRF),University of York,98756900,38889.50,Research Grant Expenditure
BEIS,UKRI - AHRC,15/06/2020,Research Grant Expenditure,RCUK Global Challenges Research Fund (RCUK GCRF),University of Exeter,98756901,41076.35,Research Grant Expenditure
BEIS,UKRI - AHRC,15/06/2020,Research Grant Expenditure,Global Challenges Research Fund (GCRF),University of Essex,98756902,32483.78,Research Grant Expenditure
BEIS,UKRI - AHRC,15/06/2020,Research Grant Expenditure,Global Challenges Research Fund (GCRF),University of Essex,98756902,32483.78,Research Grant Expenditure
BEIS,UKRI - AHRC,15/06/2020,Research Grant Expenditure,Global Challenges Research Fund (GCRF),University of Cambridge,98756903,13392.51,Research Grant Expenditure
BEIS,UKRI - AHRC,15/06/2020,Research Grant Expenditure,RCUK Global Challenges Research Fund (RCUK GCRF),University of Bath,98756904,113681.32,Research Grant Expenditure
BEIS,UKRI - AHRC,15/06/2020,Research Grant Expenditure,RCUK Global Challenges Research Fund (RCUK GCRF),The Open University,98756905,117301.90,Research Grant Expenditure
BEIS,UKRI - AHRC,15/06/2020,Research Grant Expenditure,RCUK Global Challenges Research Fund (RCUK GCRF),University of Exeter,98756906,116683.55,Research Grant Expenditure
BEIS,UKRI - AHRC,15/06/2020,Research Grant Expenditure,Global Challenges Research Fund (GCRF),University of Exeter,98756907,13121.17,Research Grant Expenditure
BEIS,UKRI - AHRC,15/06/2020,Research Grant Expenditure,Global Challenges Research Fund (GCRF),University of Westminster,98756908,13392.86,Research Grant Expenditure
BEIS,UKRI - AHRC,15/06/2020,Research Grant Expenditure,RCUK Global Challenges Research Fund (RCUK GCRF),International Institute For Environment And Development,98756909,43478.97,Research Grant Expenditure
BEIS,UKRI - AHRC,15/06/2020,Research Grant Expenditure,Global Challenges Research Fund (GCRF),University of Liverpool,98756910,12085.53,Research Grant Expenditure
BEIS,UKRI - AHRC,15/06/2020,Research Grant Expenditure,Global Challenges Research Fund (GCRF),Institute of Development Studies,98756911,13449.48,Research Grant Expenditure
BEIS,UKRI - AHRC,15/06/2020,Research Grant Expenditure,Global Challenges Research Fund (GCRF),Lancaster University,98756912,13660.92,Research Grant Expenditure
BEIS,UKRI - AHRC,15/06/2020,Research Grant Expenditure,Global Challenges Research Fund (GCRF),Cardiff University,98756913,25491.46,Research Grant Expenditure
BEIS,UKRI - AHRC,15/06/2020,Research Grant Expenditure,Networks & Workshops,University of Leicester,98756914,16913.96,Research Grant Expenditure
BEIS,UKRI - AHRC,15/06/2020,Research Grant Expenditure,Networks & Workshops,University of Exeter,98756915,3961.55,Research Grant Expenditure
BEIS,UKRI - AHRC,15/06/2020,Research Grant Expenditure,Landscape Decisions (SPF),University of Exeter,98756916,2080.78,Research Grant Expenditure
BEIS,UKRI - AHRC,15/06/2020,Research Grant Expenditure,Landscape Decisions (SPF),University of Leicester,98756918,2082.13,Research Grant Expenditure
BEIS,UKRI - AHRC,15/06/2020,Research Grant Expenditure,Landscape Decisions (SPF),Manchester Metropolitan University,98756919,1967.30,Research Grant Expenditure
BEIS,UKRI - AHRC,15/06/2020,Research Grant Expenditure,Landscape Decisions (SPF),University of Newcastle Upon Tyne,98756920,1830.43,Research Grant Expenditure
BEIS,UKRI - AHRC,15/06/2020,Research Grant Expenditure,Landscape Decisions (SPF),Historic Buildings and Monuments Commission for England T/A Historic England,98756921,8039.36,Research Grant Expenditure
BEIS,UKRI - AHRC,15/06/2020,Research Grant Expenditure,Landscape Decisions (SPF),University of Newcastle Upon Tyne,98756922,2079.01,Research Grant Expenditure
BEIS,UKRI - AHRC,15/06/2020,Research Grant Expenditure,Global Challenges Research Fund (GCRF),Lancaster University,98756923,27308.53,Research Grant Expenditure
BEIS,UKRI - AHRC,15/06/2020,Research Grant Expenditure,Landscape Decisions (SPF),Glasgow School of Art,98756924,8768.02,Research Grant Expenditure
BEIS,UKRI - AHRC,15/06/2020,Research Grant Expenditure,Global Challenges Research Fund (GCRF),Leeds Beckett University,98756925,31751.85,Research Grant Expenditure
BEIS,UKRI - AHRC,15/06/2020,Research Grant Expenditure,Global Challenges Research Fund (GCRF),Sheffield Hallam University,98756926,32448.85,Research Grant Expenditure
BEIS,UKRI - AHRC,15/06/2020,Research Grant Expenditure,Research Grants,University of Leicester,98756927,43058.65,Research Grant Expenditure
BEIS,UKRI - AHRC,15/06/2020,Research Grant Expenditure,Research Grants,Loughborough University,98756928,27206.27,Research Grant Expenditure
BEIS,UKRI - AHRC,15/06/2020,Research Grant Expenditure,Research Grants,Loughborough University,98756929,33436.18,Research Grant Expenditure
BEIS,UKRI - AHRC,15/06/2020,Research Grant Expenditure,Research Grants,University of Sussex,98756930,65588.32,Research Grant Expenditure
BEIS,UKRI - AHRC,15/06/2020,Research Grant Expenditure,Towards a National Collection (SPF),Science Museum Group,98756931,20137.70,Research Grant Expenditure
BEIS,UKRI - AHRC,15/06/2020,Research Grant Expenditure,Towards a National Collection (SPF),The National Gallery,98756932,25208.80,Research Grant Expenditure
BEIS,UKRI - AHRC,15/06/2020,Research Grant Expenditure,Research Grants,University of Leeds,98756933,41610.53,Research Grant Expenditure
BEIS,UKRI - AHRC,15/06/2020,Research Grant Expenditure,Research Grants,The British Museum,98756934,50848.61,Research Grant Expenditure
BEIS,UKRI - AHRC,15/06/2020,Research Grant Expenditure,Research Grants,University of Newcastle Upon Tyne,98756935,61728.58,Research Grant Expenditure
BEIS,UKRI - AHRC,15/06/2020,Research Grant Expenditure,Follow-on Fund,University of Nottingham,98756936,20038.00,Research Grant Expenditure
BEIS,UKRI - AHRC,15/06/2020,Research Grant Expenditure,Follow-on Fund,University of Nottingham,98756936,20038.00,Research Grant Expenditure
BEIS,UKRI - AHRC,15/06/2020,Research Grant Expenditure,Research Grants,University of Sussex,98756937,12362.15,Research Grant Expenditure
BEIS,UKRI - AHRC,15/06/2020,Research Grant Expenditure,Research Grants,University of Birmingham GRANT,98756938,24221.26,Research Grant Expenditure
BEIS,UKRI - AHRC,15/06/2020,Research Grant Expenditure,Global Challenges Research Fund (GCRF),University of Leeds,98756939,12127.56,Research Grant Expenditure
BEIS,UKRI - AHRC,15/06/2020,Research Grant Expenditure,Towards a National Collection (SPF),The British Library,98756940,20981.12,Research Grant Expenditure
BEIS,UKRI - AHRC,15/06/2020,Research Grant Expenditure,Research Grants,Liverpool John Moores University,98756941,24453.96,Research Grant Expenditure
BEIS,UKRI - AHRC,15/06/2020,Research Grant Expenditure,Towards a National Collection (SPF),Tate Galleries,98756942,26751.85,Research Grant Expenditure
BEIS,UKRI - AHRC,15/06/2020,Research Grant Expenditure,Towards a National Collection (SPF),The National Archives,98756943,21990.38,Research Grant Expenditure
BEIS,UKRI - AHRC,15/06/2020,Research Grant Expenditure,Modern Slavery and Human Rights (SPF),British Institute Of International And Comparative Law,98756944,214445.63,Research Grant Expenditure
BEIS,UKRI - AHRC,15/06/2020,Research Grant Expenditure,Creative Economy,Loughborough University,98756945,67488.82,Research Grant Expenditure
BEIS,UKRI - AHRC,15/06/2020,Research Grant Expenditure,Creative Economy,Loughborough University,98756945,67488.82,Research Grant Expenditure
BEIS,UKRI - AHRC,15/06/2020,Research Grant Expenditure,Landscape Decisions (SPF),Glasgow School of Art,98756946,20849.10,Research Grant Expenditure
BEIS,UKRI - AHRC,15/06/2020,Research Grant Expenditure,Landscape Decisions (SPF),University of Exeter,98756947,4482.46,Research Grant Expenditure
BEIS,UKRI - AHRC,15/06/2020,Research Grant Expenditure,Landscape Decisions (SPF),University of Reading,98756948,4632.03,Research Grant Expenditure
BEIS,UKRI - AHRC,15/06/2020,Research Grant Expenditure,Landscape Decisions (SPF),Keele University,98756949,4331.37,Research Grant Expenditure
BEIS,UKRI - AHRC,15/06/2020,Research Grant Expenditure,Funds for International Collaboration (FIC 20 US),University of Nottingham,98756950,50201.64,Research Grant Expenditure
BEIS,UKRI - AHRC,15/06/2020,Research Grant Expenditure,Towards a National Collection (SPF),Victoria and Albert Museum,98756951,27001.95,Research Grant Expenditure
BEIS,UKRI - AHRC,15/06/2020,Research Grant Expenditure,Towards a National Collection (SPF),Historic Environment Scotland (GRANT),98756952,89586.60,Research Grant Expenditure
BEIS,UKRI - AHRC,15/06/2020,Research Grant Expenditure,Towards a National Collection (SPF),The British Library,98756953,22660.87,Research Grant Expenditure
BEIS,UKRI - AHRC,15/06/2020,Research Grant Expenditure,Networks & Workshops,Bath Spa University,98756954,4622.73,Research Grant Expenditure
BEIS,UKRI - AHRC,15/06/2020,Research Grant Expenditure,Landscape Decisions (SPF),Edge Hill University College,98756955,4665.09,Research Grant Expenditure
BEIS,UKRI - AHRC,15/06/2020,Research Grant Expenditure,Landscape Decisions (SPF),Manchester Metropolitan University,98756956,4624.57,Research Grant Expenditure
BEIS,UKRI - AHRC,15/06/2020,Research Grant Expenditure,Towards a National Collection (SPF),The National Archives,98756957,32257.11,Research Grant Expenditure
BEIS,UKRI - AHRC,15/06/2020,Research Grant Expenditure,RCUK Global Challenges Research Fund (RCUK GCRF),University of Bristol GRANT,98756958,114626.54,Research Grant Expenditure
BEIS,UKRI - AHRC,15/06/2020,Research Grant Expenditure,Commissioned Research,University of Newcastle Upon Tyne,98756959,60439.86,Research Grant Expenditure
BEIS,UKRI - AHRC,15/06/2020,Research Grant Expenditure,Commissioned Research,University of Newcastle Upon Tyne,98756959,60439.86,Research Grant Expenditure
BEIS,UKRI - AHRC,15/06/2020,Research Grant Expenditure,Follow-on Fund,University of Surrey,98756960,19833.54,Research Grant Expenditure
BEIS,UKRI - AHRC,15/06/2020,Research Grant Expenditure,Global Challenges Research Fund (GCRF),University of Newcastle Upon Tyne,98756961,34062.46,Research Grant Expenditure
BEIS,UKRI - AHRC,15/06/2020,Research Grant Expenditure,Newton Programme,University of Brighton,98756962,23509.44,Research Grant Expenditure
BEIS,UKRI - AHRC,15/06/2020,Research Grant Expenditure,Newton Programme,University of Bristol GRANT,98756963,11439.99,Research Grant Expenditure
BEIS,UKRI - AHRC,15/06/2020,Research Grant Expenditure,Research Grants,University of Cambridge,98756964,40423.59,Research Grant Expenditure
BEIS,UKRI - AHRC,15/06/2020,Research Grant Expenditure,Digital Transformations,University of Bradford,98756965,-0.11,Research Grant Expenditure
BEIS,UKRI - AHRC,15/06/2020,Research Grant Expenditure,Translating Cultures,University of Birmingham GRANT,98756966,-800.00,Research Grant Expenditure
BEIS,UKRI - AHRC,15/06/2020,Research Grant Expenditure,Research Grants,University of Exeter,98756967,-128.00,Research Grant Expenditure
BEIS,UKRI - AHRC,15/06/2020,Research Grant Expenditure,Care for the Future,University College London,98756968,-19949.75,Research Grant Expenditure
BEIS,UKRI - AHRC,15/06/2020,Research Grant Expenditure,Research Grants,University College London,98756969,-898.36,Research Grant Expenditure
BEIS,UKRI - AHRC,15/06/2020,Research Grant Expenditure,Research Grants,University of Exeter,98756970,-10441.49,Research Grant Expenditure
BEIS,UKRI - AHRC,15/06/2020,Research Grant Expenditure,Research Grants,University College London,98756971,29914.76,Research Grant Expenditure
BEIS,UKRI - AHRC,15/06/2020,Research Grant Expenditure,Research Grants,University of Oxford,98756972,41100.29,Research Grant Expenditure
BEIS,UKRI - AHRC,15/06/2020,Research Grant Expenditure,Connected Communities Programme,University of East Anglia,98756973,10380.78,Research Grant Expenditure
BEIS,UKRI - AHRC,15/06/2020,Research Grant Expenditure,Research Grants,University of Kent,98756974,56911.60,Research Grant Expenditure
BEIS,UKRI - AHRC,15/06/2020,Research Grant Expenditure,Research Grants,University of Warwick,98756975,4325.69,Research Grant Expenditure
BEIS,UKRI - AHRC,15/06/2020,Research Grant Expenditure,Research Grants,University of Durham,98756976,52301.80,Research Grant Expenditure
BEIS,UKRI - AHRC,15/06/2020,Research Grant Expenditure,Research Grants,"Royal Holloway, University of London",98756977,60919.69,Research Grant Expenditure
BEIS,UKRI - AHRC,15/06/2020,Research Grant Expenditure,Research Grants,University of Bristol GRANT,98756978,29462.03,Research Grant Expenditure
BEIS,UKRI - AHRC,15/06/2020,Research Grant Expenditure,RCUK Newton Programme,University of Newcastle Upon Tyne,98756979,-14210.49,Research Grant Expenditure
BEIS,UKRI - AHRC,15/06/2020,Research Grant Expenditure,Global Challenges Research Fund (GCRF),London School of Economics and Political Science,98756980,56449.56,Research Grant Expenditure
BEIS,UKRI - AHRC,15/06/2020,Research Grant Expenditure,Research Grants,University of Cambridge,98756981,29180.28,Research Grant Expenditure
BEIS,UKRI - AHRC,15/06/2020,Research Grant Expenditure,Research Grants,Queen's University Belfast GRANT,98756982,51018.30,Research Grant Expenditure
BEIS,UKRI - AHRC,15/06/2020,Capital Grants & Equipment to HEIs,Global Challenges Research Fund (GCRF),"Royal Holloway, University of London",98756983,-1600.00,Capital Grants & Equipment to HEIs
BEIS,UKRI - AHRC,15/06/2020,Research Grant Expenditure,Global Challenges Research Fund (GCRF),"Royal Holloway, University of London",98756983,12732.42,Research Grant Expenditure
BEIS,UKRI - AHRC,15/06/2020,Research Grant Expenditure,Research Grants,University of Birmingham GRANT,98756984,4479.77,Research Grant Expenditure
BEIS,UKRI - AHRC,15/06/2020,Research Grant Expenditure,Networks & Workshops,Manchester Metropolitan University,98756985,316.68,Research Grant Expenditure
BEIS,UKRI - AHRC,15/06/2020,Research Grant Expenditure,Research Grants,University of Sheffield,98756986,15357.75,Research Grant Expenditure
BEIS,UKRI - AHRC,15/06/2020,Research Grant Expenditure,Research Grants,UNIVERSITY OF ULSTER,98756987,11767.31,Research Grant Expenditure
BEIS,UKRI - AHRC,15/06/2020,Research Grant Expenditure,Research Grants,University of Surrey,98756988,20913.25,Research Grant Expenditure
BEIS,UKRI - AHRC,15/06/2020,Research Grant Expenditure,Research Grants,University of Newcastle Upon Tyne,98756989,18086.50,Research Grant Expenditure
BEIS,UKRI - AHRC,15/06/2020,Research Grant Expenditure,Research Grants,University of Reading,98756990,24023.94,Research Grant Expenditure
BEIS,UKRI - AHRC,15/06/2020,Research Grant Expenditure,Research Grants,University of Exeter,98756991,2137.12,Research Grant Expenditure
BEIS,UKRI - AHRC,15/06/2020,Research Grant Expenditure,Networks & Workshops,University of Warwick,98756992,3952.34,Research Grant Expenditure
BEIS,UKRI - AHRC,15/06/2020,Research Grant Expenditure,Networks & Workshops,University of Exeter,98756993,-265.92,Research Grant Expenditure
BEIS,UKRI - AHRC,15/06/2020,Research Grant Expenditure,Networks & Workshops,University of Liverpool,98756994,-8860.97,Research Grant Expenditure
BEIS,UKRI - AHRC,15/06/2020,Research Grant Expenditure,Research Grants,University of Birmingham GRANT,98756995,7362.06,Research Grant Expenditure
BEIS,UKRI - AHRC,15/06/2020,Research Grant Expenditure,Networks & Workshops,University of Kent,98756996,-1251.87,Research Grant Expenditure
BEIS,UKRI - AHRC,15/06/2020,Research Grant Expenditure,Anti-microbial Resistance (AMR),Glasgow School of Art,98756997,13457.09,Research Grant Expenditure
BEIS,UKRI - AHRC,15/06/2020,Research Grant Expenditure,Anti-microbial Resistance (AMR),University of Cambridge,98756998,13732.55,Research Grant Expenditure
BEIS,UKRI - AHRC,15/06/2020,Research Grant Expenditure,Anti-microbial Resistance (AMR),University of York,98756999,16874.45,Research Grant Expenditure
BEIS,UKRI - AHRC,15/06/2020,Research Grant Expenditure,Anti-microbial Resistance (AMR),University College London,98757000,34855.02,Research Grant Expenditure
BEIS,UKRI - AHRC,15/06/2020,Research Grant Expenditure,Research Grants,University of Leeds,98757001,23092.61,Research Grant Expenditure
BEIS,UKRI - AHRC,15/06/2020,Research Grant Expenditure,Research Grants,University of Birmingham GRANT,98757002,27772.18,Research Grant Expenditure
BEIS,UKRI - AHRC,15/06/2020,Research Grant Expenditure,Networks & Workshops,Cardiff University,98757003,-3346.50,Research Grant Expenditure
BEIS,UKRI - AHRC,15/06/2020,Research Grant Expenditure,Global Challenges Research Fund (GCRF),University of Leeds,98757004,-0.22,Research Grant Expenditure
BEIS,UKRI - AHRC,15/06/2020,Research Grant Expenditure,Global Challenges Research Fund (GCRF),University of York,98757005,-3443.95,Research Grant Expenditure
BEIS,UKRI - AHRC,15/06/2020,Research Grant Expenditure,Global Challenges Research Fund (GCRF),The University of Manchester,98757006,-1423.03,Research Grant Expenditure
BEIS,UKRI - AHRC,15/06/2020,Research Grant Expenditure,Global Challenges Research Fund (GCRF),University of Exeter,98757007,-586.72,Research Grant Expenditure
BEIS,UKRI - AHRC,15/06/2020,Research Grant Expenditure,Global Challenges Research Fund (GCRF),Coventry University,98757008,-3126.47,Research Grant Expenditure
BEIS,UKRI - AHRC,15/06/2020,Research Grant Expenditure,Global Challenges Research Fund (GCRF),King's College London,98757009,-11505.19,Research Grant Expenditure
BEIS,UKRI - AHRC,15/06/2020,Research Grant Expenditure,Global Challenges Research Fund (GCRF),Cardiff University,98757010,-85.11,Research Grant Expenditure
BEIS,UKRI - AHRC,15/06/2020,Research Grant Expenditure,Networks & Workshops,University of Lincoln,98757011,-8719.82,Research Grant Expenditure
BEIS,UKRI - AHRC,15/06/2020,Research Grant Expenditure,Networks & Workshops,University of Glasgow,98757012,-6335.13,Research Grant Expenditure
BEIS,UKRI - AHRC,15/06/2020,Research Grant Expenditure,Research Grants,University of Oxford,98757013,21148.95,Research Grant Expenditure
BEIS,UKRI - AHRC,15/06/2020,Research Grant Expenditure,Global Challenges Research Fund (GCRF),Northumbria University,98757014,-0.02,Research Grant Expenditure
BEIS,UKRI - AHRC,15/06/2020,Research Grant Expenditure,Global Challenges Research Fund (GCRF),University of Leeds,98757015,-0.01,Research Grant Expenditure
BEIS,UKRI - AHRC,15/06/2020,Research Grant Expenditure,Global Challenges Research Fund (GCRF),University of Edinburgh,98757016,-54.42,Research Grant Expenditure
BEIS,UKRI - AHRC,15/06/2020,Research Grant Expenditure,Follow-on Fund,Science Museum Group,98757017,-3919.76,Research Grant Expenditure
BEIS,UKRI - AHRC,15/06/2020,Research Grant Expenditure,Follow-on Fund,University of Exeter,98757018,-32.07,Research Grant Expenditure
BEIS,UKRI - AHRC,15/06/2020,Research Grant Expenditure,Follow-on Fund,University of Bradford,98757019,-590.73,Research Grant Expenditure
BEIS,UKRI - AHRC,15/06/2020,Research Grant Expenditure,Creative Economy,University of Glasgow,98757020,-1632.67,Research Grant Expenditure
BEIS,UKRI - AHRC,15/06/2020,Research Grant Expenditure,Creative Economy,University of Sussex,98757021,-709.59,Research Grant Expenditure
BEIS,UKRI - AHRC,15/06/2020,Research Grant Expenditure,Creative Economy,University of Nottingham,98757023,-1829.91,Research Grant Expenditure
BEIS,UKRI - AHRC,15/06/2020,Research Grant Expenditure,Creative Economy,Goldsmiths College University of London,98757024,-2.03,Research Grant Expenditure
BEIS,UKRI - AHRC,15/06/2020,Research Grant Expenditure,Global Challenges Research Fund (GCRF),Manchester Metropolitan University,98757025,-0.38,Research Grant Expenditure
BEIS,UKRI - AHRC,15/06/2020,Research Grant Expenditure,Global Challenges Research Fund (GCRF),University of Bath,98757026,-930.55,Research Grant Expenditure
BEIS,UKRI - AHRC,15/06/2020,Research Grant Expenditure,Global Challenges Research Fund (GCRF),Lancaster University,98757027,-795.00,Research Grant Expenditure
BEIS,UKRI - AHRC,15/06/2020,Research Grant Expenditure,Follow-on Fund,University of East Anglia,98757028,-1616.10,Research Grant Expenditure
BEIS,UKRI - AHRC,15/06/2020,Research Grant Expenditure,Follow-on Fund,University of Birmingham GRANT,98757029,20130.45,Research Grant Expenditure
BEIS,UKRI - AHRC,15/06/2020,Research Grant Expenditure,Global Challenges Research Fund (GCRF),University of Newcastle Upon Tyne,98757030,-239.15,Research Grant Expenditure
BEIS,UKRI - AHRC,15/06/2020,Research Grant Expenditure,Funds for International Collaboration (FIC 20 US),University of Glasgow,98757031,-6117.48,Research Grant Expenditure
BEIS,UKRI - AHRC,15/06/2020,Research Grant Expenditure,Funds for International Collaboration (FIC 20 US),University of Glasgow,98757032,-5269.71,Research Grant Expenditure
BEIS,UKRI - AHRC,15/06/2020,Research Grant Expenditure,NPIF Research Talent (RCUK Innovation Fellowships),The University of Manchester,98757033,-6420.38,Research Grant Expenditure
BEIS,UKRI - AHRC,15/06/2020,Research Grant Expenditure,NPIF Research Talent (RCUK Innovation Fellowships),University of Glasgow,98757034,-18665.83,Research Grant Expenditure
BEIS,UKRI - AHRC,15/06/2020,Research Grant Expenditure,NPIF Research Talent (RCUK Innovation Fellowships),University of Cambridge,98757035,-6290.84,Research Grant Expenditure
BEIS,UKRI - AHRC,15/06/2020,Research Grant Expenditure,NPIF Research Talent (RCUK Innovation Fellowships),"Royal Holloway, University of London",98757036,-5439.37,Research Grant Expenditure
BEIS,UKRI - AHRC,15/06/2020,Research Grant Expenditure,NPIF Research Talent (RCUK Innovation Fellowships),University of Nottingham,98757037,-8830.10,Research Grant Expenditure
BEIS,UKRI - AHRC,15/06/2020,Research Grant Expenditure,Funds for International Collaboration (FIC 20 US),University of Cambridge,98757039,-5247.88,Research Grant Expenditure
BEIS,UKRI - AHRC,15/06/2020,Research Grant Expenditure,NPIF Research Talent (RCUK Innovation Fellowships),University of Newcastle Upon Tyne,98757040,-20632.45,Research Grant Expenditure
BEIS,UKRI - AHRC,15/06/2020,Research Grant Expenditure,Follow-on Fund,Lancaster University,98757041,-226.08,Research Grant Expenditure
BEIS,UKRI - AHRC,15/06/2020,Research Grant Expenditure,Funds for International Collaboration (FIC 20 US),University of Newcastle Upon Tyne,98757042,-10909.95,Research Grant Expenditure
BEIS,UKRI - AHRC,15/06/2020,Research Grant Expenditure,Networks & Workshops,University of Cambridge,98757043,-6196.09,Research Grant Expenditure
BEIS,UKRI - AHRC,15/06/2020,Research Grant Expenditure,Networks & Workshops,Science Museum Group,98757044,-0.01,Research Grant Expenditure
BEIS,UKRI - AHRC,15/06/2020,Research Grant Expenditure,Follow-on Fund,Queen Mary University of London,98757045,24166.58,Research Grant Expenditure
BEIS,UKRI - AHRC,15/06/2020,Fellowships,Research Fellowships,University of Leicester,98757046,26679.11,Fellowships
BEIS,UKRI - AHRC,15/06/2020,Fellowships,Research Fellowships,University of East Anglia,98757047,23498.29,Fellowships
BEIS,UKRI - AHRC,15/06/2020,Fellowships,Research Fellowships,University of East Anglia,98757048,31178.29,Fellowships
BEIS,UKRI - AHRC,15/06/2020,Fellowships,Research Fellowships,University of East Anglia,98757048,38683.36,Fellowships
BEIS,UKRI - AHRC,15/06/2020,Fellowships,Research Fellowships,University of East Anglia,98757048,37331.97,Fellowships
BEIS,UKRI - AHRC,15/06/2020,Fellowships,Research Fellowships,University of East Anglia,98757048,37575.42,Fellowships
BEIS,UKRI - AHRC,15/06/2020,Fellowships,Research Fellowships,Queen Mary University of London,98757049,25062.65,Fellowships
BEIS,UKRI - AHRC,15/06/2020,Fellowships,Research Fellowships,Goldsmiths College University of London,98757050,28366.51,Fellowships
BEIS,UKRI - AHRC,15/06/2020,Fellowships,Research Fellowships,Bournemouth University GRANT,98757051,26658.24,Fellowships
BEIS,UKRI - AHRC,15/06/2020,Fellowships,Research Fellowships,University of Exeter,98757052,24370.87,Fellowships
BEIS,UKRI - AHRC,15/06/2020,Fellowships,Research Fellowships,University of Brighton,98757053,10808.18,Fellowships
BEIS,UKRI - AHRC,15/06/2020,Fellowships,NPIF Research Talent (RCUK Innovation Fellowships),Northumbria University,98757054,23997.36,Fellowships
BEIS,UKRI - AHRC,15/06/2020,Fellowships,NPIF Research Talent (RCUK Innovation Fellowships),University of the West of England,98757055,26962.86,Fellowships
BEIS,UKRI - AHRC,15/06/2020,Fellowships,NPIF Research Talent (RCUK Innovation Fellowships),University of Brighton,98757056,31778.35,Fellowships
BEIS,UKRI - AHRC,15/06/2020,Fellowships,Research Fellowships,Swansea University,98757057,35556.69,Fellowships
BEIS,UKRI - AHRC,15/06/2020,Fellowships,Research Fellowships,University of Leicester,98757058,23865.09,Fellowships
BEIS,UKRI - AHRC,15/06/2020,Fellowships,Research Fellowships,University of Durham,98757059,26871.10,Fellowships
BEIS,UKRI - AHRC,15/06/2020,Fellowships,Research Fellowships,University of St Andrews,98757060,23401.23,Fellowships
BEIS,UKRI - AHRC,15/06/2020,Fellowships,Research Fellowships,Queen Mary University of London,98757061,26287.38,Fellowships
BEIS,UKRI - AHRC,15/06/2020,Fellowships,NPIF Research Talent (RCUK Innovation Fellowships),Loughborough University,98757062,20699.53,Fellowships
BEIS,UKRI - AHRC,15/06/2020,Fellowships,NPIF Research Talent (RCUK Innovation Fellowships),University of Brighton,98757063,23132.48,Fellowships
BEIS,UKRI - AHRC,15/06/2020,Fellowships,NPIF Research Talent (RCUK Innovation Fellowships),University of Brighton,98757063,23319.84,Fellowships
BEIS,UKRI - AHRC,15/06/2020,Fellowships,NPIF Research Talent (RCUK Innovation Fellowships),University of Brighton,98757063,23319.84,Fellowships
BEIS,UKRI - AHRC,15/06/2020,Fellowships,NPIF Research Talent (RCUK Innovation Fellowships),University of Brighton,98757063,23132.48,Fellowships
BEIS,UKRI - AHRC,15/06/2020,Fellowships,NPIF Research Talent (RCUK Innovation Fellowships),Glasgow School of Art,98757064,25375.05,Fellowships
BEIS,UKRI - AHRC,15/06/2020,Fellowships,NPIF Research Talent (RCUK Innovation Fellowships),University of Sheffield,98757065,22806.11,Fellowships
BEIS,UKRI - AHRC,15/06/2020,Fellowships,NPIF Research Talent (RCUK Innovation Fellowships),University College London,98757066,25114.76,Fellowships
BEIS,UKRI - AHRC,15/06/2020,Fellowships,NPIF Research Talent (RCUK Innovation Fellowships),University of Glasgow,98757067,25391.75,Fellowships
BEIS,UKRI - AHRC,15/06/2020,Fellowships,NPIF Research Talent (RCUK Innovation Fellowships),University of Southampton GRANT,98757068,23183.55,Fellowships
BEIS,UKRI - AHRC,15/06/2020,Fellowships,NPIF Research Talent (RCUK Innovation Fellowships),Birmingham City University,98757069,23053.78,Fellowships
BEIS,UKRI - AHRC,15/06/2020,Fellowships,NPIF Research Talent (RCUK Innovation Fellowships),University of Bristol GRANT,98757070,23789.49,Fellowships
BEIS,UKRI - AHRC,15/06/2020,Fellowships,NPIF Research Talent (RCUK Innovation Fellowships),University of Edinburgh,98757071,21109.97,Fellowships
BEIS,UKRI - AHRC,15/06/2020,Fellowships,Research Fellowships,Queen's University Belfast GRANT,98757072,28811.77,Fellowships
BEIS,UKRI - AHRC,15/06/2020,Fellowships,Research Fellowships,University of Leeds,98757073,34842.52,Fellowships
BEIS,UKRI - AHRC,15/06/2020,Fellowships,Commissioned Research,University of Sussex,98757074,17200.12,Fellowships
BEIS,UKRI - AHRC,15/06/2020,Fellowships,Research Fellowships,University of Surrey,98757075,33785.09,Fellowships
BEIS,UKRI - AHRC,15/06/2020,Fellowships,Research Fellowships,University of Leicester,98757076,23900.17,Fellowships
BEIS,UKRI - AHRC,15/06/2020,Fellowships,Research Fellowships,University of Leeds,98757077,26252.47,Fellowships
BEIS,UKRI - AHRC,15/06/2020,Fellowships,Research Fellowships,University of Leeds,98757078,22957.67,Fellowships
BEIS,UKRI - AHRC,15/06/2020,Fellowships,Research Fellowships,University of Leicester,98757079,28664.80,Fellowships
BEIS,UKRI - AHRC,15/06/2020,Fellowships,Research Fellowships,University of Leicester,98757079,28664.80,Fellowships
BEIS,UKRI - AHRC,15/06/2020,Fellowships,Research Fellowships,The Royal Central School of Speech and Drama,98757080,35065.59,Fellowships
BEIS,UKRI - AHRC,15/06/2020,Fellowships,Commissioned Research,University of Liverpool,98757081,26615.46,Fellowships
BEIS,UKRI - AHRC,15/06/2020,Fellowships,Research Fellowships,The University of Manchester,98757082,36398.12,Fellowships
BEIS,UKRI - AHRC,15/06/2020,Fellowships,Research Fellowships,University of Edinburgh,98757083,32353.06,Fellowships
BEIS,UKRI - AHRC,15/06/2020,Fellowships,Research Fellowships,University of Exeter,98757084,27459.29,Fellowships
BEIS,UKRI - AHRC,15/06/2020,Fellowships,Research Fellowships,University of Exeter,98757085,34235.65,Fellowships
BEIS,UKRI - AHRC,15/06/2020,Fellowships,Research Fellowships,Queen Mary University of London,98757086,25201.02,Fellowships
BEIS,UKRI - AHRC,15/06/2020,Fellowships,Research Fellowships,Bath Spa University,98757087,36388.72,Fellowships
BEIS,UKRI - AHRC,15/06/2020,Fellowships,Research Fellowships,Historic Buildings and Monuments Commission for England T/A Historic England,98757088,18442.04,Fellowships
BEIS,UKRI - AHRC,15/06/2020,Fellowships,Research Fellowships,Royal Conservatoire of Scotland,98757089,40309.77,Fellowships
BEIS,UKRI - AHRC,15/06/2020,Fellowships,Research Fellowships,University of Leeds,98757090,49091.73,Fellowships
BEIS,UKRI - AHRC,15/06/2020,Fellowships,Research Fellowships,University of Dundee,98757091,34359.40,Fellowships
BEIS,UKRI - AHRC,15/06/2020,Fellowships,Research Fellowships,University of Nottingham,98757092,30524.26,Fellowships
BEIS,UKRI - AHRC,15/06/2020,Fellowships,Commissioned Research,University of St Andrews,98757093,25865.73,Fellowships
BEIS,UKRI - AHRC,15/06/2020,Fees (Including College Members),Operations,Unspecified,98766482,230.00,Fees (Including College Members)
BEIS,UKRI - AHRC,15/06/2020,Fees (Including College Members),Operations,Unspecified,98766483,170.00,Fees (Including College Members)
BEIS,UKRI - AHRC,15/06/2020,Non-staff travel and subsistance,FIC- US,Unspecified,98766484,75.20,Non-staff travel and subsistance
BEIS,UKRI - AHRC,15/06/2020,Fees (Including College Members),FIC- US,Unspecified,98766485,170.00,Fees (Including College Members)
BEIS,UKRI - AHRC,15/06/2020,Research Grant Expenditure,Skills Strategy,Clore Leadership Programme,98766565,56814.46,Research Grant Expenditure
BEIS,UKRI - AHRC,15/06/2020,Corporate Events,GCRF - Programme Delivery,Calder Conference Ltd,98767179,4206.11,Corporate Events
BEIS,UKRI - AHRC,16/06/2020,Conferences & Seminars,Operations,Nexus Leeds Ltd,98742448,104.88,Conferences & Seminars
BEIS,UKRI - AHRC,16/06/2020,Conferences & Seminars,Operations,Nexus Leeds Ltd,98742448,1387.20,Conferences & Seminars
BEIS,UKRI - AHRC,16/06/2020,Hospitality,Operations,Nexus Leeds Ltd,98742448,878.04,Hospitality
BEIS,UKRI - AHRC,16/06/2020,Other Programme Costs,JPI Cultural Heritage Project,Unspecified,98751266,760.00,Other Programme Costs
BEIS,UKRI - AHRC,16/06/2020,Research Grant Expenditure,Landscape Decisions (SPF),NERC - British Geological Survey,98756917,1835.48,Research Grant Expenditure
BEIS,UKRI - AHRC,16/06/2020,Research Grant Expenditure,RCUK Global Challenges Research Fund (RCUK GCRF),UKRI - Natural Environment Research Council,98765964,17474.25,Research Grant Expenditure
BEIS,UKRI - AHRC,16/06/2020,Research Grant Expenditure,RCUK Global Challenges Research Fund (RCUK GCRF),UKRI - Natural Environment Research Council,98765974,227515.25,Research Grant Expenditure
BEIS,UKRI - AHRC,16/06/2020,Research Grant Expenditure,RCUK Global Challenges Research Fund (RCUK GCRF),UKRI - Natural Environment Research Council,98765979,180363.17,Research Grant Expenditure
BEIS,UKRI - AHRC,16/06/2020,Research Grant Expenditure,RCUK Global Challenges Research Fund (RCUK GCRF),UKRI - Natural Environment Research Council,98765982,87617.44,Research Grant Expenditure
BEIS,UKRI - AHRC,17/06/2020,Conferences & Seminars,Skills Strategy,Institute for Government,98743875,36573.60,Conferences & Seminars
BEIS,UKRI - AHRC,17/06/2020,Conferences & Seminars,Skills Strategy,Institute for Government,98750787,-25293.60,Conferences & Seminars
BEIS,UKRI - AHRC,18/06/2020,Voluntary Deductions,Balance Sheet,Chargive,98767516,570.83,Voluntary Deductions
BEIS,UKRI - AHRC,18/06/2020,Union Deductions,Balance Sheet,PCS Union,98767518,80.65,Union Deductions
BEIS,UKRI - AHRC,18/06/2020,Unspecified,Balance Sheet,Unspecified,98767519,10441.56,Ees Pension Deductions - JSS
BEIS,UKRI - AHRC,18/06/2020,Unspecified,Balance Sheet,Unspecified,98767520,46364.44,Ers Pension Deductions - JSS
BEIS,UKRI - AHRC,18/06/2020,Unspecified,Balance Sheet,Cabinet Office RM Shared Services,98767521,12.83,Ers Pension Deductions - JSS
BEIS,UKRI - AHRC,18/06/2020,Unspecified,Balance Sheet,Cabinet Office RM Shared Services,98767522,6243.23,Ees Pension Deductions - MyCSP
BEIS,UKRI - AHRC,18/06/2020,Unspecified,Balance Sheet,Cabinet Office RM Shared Services,98767523,31433.75,Ers Pension Deductions - MyCSP
BEIS,UKRI - AHRC,18/06/2020,Ees Pension Deductions - MRC,Balance Sheet,UKRI - Medical Research Council,98767524,134.32,Ees Pension Deductions - MRC
BEIS,UKRI - AHRC,18/06/2020,Ers Pension Deductions - MRC,Balance Sheet,UKRI - Medical Research Council,98767525,309.96,Ers Pension Deductions - MRC
BEIS,UKRI - AHRC,18/06/2020,Conferences & Seminars,Public Policy Research,Westminster Higher Education Forum,98767671,276.00,Conferences & Seminars
BEIS,UKRI - AHRC,18/06/2020,Fees (Including College Members),New Programme Development,Unspecified,98767722,170.00,Fees (Including College Members)
BEIS,UKRI - AHRC,18/06/2020,Non-staff travel and subsistance,Digital Arts and Humanities and Creative Industries,Unspecified,98767723,180.23,Non-staff travel and subsistance
BEIS,UKRI - AHRC,18/06/2020,Fees (Including College Members),New Programme Development,Unspecified,98767724,170.00,Fees (Including College Members)
BEIS,UKRI - AHRC,18/06/2020,Non-staff travel and subsistance,Public Policy Research,Unspecified,98767725,425.90,Non-staff travel and subsistance
BEIS,UKRI - AHRC,18/06/2020,Fees (Including College Members),Public Policy Research,Unspecified,98767726,510.00,Fees (Including College Members)
BEIS,UKRI - AHRC,18/06/2020,Non-staff travel and subsistance,Public Policy Research,Unspecified,98767727,164.10,Non-staff travel and subsistance
BEIS,UKRI - AHRC,18/06/2020,Fees (Including College Members),Public Policy Research,Unspecified,98767728,690.00,Fees (Including College Members)
BEIS,UKRI - AHRC,18/06/2020,Non-staff travel and subsistance,Public Policy Research,Unspecified,98767729,98.29,Non-staff travel and subsistance
BEIS,UKRI - AHRC,18/06/2020,Fees (Including College Members),Public Policy Research,Unspecified,98767730,510.00,Fees (Including College Members)
BEIS,UKRI - AHRC,19/06/2020,T&S UK - Other Charges,Infrastruture Roadmap,Unspecified,98770315,242.71,T&S UK - Other Charges
BEIS,UKRI - AHRC,19/06/2020,Other Programme Costs,SMT,Four Communications Group Ltd,98771033,30600.00,Other Programme Costs
BEIS,UKRI - AHRC,19/06/2020,Other Programme Costs,SMT,Four Communications Group Ltd,98771037,14400.00,Other Programme Costs
BEIS,UKRI - AHRC,22/06/2020,Fees (Including College Members),GCRF - Programme Delivery,Unspecified,98770509,340.00,Fees (Including College Members)
BEIS,UKRI - AHRC,22/06/2020,Fees (Including College Members),GCRF - Programme Delivery,Unspecified,98770510,340.00,Fees (Including College Members)
BEIS,UKRI - AHRC,22/06/2020,Non-staff travel and subsistance,New Programme Development,Unspecified,98770511,192.07,Non-staff travel and subsistance
BEIS,UKRI - AHRC,22/06/2020,Fees (Including College Members),New Programme Development,Unspecified,98770512,170.00,Fees (Including College Members)
BEIS,UKRI - AHRC,23/06/2020,Research Grant Expenditure,NPIF Research Talent (RCUK Innovation Fellowships),UKRI - Engineering & Physical Sciences Research Council,98769773,21690.65,Research Grant Expenditure
BEIS,UKRI - AHRC,23/06/2020,Research Grant Expenditure,NPIF Research Talent (RCUK Innovation Fellowships),UKRI - Engineering & Physical Sciences Research Council,98769777,7063.36,Research Grant Expenditure
BEIS,UKRI - AHRC,23/06/2020,Research Grant Expenditure,NPIF Research Talent (RCUK Innovation Fellowships),UKRI - Engineering & Physical Sciences Research Council,98769802,12445.06,Research Grant Expenditure
BEIS,UKRI - AHRC,23/06/2020,Research Grant Expenditure,NPIF Research Talent (RCUK Innovation Fellowships),UKRI - Engineering & Physical Sciences Research Council,98769811,13937.96,Research Grant Expenditure
BEIS,UKRI - AHRC,23/06/2020,Research Grant Expenditure,Digital Economy,UKRI - Engineering & Physical Sciences Research Council,98770027,25889.87,Research Grant Expenditure
BEIS,UKRI - AHRC,23/06/2020,Research Grant Expenditure,Digital Economy,UKRI - Engineering & Physical Sciences Research Council,98770053,10570.27,Research Grant Expenditure
BEIS,UKRI - AHRC,23/06/2020,Fellowships,Public Policy,UKRI - Economic & Social Research Council,98770122,10140.61,Fellowships
BEIS,UKRI - AHRC,23/06/2020,Fellowships,Public Policy,UKRI - Economic & Social Research Council,98770124,8572.77,Fellowships
BEIS,UKRI - AHRC,23/06/2020,Fellowships,Public Policy,UKRI - Economic & Social Research Council,98770126,7827.95,Fellowships
BEIS,UKRI - AHRC,23/06/2020,Fellowships,Public Policy,UKRI - Economic & Social Research Council,98770127,7208.22,Fellowships
BEIS,UKRI - AHRC,23/06/2020,Research Grant Expenditure,Commissioned Research,UKRI - Economic & Social Research Council,98770402,6782.02,Research Grant Expenditure
BEIS,UKRI - AHRC,23/06/2020,Research Grant Expenditure,Commissioned Research,UKRI - Economic & Social Research Council,98770408,8075.66,Research Grant Expenditure
BEIS,UKRI - AHRC,23/06/2020,Research Grant Expenditure,Commissioned Research,UKRI - Economic & Social Research Council,98770418,6796.50,Research Grant Expenditure
BEIS,UKRI - AHRC,23/06/2020,Research Grant Expenditure,Commissioned Research,UKRI - Economic & Social Research Council,98770427,6783.41,Research Grant Expenditure
BEIS,UKRI - AHRC,23/06/2020,Research Grant Expenditure,Commissioned Research,UKRI - Economic & Social Research Council,98770436,7230.09,Research Grant Expenditure
BEIS,UKRI - AHRC,23/06/2020,Research Grant Expenditure,RCUK Global Challenges Research Fund (HUBS),UKRI - Economic & Social Research Council,98770438,372288.86,Research Grant Expenditure
BEIS,UKRI - AHRC,23/06/2020,Research Grant Expenditure,RCUK Global Challenges Research Fund (HUBS),UKRI - Economic & Social Research Council,98770443,183823.00,Research Grant Expenditure
BEIS,UKRI - AHRC,23/06/2020,Research Grant Expenditure,RCUK Global Challenges Research Fund (HUBS),UKRI - Economic & Social Research Council,98770447,90435.40,Research Grant Expenditure
BEIS,UKRI - AHRC,23/06/2020,Research Grant Expenditure,Cross Council Responsive Mode Awards,UKRI - Economic & Social Research Council,98770495,14254.28,Research Grant Expenditure
BEIS,UKRI - AHRC,23/06/2020,Research Grant Expenditure,Commissioned Research,UKRI - Economic & Social Research Council,98770502,11563.06,Research Grant Expenditure
BEIS,UKRI - AHRC,23/06/2020,Research Grant Expenditure,Cross Council Responsive Mode Awards,UKRI - Economic & Social Research Council,98770503,22627.39,Research Grant Expenditure
BEIS,UKRI - AHRC,23/06/2020,Research Grant Expenditure,RCUK Global Challenges Research Fund (RCUK GCRF),UKRI - Economic & Social Research Council,98770564,22004.30,Research Grant Expenditure
BEIS,UKRI - AHRC,23/06/2020,Research Grant Expenditure,RCUK Global Challenges Research Fund (RCUK GCRF),UKRI - Economic & Social Research Council,98770566,47664.10,Research Grant Expenditure
BEIS,UKRI - AHRC,23/06/2020,Research Grant Expenditure,RCUK Global Challenges Research Fund (RCUK GCRF),UKRI - Economic & Social Research Council,98770568,39140.00,Research Grant Expenditure
BEIS,UKRI - AHRC,23/06/2020,Research Grant Expenditure,RCUK Global Challenges Research Fund (RCUK GCRF),UKRI - Economic & Social Research Council,98770575,46947.50,Research Grant Expenditure
BEIS,UKRI - AHRC,23/06/2020,Research Grant Expenditure,Digital Transformations,UKRI - Economic & Social Research Council,98770576,6372.66,Research Grant Expenditure
BEIS,UKRI - AHRC,23/06/2020,Research Grant Expenditure,Global Challenges Research Fund (GCRF),UKRI - Economic & Social Research Council,98770580,9732.12,Research Grant Expenditure
BEIS,UKRI - AHRC,23/06/2020,Research Grant Expenditure,Cross Council Responsive Mode Awards,UKRI - Economic & Social Research Council,98770581,12703.72,Research Grant Expenditure
BEIS,UKRI - AHRC,23/06/2020,Research Grant Expenditure,Commissioned Research,UKRI - Economic & Social Research Council,98770582,24139.79,Research Grant Expenditure
BEIS,UKRI - AHRC,23/06/2020,Research Grant Expenditure,RCUK Global Challenges Research Fund (RCUK GCRF),UKRI - Economic & Social Research Council,98770583,37040.40,Research Grant Expenditure
BEIS,UKRI - AHRC,23/06/2020,Research Grant Expenditure,RCUK Global Challenges Research Fund (RCUK GCRF),UKRI - Economic & Social Research Council,98770587,50418.90,Research Grant Expenditure
BEIS,UKRI - AHRC,23/06/2020,Research Grant Expenditure,Digital Transformations,UKRI - Economic & Social Research Council,98771264,5349.52,Research Grant Expenditure
BEIS,UKRI - AHRC,23/06/2020,Research Grant Expenditure,Digital Transformations,UKRI - Economic & Social Research Council,98771265,5122.49,Research Grant Expenditure
BEIS,UKRI - AHRC,23/06/2020,Research Grant Expenditure,Urban Living,UKRI - Economic & Social Research Council,98771267,6350.72,Research Grant Expenditure
BEIS,UKRI - AHRC,23/06/2020,Research Grant Expenditure,Cross Council Responsive Mode Awards,UKRI - Economic & Social Research Council,98771268,16018.74,Research Grant Expenditure
BEIS,UKRI - AHRC,23/06/2020,Research Grant Expenditure,Global Challenges Research Fund (GCRF),UKRI - Economic & Social Research Council,98771269,14046.82,Research Grant Expenditure
BEIS,UKRI - AHRC,23/06/2020,Research Grant Expenditure,Global Challenges Research Fund (GCRF),UKRI - Economic & Social Research Council,98771270,35324.85,Research Grant Expenditure
BEIS,UKRI - AHRC,23/06/2020,Research Grant Expenditure,Global Challenges Research Fund (GCRF),UKRI - Economic & Social Research Council,98771271,16694.03,Research Grant Expenditure
BEIS,UKRI - AHRC,23/06/2020,Research Grant Expenditure,Global Challenges Research Fund (GCRF),UKRI - Economic & Social Research Council,98771272,6421.66,Research Grant Expenditure
BEIS,UKRI - AHRC,23/06/2020,Research Grant Expenditure,Global Challenges Research Fund (GCRF),UKRI - Economic & Social Research Council,98771274,17372.19,Research Grant Expenditure
BEIS,UKRI - AHRC,23/06/2020,Research Grant Expenditure,Urban Living,UKRI - Economic & Social Research Council,98771276,5128.31,Research Grant Expenditure
BEIS,UKRI - AHRC,23/06/2020,Research Grant Expenditure,Urban Living,UKRI - Economic & Social Research Council,98771295,3953.66,Research Grant Expenditure
BEIS,UKRI - AHRC,23/06/2020,Research Grant Expenditure,Urban Living,UKRI - Economic & Social Research Council,98771296,2818.99,Research Grant Expenditure
BEIS,UKRI - AHRC,23/06/2020,Research Grant Expenditure,Urban Living,UKRI - Economic & Social Research Council,98771297,5066.93,Research Grant Expenditure
BEIS,UKRI - AHRC,23/06/2020,Research Grant Expenditure,Urban Living,UKRI - Economic & Social Research Council,98771299,3390.34,Research Grant Expenditure
BEIS,UKRI - AHRC,23/06/2020,Research Grant Expenditure,Urban Living,UKRI - Economic & Social Research Council,98771300,4598.68,Research Grant Expenditure
BEIS,UKRI - AHRC,23/06/2020,Research Grant Expenditure,Urban Living,UKRI - Economic & Social Research Council,98771302,3804.75,Research Grant Expenditure
BEIS,UKRI - AHRC,23/06/2020,Research Grant Expenditure,RCUK Global Challenges Research Fund (RCUK GCRF),UKRI - Economic & Social Research Council,98771313,22018.95,Research Grant Expenditure
BEIS,UKRI - AHRC,23/06/2020,Research Grant Expenditure,Commissioned Research,UKRI - Economic & Social Research Council,98771315,9032.24,Research Grant Expenditure
BEIS,UKRI - AHRC,23/06/2020,Research Grant Expenditure,Commissioned Research,UKRI - Economic & Social Research Council,98771325,6203.48,Research Grant Expenditure
BEIS,UKRI - AHRC,23/06/2020,Research Grant Expenditure,RCUK Global Challenges Research Fund (RCUK GCRF),UKRI - Economic & Social Research Council,98771331,19048.80,Research Grant Expenditure
BEIS,UKRI - AHRC,23/06/2020,Research Grant Expenditure,Commissioned Research,UKRI - Economic & Social Research Council,98771335,6943.45,Research Grant Expenditure
BEIS,UKRI - AHRC,23/06/2020,Research Grant Expenditure,Global Uncertainties Programme,UKRI - Economic & Social Research Council,98771344,2041.70,Research Grant Expenditure
BEIS,UKRI - AHRC,24/06/2020,Staff Training,Corporate Services,Tableau International U.C,98759368,1134.21,Staff Training
BEIS,UKRI - AHRC,24/06/2020,Fees (Including College Members),FIC- US,Unspecified,98767734,231.26,Fees (Including College Members)
BEIS,UKRI - AHRC,25/06/2020,Voluntary Deductions,Balance Sheet,Swindon Office Sports and Social Club,98767517,32.00,Voluntary Deductions
BEIS,UKRI - AHRC,25/06/2020,T&S UK - Other Charges,"History, Heritage, Languages and Literature",Unspecified,98771827,376.57,T&S UK - Other Charges
BEIS,UKRI - AHRC,25/06/2020,Financial Services,Corporate Services,CCI Credit Management Ltd,98772804,1.32,Financial Services
BEIS,UKRI - AHRC,25/06/2020,Recruitment Costs,Corporate Services,Warwick University Services Ltd,98772992,250.00,Recruitment Costs
BEIS,UKRI - AHRC,26/06/2020,Research Grant Expenditure,Digital Arts and Humanities and Creative Industries,DESIGNSWARM INDUSTRIES LTD,98771891,244.80,Research Grant Expenditure
BEIS,UKRI - AHRC,29/06/2020,Other Programme Costs,TSB Knowledge Transfer Partnerships,Technology Strategy Board (Innovate UK),98773683,21958.34,Other Programme Costs
BEIS,UKRI - AHRC,29/06/2020,Other Programme Costs,TSB Knowledge Transfer Partnerships,Technology Strategy Board (Innovate UK),98773690,29318.81,Other Programme Costs
BEIS,UKRI - AHRC,30/06/2020,Other Programme Costs,RCUK Other,UKRI - Engineering & Physical Sciences Research Council,98772999,241784.39,Other Programme Costs
BEIS,UKRI - AHRC,30/06/2020,Other Programme Costs,Commissioned Research,UKRI - Engineering & Physical Sciences Research Council,98773002,3750.00,Other Programme Costs
BEIS,UKRI - AHRC,30/06/2020,Research Grant Expenditure,RCUK Global Challenges Research Fund (RCUK GCRF),UKRI - Medical Research Council,98773376,16622.44,Research Grant Expenditure
BEIS,UKRI - BBSRC,01/06/2020,T&S UK - Other Charges,Innovation and Skills Group CDSU,Unspecified,98755331,99.99,T&S UK - Other Charges
BEIS,UKRI - BBSRC,01/06/2020,T&S UK - Other Charges,Innovation and Skills Group CDSU,Unspecified,98755332,194.58,T&S UK - Other Charges
BEIS,UKRI - BBSRC,01/06/2020,T&S UK - Other Charges,Innovation and Skills Group CDSU,Unspecified,98755333,140.40,T&S UK - Other Charges
BEIS,UKRI - BBSRC,02/06/2020,Research Institutes - Capital Grants: Major Works,Pirbright,The Pirbright Institute,98750812,2547322.42,Research Institutes - Capital Grants: Major Works
BEIS,UKRI - BBSRC,02/06/2020,Research Grant Expenditure,FG - Accounts & Business Planning,UKRI - Economic & Social Research Council,98751458,4675.51,Research Grant Expenditure
BEIS,UKRI - BBSRC,02/06/2020,Health & Safety (inc. Medicals & Opticians),PDG - Director,Swindon Occupational Medical Services Ltd,98754362,350.00,Health & Safety (inc. Medicals & Opticians)
BEIS,UKRI - BBSRC,02/06/2020,Conferences & Seminars,Science Group,Unspecified,98754666,-102.00,Conferences & Seminars
BEIS,UKRI - BBSRC,02/06/2020,T&S UK - Other Charges,Innovation and Skills Group CDSU,Unspecified,98755523,95.78,T&S UK - Other Charges
BEIS,UKRI - BBSRC,02/06/2020,T&S UK - Other Charges,Innovation and Skills Group CDSU,Unspecified,98755524,93.49,T&S UK - Other Charges
BEIS,UKRI - BBSRC,03/06/2020,Conferences & Seminars,Innovation and Skills Group CDSU,The Colour Works International Limited,98751370,900.00,Conferences & Seminars
BEIS,UKRI - BBSRC,03/06/2020,Conferences & Seminars,Innovation and Skills Group CDSU,Babraham Bioscience Technologies Ltd,98751849,253.20,Conferences & Seminars
BEIS,UKRI - BBSRC,03/06/2020,UK - Professional Memberships & Subscriptions,PDG - Director,The Society of Biology / The Royal Society of Biology,98752191,20000.00,UK - Professional Memberships & Subscriptions
BEIS,UKRI - BBSRC,03/06/2020,T&S Overseas - Accommodation,CE - Chief Executive,Corporate Travel Management (North) Ltd,98754557,0.80,T&S Overseas - Accommodation
BEIS,UKRI - BBSRC,03/06/2020,T&S Overseas - Accommodation,CE - Chief Executive,Corporate Travel Management (North) Ltd,98754557,165.81,T&S Overseas - Accommodation
BEIS,UKRI - BBSRC,03/06/2020,T&S Overseas - Accommodation,CE - Chief Executive,Corporate Travel Management (North) Ltd,98754557,0.16,T&S Overseas - Accommodation
BEIS,UKRI - BBSRC,03/06/2020,T&S Overseas - Accommodation,CE - IRU,Corporate Travel Management (North) Ltd,98754557,0.80,T&S Overseas - Accommodation
BEIS,UKRI - BBSRC,03/06/2020,T&S Overseas - Accommodation,CE - IRU,Corporate Travel Management (North) Ltd,98754557,158.39,T&S Overseas - Accommodation
BEIS,UKRI - BBSRC,03/06/2020,T&S Overseas - Accommodation,CE - IRU,Corporate Travel Management (North) Ltd,98754557,952.11,T&S Overseas - Accommodation
BEIS,UKRI - BBSRC,03/06/2020,T&S Overseas - Accommodation,CE - IRU,Corporate Travel Management (North) Ltd,98754557,0.80,T&S Overseas - Accommodation
BEIS,UKRI - BBSRC,03/06/2020,T&S Overseas - Accommodation,CE - IRU,Corporate Travel Management (North) Ltd,98754557,272.94,T&S Overseas - Accommodation
BEIS,UKRI - BBSRC,03/06/2020,T&S Overseas - Accommodation,CE - IRU,Corporate Travel Management (North) Ltd,98754557,0.80,T&S Overseas - Accommodation
BEIS,UKRI - BBSRC,03/06/2020,T&S Overseas - Accommodation,CE - IRU,Corporate Travel Management (North) Ltd,98754557,165.33,T&S Overseas - Accommodation
BEIS,UKRI - BBSRC,03/06/2020,T&S Overseas - Accommodation,CE - IRU,Corporate Travel Management (North) Ltd,98754557,0.48,T&S Overseas - Accommodation
BEIS,UKRI - BBSRC,03/06/2020,T&S Overseas - Accommodation,European Initiatives,Corporate Travel Management (North) Ltd,98754557,0.80,T&S Overseas - Accommodation
BEIS,UKRI - BBSRC,03/06/2020,T&S Overseas - Accommodation,European Initiatives,Corporate Travel Management (North) Ltd,98754557,276.22,T&S Overseas - Accommodation
BEIS,UKRI - BBSRC,03/06/2020,T&S Overseas - Accommodation,European Initiatives,Corporate Travel Management (North) Ltd,98754557,0.80,T&S Overseas - Accommodation
BEIS,UKRI - BBSRC,03/06/2020,T&S Overseas - Accommodation,European Initiatives,Corporate Travel Management (North) Ltd,98754557,172.05,T&S Overseas - Accommodation
BEIS,UKRI - BBSRC,03/06/2020,T&S Overseas - Accommodation,European Initiatives,Corporate Travel Management (North) Ltd,98754557,172.05,T&S Overseas - Accommodation
BEIS,UKRI - BBSRC,03/06/2020,T&S Overseas - Accommodation,European Initiatives,Corporate Travel Management (North) Ltd,98754557,0.16,T&S Overseas - Accommodation
BEIS,UKRI - BBSRC,03/06/2020,T&S Overseas - Accommodation,European Initiatives,Corporate Travel Management (North) Ltd,98754557,0.16,T&S Overseas - Accommodation
BEIS,UKRI - BBSRC,03/06/2020,T&S Overseas - Accommodation,Science Group,Corporate Travel Management (North) Ltd,98754557,0.80,T&S Overseas - Accommodation
BEIS,UKRI - BBSRC,03/06/2020,T&S Overseas - Accommodation,Science Group,Corporate Travel Management (North) Ltd,98754557,102.67,T&S Overseas - Accommodation
BEIS,UKRI - BBSRC,03/06/2020,T&S Overseas - Accommodation,Science Group,Corporate Travel Management (North) Ltd,98754557,0.80,T&S Overseas - Accommodation
BEIS,UKRI - BBSRC,03/06/2020,T&S Overseas - Accommodation,Science Group,Corporate Travel Management (North) Ltd,98754557,155.21,T&S Overseas - Accommodation
BEIS,UKRI - BBSRC,03/06/2020,T&S Overseas - Accommodation,Science Group,Corporate Travel Management (North) Ltd,98754557,0.80,T&S Overseas - Accommodation
BEIS,UKRI - BBSRC,03/06/2020,T&S Overseas - Accommodation,Science Group,Corporate Travel Management (North) Ltd,98754557,433.68,T&S Overseas - Accommodation
BEIS,UKRI - BBSRC,03/06/2020,T&S Overseas - Accommodation,Science Group,Corporate Travel Management (North) Ltd,98754557,0.80,T&S Overseas - Accommodation
BEIS,UKRI - BBSRC,03/06/2020,T&S Overseas - Accommodation,Science Group,Corporate Travel Management (North) Ltd,98754557,103.86,T&S Overseas - Accommodation
BEIS,UKRI - BBSRC,03/06/2020,T&S Overseas - Accommodation,Science Group,Corporate Travel Management (North) Ltd,98754557,0.64,T&S Overseas - Accommodation
BEIS,UKRI - BBSRC,03/06/2020,T&S Overseas - Flights,CE - IRU,Corporate Travel Management (North) Ltd,98754557,2.50,T&S Overseas - Flights
BEIS,UKRI - BBSRC,03/06/2020,T&S Overseas - Flights,CE - IRU,Corporate Travel Management (North) Ltd,98754557,258.30,T&S Overseas - Flights
BEIS,UKRI - BBSRC,03/06/2020,T&S UK - Accommodation,CE - Chief Executive,Corporate Travel Management (North) Ltd,98754557,0.80,T&S UK - Accommodation
BEIS,UKRI - BBSRC,03/06/2020,T&S UK - Accommodation,CE - Chief Executive,Corporate Travel Management (North) Ltd,98754557,0.16,T&S UK - Accommodation
BEIS,UKRI - BBSRC,03/06/2020,T&S UK - Accommodation,CE - IRU,Corporate Travel Management (North) Ltd,98754557,0.80,T&S UK - Accommodation
BEIS,UKRI - BBSRC,03/06/2020,T&S UK - Accommodation,CE - IRU,Corporate Travel Management (North) Ltd,98754557,85.22,T&S UK - Accommodation
BEIS,UKRI - BBSRC,03/06/2020,T&S UK - Accommodation,CE - IRU,Corporate Travel Management (North) Ltd,98754557,0.16,T&S UK - Accommodation
BEIS,UKRI - BBSRC,03/06/2020,T&S UK - Accommodation,CIMG - Programme Office,Corporate Travel Management (North) Ltd,98754557,0.80,T&S UK - Accommodation
BEIS,UKRI - BBSRC,03/06/2020,T&S UK - Accommodation,CIMG - Programme Office,Corporate Travel Management (North) Ltd,98754557,70.00,T&S UK - Accommodation
BEIS,UKRI - BBSRC,03/06/2020,T&S UK - Accommodation,CIMG - Programme Office,Corporate Travel Management (North) Ltd,98754557,0.16,T&S UK - Accommodation
BEIS,UKRI - BBSRC,04/06/2020,T&S UK - Other Charges,Innovation and Skills Group,Unspecified,98758024,97.57,T&S UK - Other Charges
BEIS,UKRI - BBSRC,08/06/2020,Research Grant Expenditure,FG - Accounts & Business Planning,Imperial College London,98750780,2370.30,Research Grant Expenditure
BEIS,UKRI - BBSRC,08/06/2020,Recruitment Costs,PDG - Director,Onefix Recruitment Ltd,98757266,1320.00,Recruitment Costs
BEIS,UKRI - BBSRC,08/06/2020,Research Grant Expenditure,FG - Accounts & Business Planning,London School of Hygiene & Tropical Medicine,98757512,5221.31,Research Grant Expenditure
BEIS,UKRI - BBSRC,08/06/2020,Research Grant Expenditure,FG - Accounts & Business Planning,London School of Hygiene & Tropical Medicine,98757513,10979.16,Research Grant Expenditure
BEIS,UKRI - BBSRC,08/06/2020,Research Grant Expenditure,FG - Accounts & Business Planning,University of Glasgow,98757865,8713.48,Research Grant Expenditure
BEIS,UKRI - BBSRC,08/06/2020,Research Grant Expenditure,FG - Accounts & Business Planning,Imperial College London,98757886,1802.50,Research Grant Expenditure
BEIS,UKRI - BBSRC,08/06/2020,Compensation Payments,FG - Accounts & Business Planning,JSS Pensions Administration,98759366,25541.24,Compensation Payments
BEIS,UKRI - BBSRC,08/06/2020,Other Programme Costs,Innovation and Skills Group CDSU,NNFCC Ltd,98760411,4275.54,Other Programme Costs
BEIS,UKRI - BBSRC,09/06/2020,SSC Service Charges,CE - CPS,UKRI - Engineering & Physical Sciences Research Council,98730021,8143.80,SSC Service Charges
BEIS,UKRI - BBSRC,09/06/2020,Compensation Payments,FG - Accounts & Business Planning,Unspecified,98754864,1743.75,Compensation Payments
BEIS,UKRI - BBSRC,09/06/2020,Other Programme Costs,Science Group,NCRI - National Cancer Research Institute,98762219,35812.00,Other Programme Costs
BEIS,UKRI - BBSRC,09/06/2020,Research Institutes - Capital Grants: Major Works,Pirbright,The Pirbright Institute,98762244,93010.37,Research Institutes - Capital Grants: Major Works
BEIS,UKRI - BBSRC,09/06/2020,T&S UK - Other Charges,CE - CPS,Unspecified,98763965,189.78,T&S UK - Other Charges
BEIS,UKRI - BBSRC,09/06/2020,T&S UK - Subsistence,Science Group,Unspecified,98763966,25.05,T&S UK - Subsistence
BEIS,UKRI - BBSRC,09/06/2020,T&S UK - Subsistence,Science Group,Unspecified,98763966,35.17,T&S UK - Subsistence
BEIS,UKRI - BBSRC,09/06/2020,T&S UK - Subsistence,Science Group,Unspecified,98763966,26.69,T&S UK - Subsistence
BEIS,UKRI - BBSRC,09/06/2020,T&S UK - Subsistence,Science Group,Unspecified,98763966,20.00,T&S UK - Subsistence
BEIS,UKRI - BBSRC,09/06/2020,T&S UK - Subsistence,Science Group,Unspecified,98763966,5.32,T&S UK - Subsistence
BEIS,UKRI - BBSRC,09/06/2020,T&S UK - Other Charges,CE - CPS,Unspecified,98763968,89.94,T&S UK - Other Charges
BEIS,UKRI - BBSRC,09/06/2020,T&S UK - Other Charges,Innovation and Skills Group,Unspecified,98763969,107.20,T&S UK - Other Charges
BEIS,UKRI - BBSRC,10/06/2020,Research Grant Expenditure,FG - Accounts & Business Planning,University of Oxford,98760510,12421.40,Research Grant Expenditure
BEIS,UKRI - BBSRC,12/06/2020,Unspecified,Balance Sheet,HM Revenue & Customs,98754375,67064.80,PAYE Payable Salaries
BEIS,UKRI - BBSRC,12/06/2020,Unspecified,Balance Sheet,HM Revenue & Customs,98754376,4447.00,Student Loans
BEIS,UKRI - BBSRC,12/06/2020,Unspecified,Balance Sheet,HM Revenue & Customs,98754377,93812.06,NI Payable Salaries
BEIS,UKRI - BBSRC,12/06/2020,Unspecified,FG - Accounts & Business Planning,HM Revenue & Customs,98754378,2406.00,Apprenticeship Levy
BEIS,UKRI - BBSRC,12/06/2020,Unspecified,Balance Sheet,HM Revenue & Customs,98755370,6456.51,PAYE Payable Salaries
BEIS,UKRI - BBSRC,12/06/2020,Unspecified,Balance Sheet,HM Revenue & Customs,98755371,27.14,NI Payable Salaries
BEIS,UKRI - BBSRC,12/06/2020,Unspecified,FG - Accounts & Business Planning,HM Revenue & Customs,98755372,97.00,Apprenticeship Levy
BEIS,UKRI - BBSRC,12/06/2020,Voluntary Deductions,Balance Sheet,St Elizabeth’s Centre,98755373,570.83,Voluntary Deductions
BEIS,UKRI - BBSRC,12/06/2020,Nursery Deductions,Balance Sheet,EDENRED (UK GROUP) LTD,98766138,2263.00,Nursery Deductions
BEIS,UKRI - BBSRC,12/06/2020,Nursery Deductions,Balance Sheet,EDENRED (UK GROUP) LTD,98766139,10.00,Nursery Deductions
BEIS,UKRI - BBSRC,12/06/2020,Nursery Deductions,Balance Sheet,EDENRED (UK GROUP) LTD,98766142,-486.00,Nursery Deductions
BEIS,UKRI - BBSRC,12/06/2020,Other Programme Costs,FG - Director,NBI Partnership Limited,98766824,9741.00,Other Programme Costs
BEIS,UKRI - BBSRC,12/06/2020,Unspecified,FG - Estates,Womble Bond Dickinson LLP,98766879,1689.60,Legal & Professional Services
BEIS,UKRI - BBSRC,15/06/2020,Union Deductions,Balance Sheet,PCS Union,98754379,73.90,Union Deductions
BEIS,UKRI - BBSRC,15/06/2020,Unspecified,Balance Sheet,Unspecified,98754381,24494.22,Ees Pension Deductions - JSS
BEIS,UKRI - BBSRC,15/06/2020,Unspecified,Balance Sheet,Unspecified,98754382,95989.99,Ers Pension Deductions - JSS
BEIS,UKRI - BBSRC,15/06/2020,Unspecified,Balance Sheet,Scottish Widows Life Assurance,98754383,446.70,Partnership Pension Deductions
BEIS,UKRI - BBSRC,15/06/2020,Unspecified,Balance Sheet,Scottish Widows Life Assurance,98754384,10.00,Other Pension Deductions
BEIS,UKRI - BBSRC,15/06/2020,Unspecified,Balance Sheet,Cabinet Office RM Shared Services,98754385,12.83,Ers Pension Deductions - JSS
BEIS,UKRI - BBSRC,15/06/2020,Unspecified,Balance Sheet,Cabinet Office RM Shared Services,98754386,6597.68,Ees Pension Deductions - MyCSP
BEIS,UKRI - BBSRC,15/06/2020,Unspecified,Balance Sheet,Cabinet Office RM Shared Services,98754387,33084.86,Ers Pension Deductions - MyCSP
BEIS,UKRI - BBSRC,15/06/2020,Voluntary Deductions,Balance Sheet,BHCA (Services) Ltd,98754388,23.80,Voluntary Deductions
BEIS,UKRI - BBSRC,15/06/2020,Voluntary Deductions,Balance Sheet,Ramsden Fund,98754389,50.00,Voluntary Deductions
BEIS,UKRI - BBSRC,15/06/2020,Employee loans - Long term > 12 months,Balance Sheet,UKRI - Science & Technology Facilities Council,98754390,211.59,Employee loans - Long term > 12 months
BEIS,UKRI - BBSRC,16/06/2020,International Awards - Non Capital,Innovation and Skills Group,UKRI - Natural Environment Research Council,98765960,79594.48,International Awards - Non Capital
BEIS,UKRI - BBSRC,16/06/2020,International Awards - Non Capital,Innovation and Skills Group,UKRI - Natural Environment Research Council,98765990,173908.43,International Awards - Non Capital
BEIS,UKRI - BBSRC,16/06/2020,Recruitment Costs,PDG - Director,Onefix Recruitment Ltd,98767165,118.80,Recruitment Costs
BEIS,UKRI - BBSRC,16/06/2020,Recruitment Costs,PDG - Director,Onefix Recruitment Ltd,98767166,450.00,Recruitment Costs
BEIS,UKRI - BBSRC,16/06/2020,Fees (Including College Members),Innovation and Skills Group CDSU,Unspecified,98767355,460.00,Fees (Including College Members)
BEIS,UKRI - BBSRC,16/06/2020,Fees (Including College Members),Innovation and Skills Group CDSU,Unspecified,98767356,340.00,Fees (Including College Members)
BEIS,UKRI - BBSRC,16/06/2020,Fees (Including College Members),Innovation and Skills Group CDSU,Unspecified,98767357,340.00,Fees (Including College Members)
BEIS,UKRI - BBSRC,16/06/2020,Fees (Including College Members),Innovation and Skills Group CDSU,Unspecified,98767358,340.00,Fees (Including College Members)
BEIS,UKRI - BBSRC,16/06/2020,Fees (Including College Members),Innovation and Skills Group CDSU,Unspecified,98767359,340.00,Fees (Including College Members)
BEIS,UKRI - BBSRC,16/06/2020,Fees (Including College Members),Innovation and Skills Group CDSU,Unspecified,98767360,340.00,Fees (Including College Members)
BEIS,UKRI - BBSRC,16/06/2020,Fees (Including College Members),Innovation and Skills Group CDSU,Unspecified,98767361,340.00,Fees (Including College Members)
BEIS,UKRI - BBSRC,16/06/2020,Fees (Including College Members),Innovation and Skills Group CDSU,Unspecified,98767362,340.00,Fees (Including College Members)
BEIS,UKRI - BBSRC,16/06/2020,Fees (Including College Members),Innovation and Skills Group CDSU,Unspecified,98767363,340.00,Fees (Including College Members)
BEIS,UKRI - BBSRC,17/06/2020,Other Programme Costs,FG - Accounts & Business Planning,Mulpor Company S.R.L. T/A International Fairs Directory,98766868,891.72,Other Programme Costs
BEIS,UKRI - BBSRC,17/06/2020,Research Institutes - Capital Grants: Minor Works,Rothamsted Research,Rothamsted Research Ltd,98767535,1859.52,Research Institutes - Capital Grants: Minor Works
BEIS,UKRI - BBSRC,17/06/2020,Research Institutes - Capital Grants: Major Works,Estates - Projects,EMBL (European Molecular Biology Laboratory),98767605,31400.00,Research Institutes - Capital Grants: Major Works
BEIS,UKRI - BBSRC,17/06/2020,Research Grant Expenditure,SPF W1 EMBL EBI,EMBL (European Molecular Biology Laboratory),98769643,11458.20,Research Grant Expenditure
BEIS,UKRI - BBSRC,18/06/2020,Recruitment Costs,PDG - Director,Onefix Recruitment Ltd,98766786,810.00,Recruitment Costs
BEIS,UKRI - BBSRC,18/06/2020,Other Programme Costs,Innovation and Skills Group CDSU,NNFCC Ltd,98769734,5961.60,Other Programme Costs
BEIS,UKRI - BBSRC,18/06/2020,Non-staff travel and subsistance,Innovation and Skills Group CDSU,Unspecified,98769933,96.20,Non-staff travel and subsistance
BEIS,UKRI - BBSRC,18/06/2020,Fees (Including College Members),Innovation and Skills Group CDSU,Unspecified,98769934,230.00,Fees (Including College Members)
BEIS,UKRI - BBSRC,18/06/2020,Fees (Including College Members),Innovation and Skills Group CDSU,Unspecified,98769935,170.00,Fees (Including College Members)
BEIS,UKRI - BBSRC,18/06/2020,Fees (Including College Members),Innovation and Skills Group CDSU,Unspecified,98769936,170.00,Fees (Including College Members)
BEIS,UKRI - BBSRC,18/06/2020,Fees (Including College Members),Innovation and Skills Group CDSU,Unspecified,98769937,170.00,Fees (Including College Members)
BEIS,UKRI - BBSRC,18/06/2020,Fees (Including College Members),Innovation and Skills Group CDSU,Unspecified,98769938,170.00,Fees (Including College Members)
BEIS,UKRI - BBSRC,18/06/2020,Fees (Including College Members),Innovation and Skills Group CDSU,Unspecified,98769939,230.00,Fees (Including College Members)
BEIS,UKRI - BBSRC,18/06/2020,Fees (Including College Members),Innovation and Skills Group CDSU,Unspecified,98769940,170.00,Fees (Including College Members)
BEIS,UKRI - BBSRC,18/06/2020,Fees (Including College Members),Innovation and Skills Group CDSU,Unspecified,98769941,170.00,Fees (Including College Members)
BEIS,UKRI - BBSRC,18/06/2020,Fees (Including College Members),Innovation and Skills Group CDSU,Unspecified,98769942,170.00,Fees (Including College Members)
BEIS,UKRI - BBSRC,18/06/2020,Fees (Including College Members),Innovation and Skills Group CDSU,Unspecified,98769943,230.00,Fees (Including College Members)
BEIS,UKRI - BBSRC,18/06/2020,Fees (Including College Members),Innovation and Skills Group CDSU,Unspecified,98769944,230.00,Fees (Including College Members)
BEIS,UKRI - BBSRC,18/06/2020,Fees (Including College Members),Innovation and Skills Group CDSU,Unspecified,98769945,170.00,Fees (Including College Members)
BEIS,UKRI - BBSRC,18/06/2020,Fees (Including College Members),Innovation and Skills Group CDSU,Unspecified,98769946,170.00,Fees (Including College Members)
BEIS,UKRI - BBSRC,18/06/2020,Fees (Including College Members),Innovation and Skills Group CDSU,Unspecified,98769947,170.00,Fees (Including College Members)
BEIS,UKRI - BBSRC,18/06/2020,Fees (Including College Members),Innovation and Skills Group CDSU,Unspecified,98769948,230.00,Fees (Including College Members)
BEIS,UKRI - BBSRC,18/06/2020,Fees (Including College Members),Innovation and Skills Group CDSU,Unspecified,98769949,170.00,Fees (Including College Members)
BEIS,UKRI - BBSRC,18/06/2020,Fees (Including College Members),Innovation and Skills Group CDSU,Unspecified,98769950,170.00,Fees (Including College Members)
BEIS,UKRI - BBSRC,18/06/2020,Fees (Including College Members),Innovation and Skills Group CDSU,Unspecified,98769951,170.00,Fees (Including College Members)
BEIS,UKRI - BBSRC,18/06/2020,Fees (Including College Members),Innovation and Skills Group CDSU,Unspecified,98769952,170.00,Fees (Including College Members)
BEIS,UKRI - BBSRC,18/06/2020,Fees (Including College Members),Innovation and Skills Group CDSU,Unspecified,98769953,170.00,Fees (Including College Members)
BEIS,UKRI - BBSRC,18/06/2020,Fees (Including College Members),Innovation and Skills Group CDSU,Unspecified,98769954,170.00,Fees (Including College Members)
BEIS,UKRI - BBSRC,18/06/2020,Fees (Including College Members),Innovation and Skills Group CDSU,Unspecified,98769955,170.00,Fees (Including College Members)
BEIS,UKRI - BBSRC,18/06/2020,T&S UK - Other Charges,Innovation and Skills Group CDSU,Unspecified,98770903,103.18,T&S UK - Other Charges
BEIS,UKRI - BBSRC,19/06/2020,Research Grant Expenditure,SPF W1 EMBL EBI,EMBL (European Molecular Biology Laboratory),98769646,76843.37,Research Grant Expenditure
BEIS,UKRI - BBSRC,19/06/2020,Research Grant Expenditure,SPF W1 EMBL EBI,EMBL (European Molecular Biology Laboratory),98769648,149850.00,Research Grant Expenditure
BEIS,UKRI - BBSRC,19/06/2020,Conferences & Seminars,Science Group,Unspecified,98770969,102.00,Conferences & Seminars
BEIS,UKRI - BBSRC,22/06/2020,Conferences & Seminars,Science Group,Calder Conference Ltd,98766403,1768.00,Conferences & Seminars
BEIS,UKRI - BBSRC,22/06/2020,Fees (Including College Members),Innovation and Skills Group CDSU,Unspecified,98770528,340.00,Fees (Including College Members)
BEIS,UKRI - BBSRC,22/06/2020,Non-staff travel and subsistance,Science Group – Admin Function,Unspecified,98770529,534.24,Non-staff travel and subsistance
BEIS,UKRI - BBSRC,22/06/2020,Research Institutes - Capital Grants: Major Works,Strategic Priorities Fund,EMBL (European Molecular Biology Laboratory),98771247,22327.50,Research Institutes - Capital Grants: Major Works
BEIS,UKRI - BBSRC,23/06/2020,Institute Grant Expenditure,IFR,Quadram Institute Bioscience,98754559,80221.50,Institute Grant Expenditure
BEIS,UKRI - BBSRC,23/06/2020,Institute Grant Expenditure,IFR,Quadram Institute Bioscience,98754562,83540.00,Institute Grant Expenditure
BEIS,UKRI - BBSRC,23/06/2020,Institute Grant Expenditure,JIC,John Innes Centre,98754564,25760.00,Institute Grant Expenditure
BEIS,UKRI - BBSRC,23/06/2020,Institute Grant Expenditure,JIC,John Innes Centre,98754565,109680.00,Institute Grant Expenditure
BEIS,UKRI - BBSRC,23/06/2020,Institute Grant Expenditure,JIC,John Innes Centre,98754646,69760.00,Institute Grant Expenditure
BEIS,UKRI - BBSRC,23/06/2020,Research Institutes - Competitive Strategic Grant,TGAC,Earlham Institute,98754680,167372.13,Research Institutes - Competitive Strategic Grant
BEIS,UKRI - BBSRC,23/06/2020,Research Institutes - Competitive Strategic Grant,TGAC,Earlham Institute,98754680,78195.44,Research Institutes - Competitive Strategic Grant
BEIS,UKRI - BBSRC,23/06/2020,Research Institutes - Competitive Strategic Grant,TGAC,Earlham Institute,98754680,41249.97,Research Institutes - Competitive Strategic Grant
BEIS,UKRI - BBSRC,23/06/2020,Research Institutes - Competitive Strategic Grant,TGAC,Earlham Institute,98754680,33333.31,Research Institutes - Competitive Strategic Grant
BEIS,UKRI - BBSRC,23/06/2020,Research Institutes - Competitive Strategic Grant,TGAC,Earlham Institute,98754680,117765.49,Research Institutes - Competitive Strategic Grant
BEIS,UKRI - BBSRC,23/06/2020,Research Institutes - Competitive Strategic Grant,TGAC,Earlham Institute,98754680,2916.66,Research Institutes - Competitive Strategic Grant
BEIS,UKRI - BBSRC,23/06/2020,Research Institutes - Competitive Strategic Grant,JIC,John Innes Centre,98754686,21499.99,Research Institutes - Competitive Strategic Grant
BEIS,UKRI - BBSRC,23/06/2020,Research Institutes - Competitive Strategic Grant,JIC,John Innes Centre,98754686,499916.52,Research Institutes - Competitive Strategic Grant
BEIS,UKRI - BBSRC,23/06/2020,Research Institutes - Competitive Strategic Grant,JIC,John Innes Centre,98754686,65333.31,Research Institutes - Competitive Strategic Grant
BEIS,UKRI - BBSRC,23/06/2020,Research Institutes - Competitive Strategic Grant,JIC,John Innes Centre,98754686,513249.85,Research Institutes - Competitive Strategic Grant
BEIS,UKRI - BBSRC,23/06/2020,Research Institutes - Competitive Strategic Grant,JIC,John Innes Centre,98754686,7083.33,Research Institutes - Competitive Strategic Grant
BEIS,UKRI - BBSRC,23/06/2020,Institute Grant Expenditure,JIC,John Innes Centre,98754691,198600.00,Institute Grant Expenditure
BEIS,UKRI - BBSRC,23/06/2020,Research Institutes - Competitive Strategic Grant,IFR,Quadram Institute Bioscience,98754693,23130.89,Research Institutes - Competitive Strategic Grant
BEIS,UKRI - BBSRC,23/06/2020,Research Institutes - Competitive Strategic Grant,IFR,Quadram Institute Bioscience,98754693,344143.33,Research Institutes - Competitive Strategic Grant
BEIS,UKRI - BBSRC,23/06/2020,Research Institutes - Competitive Strategic Grant,IFR,Quadram Institute Bioscience,98754693,46083.29,Research Institutes - Competitive Strategic Grant
BEIS,UKRI - BBSRC,23/06/2020,Research Institutes - Competitive Strategic Grant,IFR,Quadram Institute Bioscience,98754693,265775.16,Research Institutes - Competitive Strategic Grant
BEIS,UKRI - BBSRC,23/06/2020,Research Institutes - Competitive Strategic Grant,IFR,Quadram Institute Bioscience,98754693,5833.33,Research Institutes - Competitive Strategic Grant
BEIS,UKRI - BBSRC,23/06/2020,Institute Grant Expenditure,IFR,Quadram Institute Bioscience,98755852,79400.00,Institute Grant Expenditure
BEIS,UKRI - BBSRC,23/06/2020,Research Institutes - Capital Grants: Major Works,IFR,Quadram Institute Bioscience,98755856,121433.25,Research Institutes - Capital Grants: Major Works
BEIS,UKRI - BBSRC,23/06/2020,Institute Grant Expenditure,JIC,John Innes Centre,98755867,94200.00,Institute Grant Expenditure
BEIS,UKRI - BBSRC,23/06/2020,Recharges From Councils - General,CIMG - Programme Office,UKRI - Engineering & Physical Sciences Research Council,98755887,10849.70,Recharges From Councils - General
BEIS,UKRI - BBSRC,23/06/2020,Research Institutes - Competitive Strategic Grant,Babraham Institute,Babraham Institute,98756514,352459.91,Research Institutes - Competitive Strategic Grant
BEIS,UKRI - BBSRC,23/06/2020,Research Institutes - Competitive Strategic Grant,Babraham Institute,Babraham Institute,98756514,48750.01,Research Institutes - Competitive Strategic Grant
BEIS,UKRI - BBSRC,23/06/2020,Research Institutes - Competitive Strategic Grant,Babraham Institute,Babraham Institute,98756514,395666.75,Research Institutes - Competitive Strategic Grant
BEIS,UKRI - BBSRC,23/06/2020,Research Institutes - Competitive Strategic Grant,Babraham Institute,Babraham Institute,98756514,5833.33,Research Institutes - Competitive Strategic Grant
BEIS,UKRI - BBSRC,23/06/2020,Research Institutes - Competitive Strategic Grant,EBRC (Roslin),University of Edinburgh,98759299,277179.92,Research Institutes - Competitive Strategic Grant
BEIS,UKRI - BBSRC,23/06/2020,Research Institutes - Competitive Strategic Grant,EBRC (Roslin),University of Edinburgh,98759299,206087.50,Research Institutes - Competitive Strategic Grant
BEIS,UKRI - BBSRC,23/06/2020,Research Institutes - Competitive Strategic Grant,EBRC (Roslin),University of Edinburgh,98759299,5833.33,Research Institutes - Competitive Strategic Grant
BEIS,UKRI - BBSRC,23/06/2020,Research Institutes - Competitive Strategic Grant,IBERS,Aberystwyth University,98759632,86360.99,Research Institutes - Competitive Strategic Grant
BEIS,UKRI - BBSRC,23/06/2020,Research Institutes - Competitive Strategic Grant,IBERS,Aberystwyth University,98759632,46980.67,Research Institutes - Competitive Strategic Grant
BEIS,UKRI - BBSRC,23/06/2020,Research Institutes - Competitive Strategic Grant,IBERS,Aberystwyth University,98759632,2916.67,Research Institutes - Competitive Strategic Grant
BEIS,UKRI - BBSRC,23/06/2020,Research Grant Expenditure,FG - Accounts & Business Planning,University of Kent,98762582,-17.69,Research Grant Expenditure
BEIS,UKRI - BBSRC,23/06/2020,Research Grant Expenditure,FG - Accounts & Business Planning,University of York,98762583,65874.88,Research Grant Expenditure
BEIS,UKRI - BBSRC,23/06/2020,Research Grant Expenditure,FG - Accounts & Business Planning,University of York,98762584,-50513.70,Research Grant Expenditure
BEIS,UKRI - BBSRC,23/06/2020,Research Grant Expenditure,FG - Accounts & Business Planning,University of Birmingham GRANT,98762585,11576.96,Research Grant Expenditure
BEIS,UKRI - BBSRC,23/06/2020,Research Grant Expenditure,FG - Accounts & Business Planning,The Pirbright Institute,98762586,6144.51,Research Grant Expenditure
BEIS,UKRI - BBSRC,23/06/2020,Research Grant Expenditure,FG - Accounts & Business Planning,University of Glasgow,98762587,-192.09,Research Grant Expenditure
BEIS,UKRI - BBSRC,23/06/2020,Research Grant Expenditure,FG - Accounts & Business Planning,University of Dundee,98762588,4865.16,Research Grant Expenditure
BEIS,UKRI - BBSRC,23/06/2020,Research Grant Expenditure,FG - Accounts & Business Planning,University of York,98762589,5546.13,Research Grant Expenditure
BEIS,UKRI - BBSRC,23/06/2020,Research Grant Expenditure,FG - Accounts & Business Planning,Heriot Watt University,98762590,5565.00,Research Grant Expenditure
BEIS,UKRI - BBSRC,23/06/2020,Research Grant Expenditure,FG - Accounts & Business Planning,University of Oxford,98762591,140901.44,Research Grant Expenditure
BEIS,UKRI - BBSRC,23/06/2020,Research Grant Expenditure,FG - Accounts & Business Planning,The Pirbright Institute,98762592,-993.53,Research Grant Expenditure
BEIS,UKRI - BBSRC,23/06/2020,Research Grant Expenditure,FG - Accounts & Business Planning,King's College London,98762593,-1214.36,Research Grant Expenditure
BEIS,UKRI - BBSRC,23/06/2020,Research Grant Expenditure,FG - Accounts & Business Planning,University College London,98762594,-29199.99,Research Grant Expenditure
BEIS,UKRI - BBSRC,23/06/2020,Research Grant Expenditure,FG - Accounts & Business Planning,University of Glasgow,98762595,24685.38,Research Grant Expenditure
BEIS,UKRI - BBSRC,23/06/2020,Research Grant Expenditure,FG - Accounts & Business Planning,John Innes Centre,98762596,16950.51,Research Grant Expenditure
BEIS,UKRI - BBSRC,23/06/2020,Capital Grants & Equipment to HEIs,FG - Accounts & Business Planning,Cardiff University,98762597,-0.06,Capital Grants & Equipment to HEIs
BEIS,UKRI - BBSRC,23/06/2020,Research Grant Expenditure,FG - Accounts & Business Planning,Cardiff University,98762597,20572.62,Research Grant Expenditure
BEIS,UKRI - BBSRC,23/06/2020,Research Grant Expenditure,FG - Accounts & Business Planning,University of Bristol GRANT,98762598,15464.59,Research Grant Expenditure
BEIS,UKRI - BBSRC,23/06/2020,Research Grant Expenditure,FG - Accounts & Business Planning,University of Liverpool,98762599,16051.68,Research Grant Expenditure
BEIS,UKRI - BBSRC,23/06/2020,Capital Grants & Equipment to HEIs,FG - Accounts & Business Planning,University College London,98762600,-28.08,Capital Grants & Equipment to HEIs
BEIS,UKRI - BBSRC,23/06/2020,Research Grant Expenditure,FG - Accounts & Business Planning,University College London,98762600,10797.37,Research Grant Expenditure
BEIS,UKRI - BBSRC,23/06/2020,Research Grant Expenditure,FG - Accounts & Business Planning,The Pirbright Institute,98762601,548.62,Research Grant Expenditure
BEIS,UKRI - BBSRC,23/06/2020,Research Grant Expenditure,FG - Accounts & Business Planning,University of Nottingham,98762602,-105.37,Research Grant Expenditure
BEIS,UKRI - BBSRC,23/06/2020,Research Grant Expenditure,FG - Accounts & Business Planning,University of Edinburgh,98762603,684.98,Research Grant Expenditure
BEIS,UKRI - BBSRC,23/06/2020,Capital Grants & Equipment to HEIs,FG - Accounts & Business Planning,John Innes Centre,98762604,-1542.44,Capital Grants & Equipment to HEIs
BEIS,UKRI - BBSRC,23/06/2020,Research Grant Expenditure,FG - Accounts & Business Planning,John Innes Centre,98762604,-79559.88,Research Grant Expenditure
BEIS,UKRI - BBSRC,23/06/2020,Research Grant Expenditure,FG - Accounts & Business Planning,University of Portsmouth,98762605,8685.39,Research Grant Expenditure
BEIS,UKRI - BBSRC,23/06/2020,Research Grant Expenditure,FG - Accounts & Business Planning,University of Exeter,98762606,16737.35,Research Grant Expenditure
BEIS,UKRI - BBSRC,23/06/2020,Research Grant Expenditure,FG - Accounts & Business Planning,King's College London,98762607,26548.74,Research Grant Expenditure
BEIS,UKRI - BBSRC,23/06/2020,Research Grant Expenditure,FG - Accounts & Business Planning,Rothamsted Research Ltd,98762608,-44870.76,Research Grant Expenditure
BEIS,UKRI - BBSRC,23/06/2020,Research Grant Expenditure,FG - Accounts & Business Planning,John Innes Centre,98762609,10235.98,Research Grant Expenditure
BEIS,UKRI - BBSRC,23/06/2020,Research Grant Expenditure,FG - Accounts & Business Planning,University of Dundee,98762610,41822.46,Research Grant Expenditure
BEIS,UKRI - BBSRC,23/06/2020,Research Grant Expenditure,FG - Accounts & Business Planning,University College London,98762611,43601.10,Research Grant Expenditure
BEIS,UKRI - BBSRC,23/06/2020,Research Grant Expenditure,FG - Accounts & Business Planning,University of Edinburgh,98762612,23943.89,Research Grant Expenditure
BEIS,UKRI - BBSRC,23/06/2020,Research Grant Expenditure,FG - Accounts & Business Planning,University of Essex,98762613,-6125.98,Research Grant Expenditure
BEIS,UKRI - BBSRC,23/06/2020,Research Grant Expenditure,FG - Accounts & Business Planning,University of Exeter,98762614,40955.44,Research Grant Expenditure
BEIS,UKRI - BBSRC,23/06/2020,Research Grant Expenditure,FG - Accounts & Business Planning,University of Southampton GRANT,98762615,65607.44,Research Grant Expenditure
BEIS,UKRI - BBSRC,23/06/2020,Research Grant Expenditure,FG - Accounts & Business Planning,University of Birmingham GRANT,98762616,-21174.11,Research Grant Expenditure
BEIS,UKRI - BBSRC,23/06/2020,Research Grant Expenditure,FG - Accounts & Business Planning,Royal Veterinary College,98762617,26324.52,Research Grant Expenditure
BEIS,UKRI - BBSRC,23/06/2020,Research Grant Expenditure,FG - Accounts & Business Planning,The Pirbright Institute,98762618,13598.46,Research Grant Expenditure
BEIS,UKRI - BBSRC,23/06/2020,Research Grant Expenditure,FG - Accounts & Business Planning,University of Edinburgh,98762619,8395.29,Research Grant Expenditure
BEIS,UKRI - BBSRC,23/06/2020,Research Grant Expenditure,FG - Accounts & Business Planning,University of Glasgow,98762620,25532.83,Research Grant Expenditure
BEIS,UKRI - BBSRC,23/06/2020,Capital Grants & Equipment to HEIs,FG - Accounts & Business Planning,University of Birmingham GRANT,98762621,-253.00,Capital Grants & Equipment to HEIs
BEIS,UKRI - BBSRC,23/06/2020,Research Grant Expenditure,FG - Accounts & Business Planning,University of Birmingham GRANT,98762621,34280.87,Research Grant Expenditure
BEIS,UKRI - BBSRC,23/06/2020,Research Grant Expenditure,FG - Accounts & Business Planning,University of Cambridge,98762622,35697.07,Research Grant Expenditure
BEIS,UKRI - BBSRC,23/06/2020,Research Grant Expenditure,FG - Accounts & Business Planning,University of Glasgow,98762623,40989.56,Research Grant Expenditure
BEIS,UKRI - BBSRC,23/06/2020,Research Grant Expenditure,FG - Accounts & Business Planning,University of Reading,98762624,7681.28,Research Grant Expenditure
BEIS,UKRI - BBSRC,23/06/2020,Research Grant Expenditure,FG - Accounts & Business Planning,Aberystwyth University,98762625,33831.62,Research Grant Expenditure
BEIS,UKRI - BBSRC,23/06/2020,Research Grant Expenditure,FG - Accounts & Business Planning,University of York,98762626,39068.72,Research Grant Expenditure
BEIS,UKRI - BBSRC,23/06/2020,Research Grant Expenditure,FG - Accounts & Business Planning,University of Nottingham,98762627,6831.77,Research Grant Expenditure
BEIS,UKRI - BBSRC,23/06/2020,Research Grant Expenditure,FG - Accounts & Business Planning,University of Aberdeen,98762628,89043.87,Research Grant Expenditure
BEIS,UKRI - BBSRC,23/06/2020,Research Grant Expenditure,FG - Accounts & Business Planning,Rothamsted Research Ltd,98762629,-13431.15,Research Grant Expenditure
BEIS,UKRI - BBSRC,23/06/2020,Research Grant Expenditure,FG - Accounts & Business Planning,University College London,98762630,16985.15,Research Grant Expenditure
BEIS,UKRI - BBSRC,23/06/2020,Research Grant Expenditure,FG - Accounts & Business Planning,University of Cambridge,98762631,32339.69,Research Grant Expenditure
BEIS,UKRI - BBSRC,23/06/2020,Research Grant Expenditure,FG - Accounts & Business Planning,University of Exeter,98762632,25369.23,Research Grant Expenditure
BEIS,UKRI - BBSRC,23/06/2020,Research Grant Expenditure,FG - Accounts & Business Planning,Babraham Institute,98762633,27743.99,Research Grant Expenditure
BEIS,UKRI - BBSRC,23/06/2020,Research Grant Expenditure,FG - Accounts & Business Planning,Imperial College London,98762634,18920.94,Research Grant Expenditure
BEIS,UKRI - BBSRC,23/06/2020,Research Grant Expenditure,FG - Accounts & Business Planning,Birkbeck College,98762635,10793.36,Research Grant Expenditure
BEIS,UKRI - BBSRC,23/06/2020,Research Grant Expenditure,FG - Accounts & Business Planning,University College London,98762636,23372.32,Research Grant Expenditure
BEIS,UKRI - BBSRC,23/06/2020,Capital Grants & Equipment to HEIs,FG - Accounts & Business Planning,University of York,98762637,-42.47,Capital Grants & Equipment to HEIs
BEIS,UKRI - BBSRC,23/06/2020,Research Grant Expenditure,FG - Accounts & Business Planning,University of York,98762637,28744.49,Research Grant Expenditure
BEIS,UKRI - BBSRC,23/06/2020,Research Grant Expenditure,FG - Accounts & Business Planning,University of Nottingham,98762638,32191.93,Research Grant Expenditure
BEIS,UKRI - BBSRC,23/06/2020,Research Grant Expenditure,FG - Accounts & Business Planning,University of Leeds,98762639,35855.50,Research Grant Expenditure
BEIS,UKRI - BBSRC,23/06/2020,Research Grant Expenditure,FG - Accounts & Business Planning,University of Birmingham GRANT,98762640,28437.82,Research Grant Expenditure
BEIS,UKRI - BBSRC,23/06/2020,Research Grant Expenditure,FG - Accounts & Business Planning,University of Glasgow,98762641,36388.64,Research Grant Expenditure
BEIS,UKRI - BBSRC,23/06/2020,Research Grant Expenditure,FG - Accounts & Business Planning,University of Exeter,98762642,22796.35,Research Grant Expenditure
BEIS,UKRI - BBSRC,23/06/2020,Research Grant Expenditure,FG - Accounts & Business Planning,National Institute For Agricultural Botany (NIAB),98762643,13989.77,Research Grant Expenditure
BEIS,UKRI - BBSRC,23/06/2020,Research Grant Expenditure,FG - Accounts & Business Planning,University of Nottingham,98762644,31348.84,Research Grant Expenditure
BEIS,UKRI - BBSRC,23/06/2020,Research Grant Expenditure,FG - Accounts & Business Planning,University of Essex,98762645,13464.73,Research Grant Expenditure
BEIS,UKRI - BBSRC,23/06/2020,Research Grant Expenditure,FG - Accounts & Business Planning,National Institute For Agricultural Botany (NIAB),98762646,41760.82,Research Grant Expenditure
BEIS,UKRI - BBSRC,23/06/2020,Research Grant Expenditure,FG - Accounts & Business Planning,Rothamsted Research Ltd,98762647,23643.78,Research Grant Expenditure
BEIS,UKRI - BBSRC,23/06/2020,Research Grant Expenditure,FG - Accounts & Business Planning,University of Oxford,98762648,32891.59,Research Grant Expenditure
BEIS,UKRI - BBSRC,23/06/2020,Research Grant Expenditure,FG - Accounts & Business Planning,The University of Manchester,98762649,43825.34,Research Grant Expenditure
BEIS,UKRI - BBSRC,23/06/2020,Research Grant Expenditure,FG - Accounts & Business Planning,Queen Mary University of London,98762650,36643.05,Research Grant Expenditure
BEIS,UKRI - BBSRC,23/06/2020,Research Grant Expenditure,FG - Accounts & Business Planning,The University of Manchester,98762651,28125.29,Research Grant Expenditure
BEIS,UKRI - BBSRC,23/06/2020,Research Grant Expenditure,FG - Accounts & Business Planning,University of Glasgow,98762652,39056.93,Research Grant Expenditure
BEIS,UKRI - BBSRC,23/06/2020,Research Grant Expenditure,FG - Accounts & Business Planning,University of Edinburgh,98762653,21511.58,Research Grant Expenditure
BEIS,UKRI - BBSRC,23/06/2020,Research Grant Expenditure,FG - Accounts & Business Planning,The Francis Crick Institute,98762654,26440.50,Research Grant Expenditure
BEIS,UKRI - BBSRC,23/06/2020,Research Grant Expenditure,FG - Accounts & Business Planning,Forest Research GRANT,98762655,59742.44,Research Grant Expenditure
BEIS,UKRI - BBSRC,23/06/2020,Capital Grants & Equipment to HEIs,FG - Accounts & Business Planning,John Innes Centre,98762656,-2959.60,Capital Grants & Equipment to HEIs
BEIS,UKRI - BBSRC,23/06/2020,Research Grant Expenditure,FG - Accounts & Business Planning,John Innes Centre,98762656,44537.09,Research Grant Expenditure
BEIS,UKRI - BBSRC,23/06/2020,Research Grant Expenditure,FG - Accounts & Business Planning,Rothamsted Research Ltd,98762657,27274.30,Research Grant Expenditure
BEIS,UKRI - BBSRC,23/06/2020,Research Grant Expenditure,FG - Accounts & Business Planning,University of Cambridge,98762658,23068.68,Research Grant Expenditure
BEIS,UKRI - BBSRC,23/06/2020,Capital Grants & Equipment to HEIs,FG - Accounts & Business Planning,University of Nottingham,98762659,-0.10,Capital Grants & Equipment to HEIs
BEIS,UKRI - BBSRC,23/06/2020,Research Grant Expenditure,FG - Accounts & Business Planning,University of Nottingham,98762659,31973.98,Research Grant Expenditure
BEIS,UKRI - BBSRC,23/06/2020,Research Grant Expenditure,FG - Accounts & Business Planning,University of Leicester,98762660,35576.35,Research Grant Expenditure
BEIS,UKRI - BBSRC,23/06/2020,Research Grant Expenditure,FG - Accounts & Business Planning,University of Leeds,98762661,37896.51,Research Grant Expenditure
BEIS,UKRI - BBSRC,23/06/2020,Research Grant Expenditure,FG - Accounts & Business Planning,The University of Manchester,98762662,36413.12,Research Grant Expenditure
BEIS,UKRI - BBSRC,23/06/2020,Research Grant Expenditure,FG - Accounts & Business Planning,University of Sheffield,98762663,31986.21,Research Grant Expenditure
BEIS,UKRI - BBSRC,23/06/2020,Research Grant Expenditure,FG - Accounts & Business Planning,Queen Mary University of London,98762664,14998.04,Research Grant Expenditure
BEIS,UKRI - BBSRC,23/06/2020,Research Grant Expenditure,FG - Accounts & Business Planning,University of York,98762665,14178.91,Research Grant Expenditure
BEIS,UKRI - BBSRC,23/06/2020,Research Grant Expenditure,FG - Accounts & Business Planning,University of Edinburgh,98762667,18186.06,Research Grant Expenditure
BEIS,UKRI - BBSRC,23/06/2020,Research Grant Expenditure,FG - Accounts & Business Planning,University of Cambridge,98762668,28569.25,Research Grant Expenditure
BEIS,UKRI - BBSRC,23/06/2020,Research Grant Expenditure,FG - Accounts & Business Planning,University of Cambridge,98762669,34762.06,Research Grant Expenditure
BEIS,UKRI - BBSRC,23/06/2020,Research Grant Expenditure,FG - Accounts & Business Planning,University of Edinburgh,98762670,45498.14,Research Grant Expenditure
BEIS,UKRI - BBSRC,23/06/2020,Research Grant Expenditure,FG - Accounts & Business Planning,Royal Veterinary College,98762671,1863.27,Research Grant Expenditure
BEIS,UKRI - BBSRC,23/06/2020,Research Grant Expenditure,FG - Accounts & Business Planning,University of Sussex,98762672,23543.26,Research Grant Expenditure
BEIS,UKRI - BBSRC,23/06/2020,Research Grant Expenditure,FG - Accounts & Business Planning,Cardiff University,98762673,38230.37,Research Grant Expenditure
BEIS,UKRI - BBSRC,23/06/2020,Research Grant Expenditure,FG - Accounts & Business Planning,SRUC,98762674,23661.56,Research Grant Expenditure
BEIS,UKRI - BBSRC,23/06/2020,Research Grant Expenditure,FG - Accounts & Business Planning,University of Warwick,98762675,12669.87,Research Grant Expenditure
BEIS,UKRI - BBSRC,23/06/2020,Research Grant Expenditure,FG - Accounts & Business Planning,University of Nottingham,98762676,19162.23,Research Grant Expenditure
BEIS,UKRI - BBSRC,23/06/2020,Research Grant Expenditure,FG - Accounts & Business Planning,University College London,98762677,2351.52,Research Grant Expenditure
BEIS,UKRI - BBSRC,23/06/2020,Research Grant Expenditure,FG - Accounts & Business Planning,Queen Mary University of London,98762678,12930.26,Research Grant Expenditure
BEIS,UKRI - BBSRC,23/06/2020,Research Grant Expenditure,FG - Accounts & Business Planning,University of Oxford,98762679,3814.49,Research Grant Expenditure
BEIS,UKRI - BBSRC,23/06/2020,Research Grant Expenditure,FG - Accounts & Business Planning,University of York,98762680,1870.44,Research Grant Expenditure
BEIS,UKRI - BBSRC,23/06/2020,Research Grant Expenditure,FG - Accounts & Business Planning,The Pirbright Institute,98762681,19891.18,Research Grant Expenditure
BEIS,UKRI - BBSRC,23/06/2020,Research Grant Expenditure,FG - Accounts & Business Planning,Keele University,98762682,1198.16,Research Grant Expenditure
BEIS,UKRI - BBSRC,23/06/2020,Research Grant Expenditure,FG - Accounts & Business Planning,University of Edinburgh,98762683,35733.66,Research Grant Expenditure
BEIS,UKRI - BBSRC,23/06/2020,Research Grant Expenditure,FG - Accounts & Business Planning,Bangor University,98762684,20163.66,Research Grant Expenditure
BEIS,UKRI - BBSRC,23/06/2020,Research Grant Expenditure,FG - Accounts & Business Planning,The University of Manchester,98762685,42746.99,Research Grant Expenditure
BEIS,UKRI - BBSRC,23/06/2020,Research Grant Expenditure,FG - Accounts & Business Planning,University of Leeds,98762686,1702.45,Research Grant Expenditure
BEIS,UKRI - BBSRC,23/06/2020,Research Grant Expenditure,FG - Accounts & Business Planning,University of Reading,98762687,134958.69,Research Grant Expenditure
BEIS,UKRI - BBSRC,23/06/2020,Research Grant Expenditure,FG - Accounts & Business Planning,University of Strathclyde,98762688,21629.88,Research Grant Expenditure
BEIS,UKRI - BBSRC,23/06/2020,Research Grant Expenditure,FG - Accounts & Business Planning,University of York,98762689,1910.56,Research Grant Expenditure
BEIS,UKRI - BBSRC,23/06/2020,Research Grant Expenditure,FG - Accounts & Business Planning,University of Glasgow,98762690,33035.21,Research Grant Expenditure
BEIS,UKRI - BBSRC,23/06/2020,Research Grant Expenditure,FG - Accounts & Business Planning,UNIVERSITY OF ULSTER,98762691,9252.01,Research Grant Expenditure
BEIS,UKRI - BBSRC,23/06/2020,Research Grant Expenditure,FG - Accounts & Business Planning,University of Cambridge,98762692,27078.85,Research Grant Expenditure
BEIS,UKRI - BBSRC,23/06/2020,Capital Grants & Equipment to HEIs,FG - Accounts & Business Planning,University of Cambridge,98762693,-472.94,Capital Grants & Equipment to HEIs
BEIS,UKRI - BBSRC,23/06/2020,Research Grant Expenditure,FG - Accounts & Business Planning,University of Cambridge,98762693,16231.87,Research Grant Expenditure
BEIS,UKRI - BBSRC,23/06/2020,Research Grant Expenditure,FG - Accounts & Business Planning,The Pirbright Institute,98762694,33025.17,Research Grant Expenditure
BEIS,UKRI - BBSRC,23/06/2020,Research Grant Expenditure,FG - Accounts & Business Planning,University of Birmingham GRANT,98762695,-85289.86,Research Grant Expenditure
BEIS,UKRI - BBSRC,23/06/2020,Research Grant Expenditure,FG - Accounts & Business Planning,University of Sheffield,98762696,-1132.85,Research Grant Expenditure
BEIS,UKRI - BBSRC,23/06/2020,Research Grant Expenditure,FG - Accounts & Business Planning,European Bioinformatics Institute,98762697,7391.79,Research Grant Expenditure
BEIS,UKRI - BBSRC,23/06/2020,Research Grant Expenditure,FG - Accounts & Business Planning,National Institute For Agricultural Botany (NIAB),98762698,29227.42,Research Grant Expenditure
BEIS,UKRI - BBSRC,23/06/2020,Research Grant Expenditure,FG - Accounts & Business Planning,University of Leeds,98762699,-5843.57,Research Grant Expenditure
BEIS,UKRI - BBSRC,23/06/2020,Capital Grants & Equipment to HEIs,FG - Accounts & Business Planning,University of Newcastle Upon Tyne,98762700,-5175.00,Capital Grants & Equipment to HEIs
BEIS,UKRI - BBSRC,23/06/2020,Research Grant Expenditure,FG - Accounts & Business Planning,University of Newcastle Upon Tyne,98762700,-34234.54,Research Grant Expenditure
BEIS,UKRI - BBSRC,23/06/2020,Research Grant Expenditure,FG - Accounts & Business Planning,Earlham Institute,98762701,-11832.15,Research Grant Expenditure
BEIS,UKRI - BBSRC,23/06/2020,Research Grant Expenditure,FG - Accounts & Business Planning,University of Oxford,98762702,-121.87,Research Grant Expenditure
BEIS,UKRI - BBSRC,23/06/2020,Research Grant Expenditure,FG - Accounts & Business Planning,University of Bristol GRANT,98762703,-1156.05,Research Grant Expenditure
BEIS,UKRI - BBSRC,23/06/2020,Research Grant Expenditure,FG - Accounts & Business Planning,University of Oxford,98762704,37674.85,Research Grant Expenditure
BEIS,UKRI - BBSRC,23/06/2020,Research Grant Expenditure,FG - Accounts & Business Planning,University College London,98762705,31788.87,Research Grant Expenditure
BEIS,UKRI - BBSRC,23/06/2020,Research Grant Expenditure,FG - Accounts & Business Planning,University of Sheffield,98762706,23296.52,Research Grant Expenditure
BEIS,UKRI - BBSRC,23/06/2020,Research Grant Expenditure,FG - Accounts & Business Planning,University of Edinburgh,98762707,37082.51,Research Grant Expenditure
BEIS,UKRI - BBSRC,23/06/2020,Research Grant Expenditure,FG - Accounts & Business Planning,University of Exeter,98762708,25265.76,Research Grant Expenditure
BEIS,UKRI - BBSRC,23/06/2020,Research Grant Expenditure,FG - Accounts & Business Planning,Queen's University Belfast GRANT,98762709,28305.10,Research Grant Expenditure
BEIS,UKRI - BBSRC,23/06/2020,Research Grant Expenditure,FG - Accounts & Business Planning,Imperial College London,98762710,28407.35,Research Grant Expenditure
BEIS,UKRI - BBSRC,23/06/2020,Research Grant Expenditure,FG - Accounts & Business Planning,University of Aberdeen,98762711,16179.01,Research Grant Expenditure
BEIS,UKRI - BBSRC,23/06/2020,Research Grant Expenditure,FG - Accounts & Business Planning,University College London,98762712,38026.96,Research Grant Expenditure
BEIS,UKRI - BBSRC,23/06/2020,Capital Grants & Equipment to HEIs,FG - Accounts & Business Planning,University College London,98762713,130334.98,Capital Grants & Equipment to HEIs
BEIS,UKRI - BBSRC,23/06/2020,Research Grant Expenditure,FG - Accounts & Business Planning,National Institute For Agricultural Botany (NIAB),98762714,33084.44,Research Grant Expenditure
BEIS,UKRI - BBSRC,23/06/2020,Research Grant Expenditure,FG - Accounts & Business Planning,University of Sheffield,98762715,-5556.83,Research Grant Expenditure
BEIS,UKRI - BBSRC,23/06/2020,Research Grant Expenditure,FG - Accounts & Business Planning,University of Warwick,98762716,-58127.18,Research Grant Expenditure
BEIS,UKRI - BBSRC,23/06/2020,Research Grant Expenditure,FG - Accounts & Business Planning,University of the Highlands and Islands,98762717,1411.64,Research Grant Expenditure
BEIS,UKRI - BBSRC,23/06/2020,Research Grant Expenditure,FG - Accounts & Business Planning,University of Bristol GRANT,98762718,13428.19,Research Grant Expenditure
BEIS,UKRI - BBSRC,23/06/2020,Research Grant Expenditure,FG - Accounts & Business Planning,University of Newcastle Upon Tyne,98762719,16290.29,Research Grant Expenditure
BEIS,UKRI - BBSRC,23/06/2020,Research Grant Expenditure,FG - Accounts & Business Planning,University of Bristol GRANT,98762720,9098.67,Research Grant Expenditure
BEIS,UKRI - BBSRC,23/06/2020,Research Grant Expenditure,FG - Accounts & Business Planning,University of Bristol GRANT,98762721,2756.42,Research Grant Expenditure
BEIS,UKRI - BBSRC,23/06/2020,Research Grant Expenditure,FG - Accounts & Business Planning,John Innes Centre,98762722,9608.64,Research Grant Expenditure
BEIS,UKRI - BBSRC,23/06/2020,Research Grant Expenditure,FG - Accounts & Business Planning,Earlham Institute,98762723,4838.88,Research Grant Expenditure
BEIS,UKRI - BBSRC,23/06/2020,Research Grant Expenditure,FG - Accounts & Business Planning,University of Oxford,98762724,4118.37,Research Grant Expenditure
BEIS,UKRI - BBSRC,23/06/2020,Research Grant Expenditure,FG - Accounts & Business Planning,Imperial College London,98762725,10785.32,Research Grant Expenditure
BEIS,UKRI - BBSRC,23/06/2020,Research Grant Expenditure,FG - Accounts & Business Planning,University of York,98762726,8995.41,Research Grant Expenditure
BEIS,UKRI - BBSRC,23/06/2020,Research Grant Expenditure,FG - Accounts & Business Planning,University of Edinburgh,98762727,10066.53,Research Grant Expenditure
BEIS,UKRI - BBSRC,23/06/2020,Research Grant Expenditure,FG - Accounts & Business Planning,University of Liverpool,98762728,3322.34,Research Grant Expenditure
BEIS,UKRI - BBSRC,23/06/2020,Research Grant Expenditure,FG - Accounts & Business Planning,University of Strathclyde,98762729,10625.82,Research Grant Expenditure
BEIS,UKRI - BBSRC,23/06/2020,Research Grant Expenditure,FG - Accounts & Business Planning,University of Stirling,98762730,9334.59,Research Grant Expenditure
BEIS,UKRI - BBSRC,23/06/2020,Research Grant Expenditure,FG - Accounts & Business Planning,University of Leeds,98762731,4653.05,Research Grant Expenditure
BEIS,UKRI - BBSRC,23/06/2020,Research Grant Expenditure,FG - Accounts & Business Planning,University of Oxford,98762732,4118.37,Research Grant Expenditure
BEIS,UKRI - BBSRC,23/06/2020,Research Grant Expenditure,FG - Accounts & Business Planning,University of Birmingham GRANT,98762733,9480.03,Research Grant Expenditure
BEIS,UKRI - BBSRC,23/06/2020,Research Grant Expenditure,FG - Accounts & Business Planning,University of Leeds,98762734,2835.37,Research Grant Expenditure
BEIS,UKRI - BBSRC,23/06/2020,Research Grant Expenditure,FG - Accounts & Business Planning,Wellcome Trust Sanger Institute,98763972,18186.05,Research Grant Expenditure
BEIS,UKRI - BBSRC,23/06/2020,Research Grant Expenditure,FG - Accounts & Business Planning,University of Glasgow,98763973,63010.40,Research Grant Expenditure
BEIS,UKRI - BBSRC,23/06/2020,Research Grant Expenditure,FG - Accounts & Business Planning,European Bioinformatics Institute,98763974,40894.56,Research Grant Expenditure
BEIS,UKRI - BBSRC,23/06/2020,Research Grant Expenditure,FG - Accounts & Business Planning,The University of Manchester,98763975,27237.00,Research Grant Expenditure
BEIS,UKRI - BBSRC,23/06/2020,Research Grant Expenditure,FG - Accounts & Business Planning,European Bioinformatics Institute,98763976,37364.36,Research Grant Expenditure
BEIS,UKRI - BBSRC,23/06/2020,Research Grant Expenditure,FG - Accounts & Business Planning,University College London,98763977,43877.25,Research Grant Expenditure
BEIS,UKRI - BBSRC,23/06/2020,Research Grant Expenditure,FG - Accounts & Business Planning,European Bioinformatics Institute,98763978,26850.02,Research Grant Expenditure
BEIS,UKRI - BBSRC,23/06/2020,Research Grant Expenditure,FG - Accounts & Business Planning,University of Edinburgh,98763979,3079.90,Research Grant Expenditure
BEIS,UKRI - BBSRC,23/06/2020,Research Grant Expenditure,FG - Accounts & Business Planning,University of Exeter,98763980,2695.71,Research Grant Expenditure
BEIS,UKRI - BBSRC,23/06/2020,Research Grant Expenditure,FG - Accounts & Business Planning,King's College London,98763981,1269.41,Research Grant Expenditure
BEIS,UKRI - BBSRC,23/06/2020,Research Grant Expenditure,FG - Accounts & Business Planning,University of Liverpool,98763982,2362.75,Research Grant Expenditure
BEIS,UKRI - BBSRC,23/06/2020,Research Grant Expenditure,FG - Accounts & Business Planning,University of Oxford,98763983,2561.24,Research Grant Expenditure
BEIS,UKRI - BBSRC,23/06/2020,Research Grant Expenditure,FG - Accounts & Business Planning,Rothamsted Research Ltd,98763984,1915.49,Research Grant Expenditure
BEIS,UKRI - BBSRC,23/06/2020,Research Grant Expenditure,FG - Accounts & Business Planning,University of Kent,98763985,1920.93,Research Grant Expenditure
BEIS,UKRI - BBSRC,23/06/2020,Research Grant Expenditure,FG - Accounts & Business Planning,European Bioinformatics Institute,98763986,1917.93,Research Grant Expenditure
BEIS,UKRI - BBSRC,23/06/2020,Research Grant Expenditure,FG - Accounts & Business Planning,University of Dundee,98763987,1936.49,Research Grant Expenditure
BEIS,UKRI - BBSRC,23/06/2020,Research Grant Expenditure,FG - Accounts & Business Planning,The Pirbright Institute,98763988,3169.54,Research Grant Expenditure
BEIS,UKRI - BBSRC,23/06/2020,Research Grant Expenditure,FG - Accounts & Business Planning,University of Warwick,98763989,2607.66,Research Grant Expenditure
BEIS,UKRI - BBSRC,23/06/2020,Research Grant Expenditure,FG - Accounts & Business Planning,University of Exeter,98763990,1920.93,Research Grant Expenditure
BEIS,UKRI - BBSRC,23/06/2020,Research Grant Expenditure,FG - Accounts & Business Planning,University of Aberdeen,98763991,1920.93,Research Grant Expenditure
BEIS,UKRI - BBSRC,23/06/2020,Research Grant Expenditure,FG - Accounts & Business Planning,The University of Manchester,98763992,2517.44,Research Grant Expenditure
BEIS,UKRI - BBSRC,23/06/2020,Research Grant Expenditure,FG - Accounts & Business Planning,University of Stirling,98763993,24996.06,Research Grant Expenditure
BEIS,UKRI - BBSRC,23/06/2020,Research Grant Expenditure,FG - Accounts & Business Planning,Swansea University,98763994,13648.78,Research Grant Expenditure
BEIS,UKRI - BBSRC,23/06/2020,Research Grant Expenditure,FG - Accounts & Business Planning,University of Cambridge,98763995,20698.32,Research Grant Expenditure
BEIS,UKRI - BBSRC,23/06/2020,Research Grant Expenditure,FG - Accounts & Business Planning,University of Dundee,98763996,36907.44,Research Grant Expenditure
BEIS,UKRI - BBSRC,23/06/2020,Research Grant Expenditure,FG - Accounts & Business Planning,Earlham Institute,98763997,61044.03,Research Grant Expenditure
BEIS,UKRI - BBSRC,23/06/2020,Research Grant Expenditure,FG - Accounts & Business Planning,University of Edinburgh,98763998,49391.86,Research Grant Expenditure
BEIS,UKRI - BBSRC,23/06/2020,Research Grant Expenditure,FG - Accounts & Business Planning,Quadram Institute Bioscience,98763999,31524.43,Research Grant Expenditure
BEIS,UKRI - BBSRC,23/06/2020,Research Grant Expenditure,FG - Accounts & Business Planning,University of Birmingham GRANT,98764000,39954.05,Research Grant Expenditure
BEIS,UKRI - BBSRC,23/06/2020,Research Grant Expenditure,FG - Accounts & Business Planning,University of Sussex,98764001,21586.77,Research Grant Expenditure
BEIS,UKRI - BBSRC,23/06/2020,Research Grant Expenditure,FG - Accounts & Business Planning,John Innes Centre,98764002,63177.56,Research Grant Expenditure
BEIS,UKRI - BBSRC,23/06/2020,Research Grant Expenditure,FG - Accounts & Business Planning,Royal Veterinary College,98764003,26468.64,Research Grant Expenditure
BEIS,UKRI - BBSRC,23/06/2020,Research Grant Expenditure,FG - Accounts & Business Planning,University of Kent,98764004,24611.85,Research Grant Expenditure
BEIS,UKRI - BBSRC,23/06/2020,Research Grant Expenditure,FG - Accounts & Business Planning,University of Oxford,98764005,32730.46,Research Grant Expenditure
BEIS,UKRI - BBSRC,23/06/2020,Research Grant Expenditure,FG - Accounts & Business Planning,The Pirbright Institute,98764006,53818.47,Research Grant Expenditure
BEIS,UKRI - BBSRC,23/06/2020,Research Grant Expenditure,FG - Accounts & Business Planning,University of Newcastle Upon Tyne,98764007,27603.37,Research Grant Expenditure
BEIS,UKRI - BBSRC,23/06/2020,Research Grant Expenditure,FG - Accounts & Business Planning,The University of Manchester,98764008,41535.03,Research Grant Expenditure
BEIS,UKRI - BBSRC,23/06/2020,Research Grant Expenditure,FG - Accounts & Business Planning,University College London,98764009,32512.71,Research Grant Expenditure
BEIS,UKRI - BBSRC,23/06/2020,Research Grant Expenditure,FG - Accounts & Business Planning,University of Surrey,98764010,20892.75,Research Grant Expenditure
BEIS,UKRI - BBSRC,23/06/2020,Research Grant Expenditure,FG - Accounts & Business Planning,Imperial College London,98764011,33088.42,Research Grant Expenditure
BEIS,UKRI - BBSRC,23/06/2020,Research Grant Expenditure,FG - Accounts & Business Planning,Cardiff University,98764012,61634.44,Research Grant Expenditure
BEIS,UKRI - BBSRC,23/06/2020,Research Grant Expenditure,FG - Accounts & Business Planning,University of Southampton GRANT,98764013,56749.32,Research Grant Expenditure
BEIS,UKRI - BBSRC,23/06/2020,Research Grant Expenditure,FG - Accounts & Business Planning,University of Edinburgh,98764014,34155.82,Research Grant Expenditure
BEIS,UKRI - BBSRC,23/06/2020,Research Grant Expenditure,FG - Accounts & Business Planning,The University of Manchester,98764016,51279.73,Research Grant Expenditure
BEIS,UKRI - BBSRC,23/06/2020,Research Grant Expenditure,FG - Accounts & Business Planning,The University of Manchester,98764017,32909.53,Research Grant Expenditure
BEIS,UKRI - BBSRC,23/06/2020,Research Grant Expenditure,FG - Accounts & Business Planning,University of Exeter,98764018,25319.08,Research Grant Expenditure
BEIS,UKRI - BBSRC,23/06/2020,Research Grant Expenditure,FG - Accounts & Business Planning,University of Bristol GRANT,98764019,36992.48,Research Grant Expenditure
BEIS,UKRI - BBSRC,23/06/2020,Research Grant Expenditure,FG - Accounts & Business Planning,University of Nottingham,98764020,36417.25,Research Grant Expenditure
BEIS,UKRI - BBSRC,23/06/2020,Research Grant Expenditure,FG - Accounts & Business Planning,University of Newcastle Upon Tyne,98764021,37337.11,Research Grant Expenditure
BEIS,UKRI - BBSRC,23/06/2020,Research Grant Expenditure,FG - Accounts & Business Planning,The University of Manchester,98764022,40204.56,Research Grant Expenditure
BEIS,UKRI - BBSRC,23/06/2020,Research Grant Expenditure,FG - Accounts & Business Planning,Imperial College London,98764023,15623.79,Research Grant Expenditure
BEIS,UKRI - BBSRC,23/06/2020,Research Grant Expenditure,FG - Accounts & Business Planning,Babraham Institute,98764024,63152.87,Research Grant Expenditure
BEIS,UKRI - BBSRC,23/06/2020,Research Grant Expenditure,FG - Accounts & Business Planning,University of Cambridge,98764025,44374.60,Research Grant Expenditure
BEIS,UKRI - BBSRC,23/06/2020,Research Grant Expenditure,FG - Accounts & Business Planning,The Pirbright Institute,98764026,44644.52,Research Grant Expenditure
BEIS,UKRI - BBSRC,23/06/2020,Research Grant Expenditure,FG - Accounts & Business Planning,The University of Manchester,98764027,23393.10,Research Grant Expenditure
BEIS,UKRI - BBSRC,23/06/2020,Research Grant Expenditure,FG - Accounts & Business Planning,Royal Veterinary College,98764028,32721.72,Research Grant Expenditure
BEIS,UKRI - BBSRC,23/06/2020,Research Grant Expenditure,FG - Accounts & Business Planning,University of Bristol GRANT,98764029,59350.57,Research Grant Expenditure
BEIS,UKRI - BBSRC,23/06/2020,Research Grant Expenditure,FG - Accounts & Business Planning,University of Cambridge,98764030,35425.64,Research Grant Expenditure
BEIS,UKRI - BBSRC,23/06/2020,Research Grant Expenditure,FG - Accounts & Business Planning,King's College London,98764031,27073.84,Research Grant Expenditure
BEIS,UKRI - BBSRC,23/06/2020,Research Grant Expenditure,FG - Accounts & Business Planning,University of Newcastle Upon Tyne,98764032,34473.35,Research Grant Expenditure
BEIS,UKRI - BBSRC,23/06/2020,Research Grant Expenditure,FG - Accounts & Business Planning,University of Glasgow,98764033,22495.40,Research Grant Expenditure
BEIS,UKRI - BBSRC,23/06/2020,Research Grant Expenditure,FG - Accounts & Business Planning,Bangor University,98764034,1985.47,Research Grant Expenditure
BEIS,UKRI - BBSRC,23/06/2020,Research Grant Expenditure,FG - Accounts & Business Planning,University of Leicester,98764035,41081.51,Research Grant Expenditure
BEIS,UKRI - BBSRC,23/06/2020,Research Grant Expenditure,FG - Accounts & Business Planning,University of Cambridge,98764036,41818.53,Research Grant Expenditure
BEIS,UKRI - BBSRC,23/06/2020,Research Grant Expenditure,FG - Accounts & Business Planning,University of Edinburgh,98764037,53839.35,Research Grant Expenditure
BEIS,UKRI - BBSRC,23/06/2020,Research Grant Expenditure,FG - Accounts & Business Planning,University of Cambridge,98764038,33570.99,Research Grant Expenditure
BEIS,UKRI - BBSRC,23/06/2020,Research Grant Expenditure,FG - Accounts & Business Planning,University of Oxford,98764039,2660.72,Research Grant Expenditure
BEIS,UKRI - BBSRC,23/06/2020,Research Grant Expenditure,FG - Accounts & Business Planning,University of Exeter,98764040,41555.55,Research Grant Expenditure
BEIS,UKRI - BBSRC,23/06/2020,Research Grant Expenditure,FG - Accounts & Business Planning,University of Sussex,98764041,36483.47,Research Grant Expenditure
BEIS,UKRI - BBSRC,23/06/2020,Research Grant Expenditure,FG - Accounts & Business Planning,Cardiff University,98764042,32225.57,Research Grant Expenditure
BEIS,UKRI - BBSRC,23/06/2020,Research Grant Expenditure,FG - Accounts & Business Planning,University of East Anglia,98764043,32540.82,Research Grant Expenditure
BEIS,UKRI - BBSRC,23/06/2020,Research Grant Expenditure,FG - Accounts & Business Planning,University College London,98764044,45794.67,Research Grant Expenditure
BEIS,UKRI - BBSRC,23/06/2020,Research Grant Expenditure,FG - Accounts & Business Planning,University of Cambridge,98764045,37531.36,Research Grant Expenditure
BEIS,UKRI - BBSRC,23/06/2020,Research Grant Expenditure,FG - Accounts & Business Planning,Diamond Light Source Ltd,98764046,767.65,Research Grant Expenditure
BEIS,UKRI - BBSRC,23/06/2020,Research Grant Expenditure,FG - Accounts & Business Planning,King's College London,98764047,28551.84,Research Grant Expenditure
BEIS,UKRI - BBSRC,23/06/2020,Research Grant Expenditure,FG - Accounts & Business Planning,University of Newcastle Upon Tyne,98764048,16029.86,Research Grant Expenditure
BEIS,UKRI - BBSRC,23/06/2020,Research Grant Expenditure,FG - Accounts & Business Planning,University of Sheffield,98764049,36348.37,Research Grant Expenditure
BEIS,UKRI - BBSRC,23/06/2020,Research Grant Expenditure,FG - Accounts & Business Planning,University of Sheffield,98764050,24153.25,Research Grant Expenditure
BEIS,UKRI - BBSRC,23/06/2020,Research Grant Expenditure,FG - Accounts & Business Planning,The University of Manchester,98764051,41637.49,Research Grant Expenditure
BEIS,UKRI - BBSRC,23/06/2020,Research Grant Expenditure,FG - Accounts & Business Planning,University of Leeds,98764052,35641.71,Research Grant Expenditure
BEIS,UKRI - BBSRC,23/06/2020,Research Grant Expenditure,FG - Accounts & Business Planning,National Institute For Agricultural Botany (NIAB),98764053,45338.23,Research Grant Expenditure
BEIS,UKRI - BBSRC,23/06/2020,Research Grant Expenditure,FG - Accounts & Business Planning,Imperial College London,98764054,65512.51,Research Grant Expenditure
BEIS,UKRI - BBSRC,23/06/2020,Research Grant Expenditure,FG - Accounts & Business Planning,University of Oxford,98764055,57575.90,Research Grant Expenditure
BEIS,UKRI - BBSRC,23/06/2020,Research Grant Expenditure,FG - Accounts & Business Planning,University of Newcastle Upon Tyne,98764056,30088.90,Research Grant Expenditure
BEIS,UKRI - BBSRC,23/06/2020,Research Grant Expenditure,FG - Accounts & Business Planning,University of Cambridge,98764057,54680.46,Research Grant Expenditure
BEIS,UKRI - BBSRC,23/06/2020,Research Grant Expenditure,FG - Accounts & Business Planning,The University of Manchester,98764058,32413.25,Research Grant Expenditure
BEIS,UKRI - BBSRC,23/06/2020,Research Grant Expenditure,FG - Accounts & Business Planning,University of Reading,98764059,39679.07,Research Grant Expenditure
BEIS,UKRI - BBSRC,23/06/2020,Research Grant Expenditure,FG - Accounts & Business Planning,John Innes Centre,98764060,38737.70,Research Grant Expenditure
BEIS,UKRI - BBSRC,23/06/2020,Research Grant Expenditure,FG - Accounts & Business Planning,University of Leicester,98764061,34125.91,Research Grant Expenditure
BEIS,UKRI - BBSRC,23/06/2020,Research Grant Expenditure,FG - Accounts & Business Planning,University of Warwick,98764062,41110.10,Research Grant Expenditure
BEIS,UKRI - BBSRC,23/06/2020,Research Grant Expenditure,FG - Accounts & Business Planning,University of Durham,98764063,10260.64,Research Grant Expenditure
BEIS,UKRI - BBSRC,23/06/2020,Research Grant Expenditure,FG - Accounts & Business Planning,John Innes Centre,98764064,14771.59,Research Grant Expenditure
BEIS,UKRI - BBSRC,23/06/2020,Research Grant Expenditure,FG - Accounts & Business Planning,University of Edinburgh,98764065,18187.25,Research Grant Expenditure
BEIS,UKRI - BBSRC,23/06/2020,Research Grant Expenditure,FG - Accounts & Business Planning,Aberystwyth University,98764066,22504.56,Research Grant Expenditure
BEIS,UKRI - BBSRC,23/06/2020,Research Grant Expenditure,FG - Accounts & Business Planning,King's College London,98764067,3130.79,Research Grant Expenditure
BEIS,UKRI - BBSRC,23/06/2020,Research Grant Expenditure,FG - Accounts & Business Planning,The University of Manchester,98764068,5143.20,Research Grant Expenditure
BEIS,UKRI - BBSRC,23/06/2020,Research Grant Expenditure,FG - Accounts & Business Planning,John Innes Centre,98764069,33256.01,Research Grant Expenditure
BEIS,UKRI - BBSRC,23/06/2020,Research Grant Expenditure,FG - Accounts & Business Planning,University of Exeter,98764070,32085.42,Research Grant Expenditure
BEIS,UKRI - BBSRC,23/06/2020,Research Grant Expenditure,FG - Accounts & Business Planning,University of Cambridge,98764071,31716.59,Research Grant Expenditure
BEIS,UKRI - BBSRC,23/06/2020,Research Grant Expenditure,FG - Accounts & Business Planning,University of Oxford,98764072,43525.86,Research Grant Expenditure
BEIS,UKRI - BBSRC,23/06/2020,Research Grant Expenditure,FG - Accounts & Business Planning,University of East Anglia,98764073,40034.93,Research Grant Expenditure
BEIS,UKRI - BBSRC,23/06/2020,Research Grant Expenditure,FG - Accounts & Business Planning,University of Southampton GRANT,98764074,27897.11,Research Grant Expenditure
BEIS,UKRI - BBSRC,23/06/2020,Research Grant Expenditure,FG - Accounts & Business Planning,Rothamsted Research Ltd,98764075,5594.98,Research Grant Expenditure
BEIS,UKRI - BBSRC,23/06/2020,Research Grant Expenditure,FG - Accounts & Business Planning,University of Aberdeen,98764076,9689.48,Research Grant Expenditure
BEIS,UKRI - BBSRC,23/06/2020,Research Grant Expenditure,FG - Accounts & Business Planning,University of Dundee,98764077,33207.36,Research Grant Expenditure
BEIS,UKRI - BBSRC,23/06/2020,Research Grant Expenditure,FG - Accounts & Business Planning,John Innes Centre,98764078,54635.35,Research Grant Expenditure
BEIS,UKRI - BBSRC,23/06/2020,Research Grant Expenditure,FG - Accounts & Business Planning,University of Newcastle Upon Tyne,98764079,30861.78,Research Grant Expenditure
BEIS,UKRI - BBSRC,23/06/2020,Research Grant Expenditure,FG - Accounts & Business Planning,Queen's University Belfast GRANT,98764080,39339.73,Research Grant Expenditure
BEIS,UKRI - BBSRC,23/06/2020,Research Grant Expenditure,FG - Accounts & Business Planning,University of Cambridge,98764081,56787.95,Research Grant Expenditure
BEIS,UKRI - BBSRC,23/06/2020,Research Grant Expenditure,FG - Accounts & Business Planning,University of Oxford,98764082,61943.39,Research Grant Expenditure
BEIS,UKRI - BBSRC,23/06/2020,Research Grant Expenditure,FG - Accounts & Business Planning,University of Edinburgh,98764083,23642.90,Research Grant Expenditure
BEIS,UKRI - BBSRC,23/06/2020,Research Grant Expenditure,FG - Accounts & Business Planning,University of East Anglia,98764084,21783.21,Research Grant Expenditure
BEIS,UKRI - BBSRC,23/06/2020,Research Grant Expenditure,FG - Accounts & Business Planning,The Pirbright Institute,98764086,20000.00,Research Grant Expenditure
BEIS,UKRI - BBSRC,23/06/2020,Research Grant Expenditure,FG - Accounts & Business Planning,University of Bristol GRANT,98764087,96297.57,Research Grant Expenditure
BEIS,UKRI - BBSRC,23/06/2020,Research Grant Expenditure,FG - Accounts & Business Planning,University of Bristol GRANT,98764087,96297.57,Research Grant Expenditure
BEIS,UKRI - BBSRC,23/06/2020,Research Grant Expenditure,FG - Accounts & Business Planning,University of Bristol GRANT,98764087,96297.57,Research Grant Expenditure
BEIS,UKRI - BBSRC,23/06/2020,Research Grant Expenditure,FG - Accounts & Business Planning,University of Bristol GRANT,98764087,96297.57,Research Grant Expenditure
BEIS,UKRI - BBSRC,23/06/2020,Research Grant Expenditure,FG - Accounts & Business Planning,Imperial College London,98764088,30421.11,Research Grant Expenditure
BEIS,UKRI - BBSRC,23/06/2020,Research Grant Expenditure,FG - Accounts & Business Planning,University of Oxford,98764089,24773.48,Research Grant Expenditure
BEIS,UKRI - BBSRC,23/06/2020,Research Grant Expenditure,FG - Accounts & Business Planning,King's College London,98764090,36155.79,Research Grant Expenditure
BEIS,UKRI - BBSRC,23/06/2020,Research Grant Expenditure,FG - Accounts & Business Planning,King's College London,98764091,30896.72,Research Grant Expenditure
BEIS,UKRI - BBSRC,23/06/2020,Research Grant Expenditure,FG - Accounts & Business Planning,University of York,98764092,31895.91,Research Grant Expenditure
BEIS,UKRI - BBSRC,23/06/2020,Research Grant Expenditure,FG - Accounts & Business Planning,John Innes Centre,98764093,6641.57,Research Grant Expenditure
BEIS,UKRI - BBSRC,23/06/2020,Research Grant Expenditure,FG - Accounts & Business Planning,University of Edinburgh,98764094,26759.68,Research Grant Expenditure
BEIS,UKRI - BBSRC,23/06/2020,Research Grant Expenditure,FG - Accounts & Business Planning,University of Newcastle Upon Tyne,98764095,29738.70,Research Grant Expenditure
BEIS,UKRI - BBSRC,23/06/2020,Research Grant Expenditure,FG - Accounts & Business Planning,University of Sheffield,98764096,27649.73,Research Grant Expenditure
BEIS,UKRI - BBSRC,23/06/2020,Research Grant Expenditure,FG - Accounts & Business Planning,University of Nottingham,98764097,8866.47,Research Grant Expenditure
BEIS,UKRI - BBSRC,23/06/2020,Research Grant Expenditure,FG - Accounts & Business Planning,Birkbeck College,98764098,29223.63,Research Grant Expenditure
BEIS,UKRI - BBSRC,23/06/2020,Research Grant Expenditure,FG - Accounts & Business Planning,Imperial College London,98764099,39364.33,Research Grant Expenditure
BEIS,UKRI - BBSRC,23/06/2020,Research Grant Expenditure,FG - Accounts & Business Planning,University of Southampton GRANT,98764100,25265.58,Research Grant Expenditure
BEIS,UKRI - BBSRC,23/06/2020,Research Grant Expenditure,FG - Accounts & Business Planning,University of Southampton GRANT,98764100,25265.58,Research Grant Expenditure
BEIS,UKRI - BBSRC,23/06/2020,Research Grant Expenditure,FG - Accounts & Business Planning,The University of Manchester,98764101,45692.98,Research Grant Expenditure
BEIS,UKRI - BBSRC,23/06/2020,Research Grant Expenditure,FG - Accounts & Business Planning,University of Birmingham GRANT,98764102,35231.76,Research Grant Expenditure
BEIS,UKRI - BBSRC,23/06/2020,Research Grant Expenditure,FG - Accounts & Business Planning,University College London,98764103,44389.64,Research Grant Expenditure
BEIS,UKRI - BBSRC,23/06/2020,Research Grant Expenditure,FG - Accounts & Business Planning,University of Nottingham,98764104,42547.98,Research Grant Expenditure
BEIS,UKRI - BBSRC,23/06/2020,Research Grant Expenditure,FG - Accounts & Business Planning,Queen Mary University of London,98764105,31071.88,Research Grant Expenditure
BEIS,UKRI - BBSRC,23/06/2020,Research Grant Expenditure,FG - Accounts & Business Planning,University of Kent,98764106,40829.14,Research Grant Expenditure
BEIS,UKRI - BBSRC,23/06/2020,Research Grant Expenditure,FG - Accounts & Business Planning,University College London,98764107,40888.72,Research Grant Expenditure
BEIS,UKRI - BBSRC,23/06/2020,Research Grant Expenditure,FG - Accounts & Business Planning,University of Edinburgh,98764108,14902.72,Research Grant Expenditure
BEIS,UKRI - BBSRC,23/06/2020,Research Grant Expenditure,FG - Accounts & Business Planning,University of Edinburgh,98764109,52727.15,Research Grant Expenditure
BEIS,UKRI - BBSRC,23/06/2020,Research Grant Expenditure,FG - Accounts & Business Planning,Diamond Light Source Ltd,98764111,3137.09,Research Grant Expenditure
BEIS,UKRI - BBSRC,23/06/2020,Research Grant Expenditure,FG - Accounts & Business Planning,King's College London,98764112,48090.87,Research Grant Expenditure
BEIS,UKRI - BBSRC,23/06/2020,Research Grant Expenditure,FG - Accounts & Business Planning,University of Oxford,98764113,48513.31,Research Grant Expenditure
BEIS,UKRI - BBSRC,23/06/2020,Research Grant Expenditure,FG - Accounts & Business Planning,University of Oxford,98764114,37280.77,Research Grant Expenditure
BEIS,UKRI - BBSRC,23/06/2020,Research Grant Expenditure,FG - Accounts & Business Planning,Imperial College London,98764115,14192.01,Research Grant Expenditure
BEIS,UKRI - BBSRC,23/06/2020,Research Grant Expenditure,FG - Accounts & Business Planning,University of Leeds,98764116,40190.88,Research Grant Expenditure
BEIS,UKRI - BBSRC,23/06/2020,Research Grant Expenditure,FG - Accounts & Business Planning,The University of Manchester,98764117,38421.40,Research Grant Expenditure
BEIS,UKRI - BBSRC,23/06/2020,Research Grant Expenditure,FG - Accounts & Business Planning,University of Essex,98764118,3746.57,Research Grant Expenditure
BEIS,UKRI - BBSRC,23/06/2020,Research Grant Expenditure,FG - Accounts & Business Planning,University of York,98764119,47896.57,Research Grant Expenditure
BEIS,UKRI - BBSRC,23/06/2020,Research Grant Expenditure,FG - Accounts & Business Planning,University of Cambridge,98764120,33719.54,Research Grant Expenditure
BEIS,UKRI - BBSRC,23/06/2020,Research Grant Expenditure,FG - Accounts & Business Planning,University of Oxford,98764121,29621.17,Research Grant Expenditure
BEIS,UKRI - BBSRC,23/06/2020,Research Grant Expenditure,FG - Accounts & Business Planning,Birkbeck College,98764122,34871.01,Research Grant Expenditure
BEIS,UKRI - BBSRC,23/06/2020,Research Grant Expenditure,FG - Accounts & Business Planning,University of Cambridge,98764123,31141.06,Research Grant Expenditure
BEIS,UKRI - BBSRC,23/06/2020,Research Grant Expenditure,FG - Accounts & Business Planning,University of Bristol GRANT,98764124,22646.45,Research Grant Expenditure
BEIS,UKRI - BBSRC,23/06/2020,Research Grant Expenditure,FG - Accounts & Business Planning,University of Glasgow,98764125,50255.99,Research Grant Expenditure
BEIS,UKRI - BBSRC,23/06/2020,Research Grant Expenditure,FG - Accounts & Business Planning,Cardiff University,98764126,31149.87,Research Grant Expenditure
BEIS,UKRI - BBSRC,23/06/2020,Research Grant Expenditure,FG - Accounts & Business Planning,University of Cambridge,98764127,37047.70,Research Grant Expenditure
BEIS,UKRI - BBSRC,23/06/2020,Research Grant Expenditure,FG - Accounts & Business Planning,The University of Manchester,98764128,39892.33,Research Grant Expenditure
BEIS,UKRI - BBSRC,23/06/2020,Research Grant Expenditure,FG - Accounts & Business Planning,University of Kent,98764129,28667.13,Research Grant Expenditure
BEIS,UKRI - BBSRC,23/06/2020,Research Grant Expenditure,FG - Accounts & Business Planning,King's College London,98764130,29653.04,Research Grant Expenditure
BEIS,UKRI - BBSRC,23/06/2020,Research Grant Expenditure,FG - Accounts & Business Planning,The University of Manchester,98764131,31195.48,Research Grant Expenditure
BEIS,UKRI - BBSRC,23/06/2020,Research Grant Expenditure,FG - Accounts & Business Planning,University of Durham,98764132,34041.64,Research Grant Expenditure
BEIS,UKRI - BBSRC,23/06/2020,Research Grant Expenditure,FG - Accounts & Business Planning,University of Cambridge,98764133,28039.64,Research Grant Expenditure
BEIS,UKRI - BBSRC,23/06/2020,Research Grant Expenditure,FG - Accounts & Business Planning,University of Leicester,98764134,29348.63,Research Grant Expenditure
BEIS,UKRI - BBSRC,23/06/2020,Research Grant Expenditure,FG - Accounts & Business Planning,University of East Anglia,98764135,31162.90,Research Grant Expenditure
BEIS,UKRI - BBSRC,23/06/2020,Research Grant Expenditure,FG - Accounts & Business Planning,Imperial College London,98764136,3646.94,Research Grant Expenditure
BEIS,UKRI - BBSRC,23/06/2020,Research Grant Expenditure,FG - Accounts & Business Planning,Queen Mary University of London,98764137,36874.25,Research Grant Expenditure
BEIS,UKRI - BBSRC,23/06/2020,Research Grant Expenditure,FG - Accounts & Business Planning,Queen Mary University of London,98764138,2061.29,Research Grant Expenditure
BEIS,UKRI - BBSRC,23/06/2020,Research Grant Expenditure,FG - Accounts & Business Planning,Queen Mary University of London,98764139,27949.99,Research Grant Expenditure
BEIS,UKRI - BBSRC,23/06/2020,Research Grant Expenditure,FG - Accounts & Business Planning,University of Liverpool,98764140,35469.94,Research Grant Expenditure
BEIS,UKRI - BBSRC,23/06/2020,Research Grant Expenditure,FG - Accounts & Business Planning,University of Cambridge,98764141,29779.34,Research Grant Expenditure
BEIS,UKRI - BBSRC,23/06/2020,Research Grant Expenditure,FG - Accounts & Business Planning,University of Newcastle Upon Tyne,98764142,28884.48,Research Grant Expenditure
BEIS,UKRI - BBSRC,23/06/2020,Research Grant Expenditure,FG - Accounts & Business Planning,University of Warwick,98764143,9031.29,Research Grant Expenditure
BEIS,UKRI - BBSRC,23/06/2020,Research Grant Expenditure,FG - Accounts & Business Planning,University of East Anglia,98764144,33485.21,Research Grant Expenditure
BEIS,UKRI - BBSRC,23/06/2020,Research Grant Expenditure,FG - Accounts & Business Planning,University of Aberdeen,98764145,32241.55,Research Grant Expenditure
BEIS,UKRI - BBSRC,23/06/2020,Research Grant Expenditure,FG - Accounts & Business Planning,University of Sheffield,98764146,32467.01,Research Grant Expenditure
BEIS,UKRI - BBSRC,23/06/2020,Research Grant Expenditure,FG - Accounts & Business Planning,University of York,98764147,40490.84,Research Grant Expenditure
BEIS,UKRI - BBSRC,23/06/2020,Research Grant Expenditure,FG - Accounts & Business Planning,Imperial College London,98764148,23077.79,Research Grant Expenditure
BEIS,UKRI - BBSRC,23/06/2020,Research Grant Expenditure,FG - Accounts & Business Planning,University of Glasgow,98764149,38360.30,Research Grant Expenditure
BEIS,UKRI - BBSRC,23/06/2020,Research Grant Expenditure,FG - Accounts & Business Planning,University of Leeds,98764150,40937.91,Research Grant Expenditure
BEIS,UKRI - BBSRC,23/06/2020,Research Grant Expenditure,FG - Accounts & Business Planning,John Innes Centre,98764151,37838.95,Research Grant Expenditure
BEIS,UKRI - BBSRC,23/06/2020,Research Grant Expenditure,FG - Accounts & Business Planning,Imperial College London,98764152,39289.33,Research Grant Expenditure
BEIS,UKRI - BBSRC,23/06/2020,Research Grant Expenditure,FG - Accounts & Business Planning,University of Bristol GRANT,98764153,34782.35,Research Grant Expenditure
BEIS,UKRI - BBSRC,23/06/2020,Research Grant Expenditure,FG - Accounts & Business Planning,University of Edinburgh,98764154,26567.78,Research Grant Expenditure
BEIS,UKRI - BBSRC,23/06/2020,Research Grant Expenditure,FG - Accounts & Business Planning,University of Durham,98764155,32280.93,Research Grant Expenditure
BEIS,UKRI - BBSRC,23/06/2020,Research Grant Expenditure,FG - Accounts & Business Planning,University of Sheffield,98764156,37362.48,Research Grant Expenditure
BEIS,UKRI - BBSRC,23/06/2020,Research Grant Expenditure,FG - Accounts & Business Planning,Cranfield University,98764157,41968.52,Research Grant Expenditure
BEIS,UKRI - BBSRC,23/06/2020,Research Grant Expenditure,FG - Accounts & Business Planning,University of Leeds,98764158,35193.96,Research Grant Expenditure
BEIS,UKRI - BBSRC,23/06/2020,Research Grant Expenditure,FG - Accounts & Business Planning,University of Leeds,98764159,36279.48,Research Grant Expenditure
BEIS,UKRI - BBSRC,23/06/2020,Research Grant Expenditure,FG - Accounts & Business Planning,John Innes Centre,98764160,42848.74,Research Grant Expenditure
BEIS,UKRI - BBSRC,23/06/2020,Research Grant Expenditure,FG - Accounts & Business Planning,Queen Mary University of London,98764161,18485.77,Research Grant Expenditure
BEIS,UKRI - BBSRC,23/06/2020,Research Grant Expenditure,FG - Accounts & Business Planning,Brunel University London,98764162,38011.76,Research Grant Expenditure
BEIS,UKRI - BBSRC,23/06/2020,Research Grant Expenditure,FG - Accounts & Business Planning,Imperial College London,98764163,34748.51,Research Grant Expenditure
BEIS,UKRI - BBSRC,23/06/2020,Research Grant Expenditure,FG - Accounts & Business Planning,London School of Hygiene & Tropical Medicine,98764164,37661.82,Research Grant Expenditure
BEIS,UKRI - BBSRC,23/06/2020,Research Grant Expenditure,FG - Accounts & Business Planning,The Pirbright Institute,98764165,42516.30,Research Grant Expenditure
BEIS,UKRI - BBSRC,23/06/2020,Research Grant Expenditure,FG - Accounts & Business Planning,St George's University of London,98764166,33302.86,Research Grant Expenditure
BEIS,UKRI - BBSRC,23/06/2020,Research Grant Expenditure,FG - Accounts & Business Planning,Cardiff University,98764167,129170.12,Research Grant Expenditure
BEIS,UKRI - BBSRC,23/06/2020,Research Grant Expenditure,FG - Accounts & Business Planning,The Pirbright Institute,98764168,34479.26,Research Grant Expenditure
BEIS,UKRI - BBSRC,23/06/2020,Research Grant Expenditure,FG - Accounts & Business Planning,University of Liverpool,98764169,65037.01,Research Grant Expenditure
BEIS,UKRI - BBSRC,23/06/2020,Research Grant Expenditure,FG - Accounts & Business Planning,University of Leicester,98764170,45261.40,Research Grant Expenditure
BEIS,UKRI - BBSRC,23/06/2020,Research Grant Expenditure,FG - Accounts & Business Planning,University of Edinburgh,98764171,67761.76,Research Grant Expenditure
BEIS,UKRI - BBSRC,23/06/2020,Research Grant Expenditure,FG - Accounts & Business Planning,Bangor University,98764172,23972.93,Research Grant Expenditure
BEIS,UKRI - BBSRC,23/06/2020,Research Grant Expenditure,FG - Accounts & Business Planning,The University of Manchester,98764173,39411.90,Research Grant Expenditure
BEIS,UKRI - BBSRC,23/06/2020,Research Grant Expenditure,FG - Accounts & Business Planning,University of Glasgow,98764174,40798.63,Research Grant Expenditure
BEIS,UKRI - BBSRC,23/06/2020,Research Grant Expenditure,FG - Accounts & Business Planning,King's College London,98764175,39512.13,Research Grant Expenditure
BEIS,UKRI - BBSRC,23/06/2020,Research Grant Expenditure,FG - Accounts & Business Planning,University of Newcastle Upon Tyne,98764176,27443.67,Research Grant Expenditure
BEIS,UKRI - BBSRC,23/06/2020,Research Grant Expenditure,FG - Accounts & Business Planning,University of St Andrews,98764177,28629.67,Research Grant Expenditure
BEIS,UKRI - BBSRC,23/06/2020,Research Grant Expenditure,FG - Accounts & Business Planning,University of Leeds,98764178,31396.72,Research Grant Expenditure
BEIS,UKRI - BBSRC,23/06/2020,Research Grant Expenditure,FG - Accounts & Business Planning,University College London,98764179,43055.04,Research Grant Expenditure
BEIS,UKRI - BBSRC,23/06/2020,Research Grant Expenditure,FG - Accounts & Business Planning,University of Leeds,98764180,26928.91,Research Grant Expenditure
BEIS,UKRI - BBSRC,23/06/2020,Research Grant Expenditure,FG - Accounts & Business Planning,University of Edinburgh,98764181,39646.51,Research Grant Expenditure
BEIS,UKRI - BBSRC,23/06/2020,Research Grant Expenditure,FG - Accounts & Business Planning,University of Edinburgh,98764182,24422.07,Research Grant Expenditure
BEIS,UKRI - BBSRC,23/06/2020,Research Grant Expenditure,FG - Accounts & Business Planning,University of Edinburgh,98764183,36631.59,Research Grant Expenditure
BEIS,UKRI - BBSRC,23/06/2020,Research Grant Expenditure,FG - Accounts & Business Planning,Royal Veterinary College,98764184,29051.41,Research Grant Expenditure
BEIS,UKRI - BBSRC,23/06/2020,Research Grant Expenditure,FG - Accounts & Business Planning,University of Sussex,98764185,29938.58,Research Grant Expenditure
BEIS,UKRI - BBSRC,23/06/2020,Research Grant Expenditure,FG - Accounts & Business Planning,University of Birmingham,98764186,40302.03,Research Grant Expenditure
BEIS,UKRI - BBSRC,23/06/2020,Research Grant Expenditure,FG - Accounts & Business Planning,Earlham Institute,98764187,336280.00,Research Grant Expenditure
BEIS,UKRI - BBSRC,23/06/2020,Research Grant Expenditure,FG - Accounts & Business Planning,University of Kent,98764188,253375.00,Research Grant Expenditure
BEIS,UKRI - BBSRC,23/06/2020,Research Grant Expenditure,FG - Accounts & Business Planning,University of Liverpool,98764189,24903.96,Research Grant Expenditure
BEIS,UKRI - BBSRC,23/06/2020,Research Grant Expenditure,FG - Accounts & Business Planning,University of Edinburgh,98764190,29397.97,Research Grant Expenditure
BEIS,UKRI - BBSRC,23/06/2020,Research Grant Expenditure,FG - Accounts & Business Planning,SRUC,98764191,18849.84,Research Grant Expenditure
BEIS,UKRI - BBSRC,23/06/2020,Research Grant Expenditure,FG - Accounts & Business Planning,University of Newcastle Upon Tyne,98764192,42250.05,Research Grant Expenditure
BEIS,UKRI - BBSRC,23/06/2020,Research Grant Expenditure,FG - Accounts & Business Planning,University of Leeds,98764193,31513.56,Research Grant Expenditure
BEIS,UKRI - BBSRC,23/06/2020,Research Grant Expenditure,FG - Accounts & Business Planning,University of Reading,98764194,44769.27,Research Grant Expenditure
BEIS,UKRI - BBSRC,23/06/2020,Research Grant Expenditure,FG - Accounts & Business Planning,University of Leeds,98764195,47280.38,Research Grant Expenditure
BEIS,UKRI - BBSRC,23/06/2020,Research Grant Expenditure,FG - Accounts & Business Planning,Lancaster University,98764196,81969.94,Research Grant Expenditure
BEIS,UKRI - BBSRC,23/06/2020,Research Grant Expenditure,FG - Accounts & Business Planning,European Bioinformatics Institute,98764197,239255.00,Research Grant Expenditure
BEIS,UKRI - BBSRC,23/06/2020,Research Grant Expenditure,FG - Accounts & Business Planning,University of Cambridge,98764198,25375.78,Research Grant Expenditure
BEIS,UKRI - BBSRC,23/06/2020,Research Grant Expenditure,FG - Accounts & Business Planning,University of Leicester,98764199,49663.99,Research Grant Expenditure
BEIS,UKRI - BBSRC,23/06/2020,Research Grant Expenditure,FG - Accounts & Business Planning,University of Nottingham,98764200,2702.00,Research Grant Expenditure
BEIS,UKRI - BBSRC,23/06/2020,Research Grant Expenditure,FG - Accounts & Business Planning,The Scottish Association for Marine Science (SAMS Group),98764201,373175.65,Research Grant Expenditure
BEIS,UKRI - BBSRC,23/06/2020,Capital Grants & Equipment to HEIs,FG - Accounts & Business Planning,John Innes Centre,98764202,5726.75,Capital Grants & Equipment to HEIs
BEIS,UKRI - BBSRC,23/06/2020,Research Grant Expenditure,FG - Accounts & Business Planning,John Innes Centre,98764202,112355.50,Research Grant Expenditure
BEIS,UKRI - BBSRC,23/06/2020,Capital Grants & Equipment to HEIs,FG - Accounts & Business Planning,University of Bristol GRANT,98764203,3621.42,Capital Grants & Equipment to HEIs
BEIS,UKRI - BBSRC,23/06/2020,Research Grant Expenditure,FG - Accounts & Business Planning,University of Bristol GRANT,98764203,56722.78,Research Grant Expenditure
BEIS,UKRI - BBSRC,23/06/2020,Research Grant Expenditure,FG - Accounts & Business Planning,University College London,98764204,33527.77,Research Grant Expenditure
BEIS,UKRI - BBSRC,23/06/2020,Research Grant Expenditure,FG - Accounts & Business Planning,University of Cambridge,98764205,455512.00,Research Grant Expenditure
BEIS,UKRI - BBSRC,23/06/2020,Research Grant Expenditure,FG - Accounts & Business Planning,University of Leeds,98764206,509226.00,Research Grant Expenditure
BEIS,UKRI - BBSRC,23/06/2020,Research Grant Expenditure,FG - Accounts & Business Planning,University of Liverpool,98764207,509530.00,Research Grant Expenditure
BEIS,UKRI - BBSRC,23/06/2020,Research Grant Expenditure,FG - Accounts & Business Planning,University of Dundee,98764208,38964.96,Research Grant Expenditure
BEIS,UKRI - BBSRC,23/06/2020,Research Grant Expenditure,FG - Accounts & Business Planning,Swansea University,98764209,29824.63,Research Grant Expenditure
BEIS,UKRI - BBSRC,23/06/2020,Research Grant Expenditure,FG - Accounts & Business Planning,University of Birmingham GRANT,98764210,34387.67,Research Grant Expenditure
BEIS,UKRI - BBSRC,23/06/2020,Research Grant Expenditure,FG - Accounts & Business Planning,University of York,98764211,35741.14,Research Grant Expenditure
BEIS,UKRI - BBSRC,23/06/2020,Research Grant Expenditure,FG - Accounts & Business Planning,University of Glasgow,98764212,53605.75,Research Grant Expenditure
BEIS,UKRI - BBSRC,23/06/2020,Research Grant Expenditure,FG - Accounts & Business Planning,University of the West of England,98764213,21750.47,Research Grant Expenditure
BEIS,UKRI - BBSRC,23/06/2020,Research Grant Expenditure,FG - Accounts & Business Planning,University of Reading,98764214,35210.83,Research Grant Expenditure
BEIS,UKRI - BBSRC,23/06/2020,Research Grant Expenditure,FG - Accounts & Business Planning,John Innes Centre,98764215,26107.50,Research Grant Expenditure
BEIS,UKRI - BBSRC,23/06/2020,Research Grant Expenditure,FG - Accounts & Business Planning,The University of Manchester,98764216,43151.86,Research Grant Expenditure
BEIS,UKRI - BBSRC,23/06/2020,Research Grant Expenditure,FG - Accounts & Business Planning,National Institute For Agricultural Botany (NIAB),98764217,19671.55,Research Grant Expenditure
BEIS,UKRI - BBSRC,23/06/2020,Research Grant Expenditure,FG - Accounts & Business Planning,Cardiff University,98764218,30767.21,Research Grant Expenditure
BEIS,UKRI - BBSRC,23/06/2020,Research Grant Expenditure,FG - Accounts & Business Planning,University of Strathclyde,98764219,30462.30,Research Grant Expenditure
BEIS,UKRI - BBSRC,23/06/2020,Research Grant Expenditure,FG - Accounts & Business Planning,Imperial College London,98764220,34372.54,Research Grant Expenditure
BEIS,UKRI - BBSRC,23/06/2020,Research Grant Expenditure,FG - Accounts & Business Planning,Imperial College London,98764221,51984.24,Research Grant Expenditure
BEIS,UKRI - BBSRC,23/06/2020,Research Grant Expenditure,FG - Accounts & Business Planning,University of Oxford,98764222,36186.98,Research Grant Expenditure
BEIS,UKRI - BBSRC,23/06/2020,Research Grant Expenditure,FG - Accounts & Business Planning,University of Oxford,98764223,45122.02,Research Grant Expenditure
BEIS,UKRI - BBSRC,23/06/2020,Research Grant Expenditure,FG - Accounts & Business Planning,National Institute For Agricultural Botany (NIAB),98764224,42879.46,Research Grant Expenditure
BEIS,UKRI - BBSRC,23/06/2020,Research Grant Expenditure,FG - Accounts & Business Planning,John Innes Centre,98764225,83807.30,Research Grant Expenditure
BEIS,UKRI - BBSRC,23/06/2020,Research Grant Expenditure,FG - Accounts & Business Planning,University of Bristol GRANT,98764226,31566.58,Research Grant Expenditure
BEIS,UKRI - BBSRC,23/06/2020,Research Grant Expenditure,FG - Accounts & Business Planning,University of Exeter,98764227,31712.79,Research Grant Expenditure
BEIS,UKRI - BBSRC,23/06/2020,Research Grant Expenditure,FG - Accounts & Business Planning,University of Glasgow,98764228,40853.92,Research Grant Expenditure
BEIS,UKRI - BBSRC,23/06/2020,Research Grant Expenditure,FG - Accounts & Business Planning,Imperial College London,98764229,31971.71,Research Grant Expenditure
BEIS,UKRI - BBSRC,23/06/2020,Research Grant Expenditure,FG - Accounts & Business Planning,University of Surrey,98764230,19850.53,Research Grant Expenditure
BEIS,UKRI - BBSRC,23/06/2020,Research Grant Expenditure,FG - Accounts & Business Planning,University of Bristol GRANT,98764231,58960.40,Research Grant Expenditure
BEIS,UKRI - BBSRC,23/06/2020,Research Grant Expenditure,FG - Accounts & Business Planning,University of Bristol GRANT,98764232,46434.74,Research Grant Expenditure
BEIS,UKRI - BBSRC,23/06/2020,Research Grant Expenditure,FG - Accounts & Business Planning,Queen's University Belfast GRANT,98764233,25840.92,Research Grant Expenditure
BEIS,UKRI - BBSRC,23/06/2020,Research Grant Expenditure,FG - Accounts & Business Planning,University of Oxford,98764234,54271.29,Research Grant Expenditure
BEIS,UKRI - BBSRC,23/06/2020,Research Grant Expenditure,FG - Accounts & Business Planning,University of York,98764235,43697.73,Research Grant Expenditure
BEIS,UKRI - BBSRC,23/06/2020,Research Grant Expenditure,FG - Accounts & Business Planning,University of Leeds,98764236,68649.73,Research Grant Expenditure
BEIS,UKRI - BBSRC,23/06/2020,Research Grant Expenditure,FG - Accounts & Business Planning,University of Bristol GRANT,98764237,60361.25,Research Grant Expenditure
BEIS,UKRI - BBSRC,23/06/2020,Research Grant Expenditure,FG - Accounts & Business Planning,University of Bristol GRANT,98764238,41622.88,Research Grant Expenditure
BEIS,UKRI - BBSRC,23/06/2020,Research Grant Expenditure,FG - Accounts & Business Planning,University of St Andrews,98764239,33856.05,Research Grant Expenditure
BEIS,UKRI - BBSRC,23/06/2020,Research Grant Expenditure,FG - Accounts & Business Planning,University of Liverpool,98764240,34555.10,Research Grant Expenditure
BEIS,UKRI - BBSRC,23/06/2020,Research Grant Expenditure,FG - Accounts & Business Planning,London School of Hygiene & Tropical Medicine,98764241,31457.68,Research Grant Expenditure
BEIS,UKRI - BBSRC,23/06/2020,Research Grant Expenditure,FG - Accounts & Business Planning,The University of Manchester,98764242,42331.59,Research Grant Expenditure
BEIS,UKRI - BBSRC,23/06/2020,Research Grant Expenditure,FG - Accounts & Business Planning,University of Birmingham GRANT,98764243,27265.04,Research Grant Expenditure
BEIS,UKRI - BBSRC,23/06/2020,Research Grant Expenditure,FG - Accounts & Business Planning,University of Glasgow,98764244,39395.88,Research Grant Expenditure
BEIS,UKRI - BBSRC,23/06/2020,Research Grant Expenditure,FG - Accounts & Business Planning,University of Oxford,98764245,26047.96,Research Grant Expenditure
BEIS,UKRI - BBSRC,23/06/2020,Research Grant Expenditure,FG - Accounts & Business Planning,Queen Mary University of London,98764246,39175.14,Research Grant Expenditure
BEIS,UKRI - BBSRC,23/06/2020,Research Grant Expenditure,FG - Accounts & Business Planning,University of Reading,98764247,32701.15,Research Grant Expenditure
BEIS,UKRI - BBSRC,23/06/2020,Research Grant Expenditure,FG - Accounts & Business Planning,Queen Mary University of London,98764248,32189.22,Research Grant Expenditure
BEIS,UKRI - BBSRC,23/06/2020,Research Grant Expenditure,FG - Accounts & Business Planning,University of Warwick,98764249,60699.61,Research Grant Expenditure
BEIS,UKRI - BBSRC,23/06/2020,Research Grant Expenditure,FG - Accounts & Business Planning,The University of Manchester,98764250,61781.85,Research Grant Expenditure
BEIS,UKRI - BBSRC,23/06/2020,Research Grant Expenditure,FG - Accounts & Business Planning,The University of Manchester,98764251,60900.71,Research Grant Expenditure
BEIS,UKRI - BBSRC,23/06/2020,Research Grant Expenditure,FG - Accounts & Business Planning,Queen's University Belfast GRANT,98764252,29111.32,Research Grant Expenditure
BEIS,UKRI - BBSRC,23/06/2020,Research Grant Expenditure,FG - Accounts & Business Planning,University of Warwick,98764253,67124.98,Research Grant Expenditure
BEIS,UKRI - BBSRC,23/06/2020,Research Grant Expenditure,FG - Accounts & Business Planning,University College London,98764254,36324.07,Research Grant Expenditure
